DATE OF TRANSACTION,LA DEPARTMENT INCURRING SPEND,BENEFICARY,GROSS AMOUNT,SUMMARY OF PURPOSEOF SPEND,MERCHANT CATEGORY
28/08/2019,TRANSPORT,R & P ACCIDENT REPAIR,270.00,VEHICLE REPAIRS AND MAINTENANCE,AUTOMOTIVE BODY REPAIR SHOPS
28/08/2019,ACL CENTRAL EXPENDITURE,LEATHERHEAD GLASS LTD,46.00,EQUIPMENT,HARDWARE STORES
28/08/2019,INQUEST EXPENSES                        ,AUSCRIPT LTD,-9.52,FEES,"CONSULTING, MANAGEMENT, AND PUBLIC RELATIONS SVCS"
28/08/2019,TRAINING AND DEVELOPMENT,PAYPAL  TURNERKENWO,144.00,TRAINING EXPENSES EXTERNAL GENERAL,"CONSULTING, MANAGEMENT, AND PUBLIC RELATIONS SVCS"
28/08/2019,LIBERTAS COMMUNITY HOME,SIETE PECADOS,16.21,EDUC VISITS/HOLS/CAMPS/TOYS,"EATING PLACES, RESTAURANTS"
28/08/2019,LIBERTAS COMMUNITY HOME,RESTAURANTE MONTGO,69.98,PURCHASE OF FOOD (RAW MATERIALS),"EATING PLACES, RESTAURANTS"
28/08/2019,CHEYNE WALK COMMUNITY HOME,SAINSBURYS SACAT 0391,39.10,PURCHASE OF FOOD (RAW MATERIALS),"GROCERY STORES, SUPERMARKETS"
28/08/2019,CHEYNE WALK COMMUNITY HOME,CLINTONS 14,2.50,EQUIPMENT,"GIFT, CARD, NOVELTY AND SOUVENIR SHOPS"
28/08/2019,LIBERTAS COMMUNITY HOME,TESCO STORES 2025,30.96,PURCHASE OF FOOD (RAW MATERIALS),"GROCERY STORES, SUPERMARKETS"
28/08/2019,SURREY COUNTY COUNCIL,GEN REGISTER OFFICE,14.00,FEES,GOVERNMENT SERVICES-NOT ELSEWHERE CLASSIFIED
28/08/2019,BURBANK COMMUNITY HOME,TESCO STORES 5291,115.78,EDUC VISITS/HOLS/CAMPS/TOYS,"GROCERY STORES, SUPERMARKETS"
28/08/2019,BURBANK COMMUNITY HOME,SUPERMARKET AT GC,6.00,EDUC VISITS/HOLS/CAMPS/TOYS,"GROCERY STORES, SUPERMARKETS"
28/08/2019,DOWNLANDS COUNTRYSIDE PROJECT,GLOBAL FOODSERVICE EQU,80.33,EQUIPMENT,"COMMERCIAL EQUIPMENT, NOT ELSEWHERE CLASSIFIED"
28/08/2019,DOWNLANDS COUNTRYSIDE PROJECT,WICKES SUTTON (MULTISI,6.50,DAY TO DAY MAINTENANCE,"BUILDING MATERIALS, LUMBER STORES"
28/08/2019,LIBERTAS COMMUNITY HOME,E.S. JAVEA NC 12.965,15.04,PURCHASE OF FOOD (RAW MATERIALS),SERVICE STATIONS WITH OR WITHOUT ANCILLARY SERVICE
28/08/2019,TRANSPORT,AMZNMKTPLACE,104.55,OPERATIONAL FIRE EQUIPMENT,MISCELLANEOUS AND SPECIALTY RETAIL STORES
28/08/2019,HOPE SERVICE - WEST,AMZNMKTPLACE,5.50,E25 CATERING EQUIPMENT,MISCELLANEOUS AND SPECIALTY RETAIL STORES
28/08/2019,PROPERTY OPERATIONS TEAM,B & Q 1029,31.97,PURCHASE OF BUILDING MATERIALS,HOME SUPPLY WAREHOUSE STORES
28/08/2019,SE TARGETTED YOUTH SUPPORT,CO-OP GROUP FOOD,2.05,REFRESHMENT COSTS,"GROCERY STORES, SUPERMARKETS"
28/08/2019,LIBRARIES CENTRAL,ASSOC-VOL-MANAGERS,75.00,SUBSCRIPTIONS,"ORGANIZATIONS, MEMBERSHIP-NOT ELSEWHERE CLASSIFIED"
28/08/2019,ABBEYWOOD,ARGOS RETAIL GROUP,20.99,EQUIPMENT,DISCOUNT STORES
28/08/2019,HEATHSIDE,ROBERT DYAS HOLDNG LTD,19.07,PURCHASE OF BUILDING MATERIALS,HARDWARE STORES
28/08/2019,CHEYNE WALK COMMUNITY HOME,TESCO-STORES 6647,238.26,PURCHASE OF FOOD (RAW MATERIALS),"GROCERY STORES, SUPERMARKETS"
28/08/2019,APPLEWOOD,TFH SPECIAL NEEDS,287.64,EQUIPMENT,"GAME, TOY, AND HOBBY SHOPS"
28/08/2019,APPLEWOOD,TFH SPECIAL NEEDS,287.64,EQUIPMENT,"GAME, TOY, AND HOBBY SHOPS"
28/08/2019,NE LAC AND LEAVING CARE,AMZNMKTPLACE AMAZON.CO,12.43,OTHER COMMUNITY CARE VOL,MISCELLANEOUS AND SPECIALTY RETAIL STORES
28/08/2019,NE SECTION 17 CARE,TRAVELODGE,336.50,INDEPENDENT LIVING PLACEMENTS,TRAVELODGE
28/08/2019,SE CARE - LAC,SURREY CC CARD PAY,11.00,OTHER COMMUNITY CARE VOL,COMPUTER NETWORK/INFORMATION SERVICES
28/08/2019,ROW VOLUNTEERS EAST                     ,FIXINGS & POWERTOOL CE,6.40,EQUIPMENT,"BUILDING MATERIALS, LUMBER STORES"
28/08/2019,HERITAGE MANAGER,CARTRIDGE SAVE,44.42,POSTAGE AND COURIER CHARGES,STATIONERY/OFFICE SUPPLIES/PRINTING & WRITING PAP.
28/08/2019,ARUNDEL,AMZNMKTPLACE,29.98,EQUIPMENT,MISCELLANEOUS AND SPECIALTY RETAIL STORES
28/08/2019,DOWNLANDS COUNTRYSIDE PROJECT,MOLE COUNTRY STORES,161.16,DAY TO DAY MAINTENANCE,AGRICULTURAL COOPERATIVES
28/08/2019,BURBANK COMMUNITY HOME,POST OFFICE COUNTER,2.26,POSTAGE AND COURIER CHARGES,POSTAL SERVICES-GOVERNMENT ONLY
28/08/2019,CHEYNE WALK COMMUNITY HOME,PRESIDENTAL FOODS,6.80,PURCHASE OF FOOD (RAW MATERIALS),"GROCERY STORES, SUPERMARKETS"
28/08/2019,BARNFIELD,TESCO STORE 2560,42.00,EQUIPMENT,"GROCERY STORES, SUPERMARKETS"
28/08/2019,SCHOOL SPORT 2015-16                    ,ALDI STORES LTD,7.99,EQUIPMENT,"GROCERY STORES, SUPERMARKETS"
28/08/2019,FAIRCROFT COMMUNITY HOME,DELIVEROO.CO.UK,25.59,REFRESHMENT COSTS,"MISC FOOD STORE-CONVENIENCE,MRKT,SPLTY,VENDNG MACS"
28/08/2019,FAIRCROFT COMMUNITY HOME,B & Q 1029,43.97,EQUIPMENT,HOME SUPPLY WAREHOUSE STORES
28/08/2019,TARGETED INTERVENTION,CHISLEHURST CAVES,4.50,EDUC VISITS/HOLS/CAMPS/TOYS,TOURIST ATTRACTIONS AND EXHIBITS
28/08/2019,TARGETED INTERVENTION,CHISLEHURST CAVES,14.00,EDUC VISITS/HOLS/CAMPS/TOYS,TOURIST ATTRACTIONS AND EXHIBITS
28/08/2019,TARGETED INTERVENTION,CHISLEHURST CAVES,6.00,EDUC VISITS/HOLS/CAMPS/TOYS,TOURIST ATTRACTIONS AND EXHIBITS
28/08/2019,IMT CRITICAL ENVIRONMENTS,AMAZON PRIME MA8S433P4,79.00,SUBSCRIPTIONS,DIRECT MARKETING-CONTINUITY/SUBSCRIPTION MERCHANTS
28/08/2019,WEST CWD LAC CARE,AMZNMKTPLACE,63.99,EQUIPMENT,MISCELLANEOUS AND SPECIALTY RETAIL STORES
28/08/2019,WEST CWD LAC CARE,AMZNMKTPLACE,12.95,EQUIPMENT,MISCELLANEOUS AND SPECIALTY RETAIL STORES
28/08/2019,WEST CWD LAC CARE,AMZNMKTPLACE,25.90,EQUIPMENT,MISCELLANEOUS AND SPECIALTY RETAIL STORES
28/08/2019,WEST CWD LAC CARE,AMZNMKTPLACE,14.85,EQUIPMENT,MISCELLANEOUS AND SPECIALTY RETAIL STORES
28/08/2019,WEST CWD LAC CARE,AMZNMKTPLACE,5.15,EQUIPMENT,MISCELLANEOUS AND SPECIALTY RETAIL STORES
28/08/2019,RUTH HOUSE,NOWTV.COM/BILLINGHELP,11.99,EDUC VISITS/HOLS/CAMPS/TOYS,"CABLE, SATELLITE, OTHER PAY TELEVISION, RADIO SVCS"
28/08/2019,RUTH HOUSE,NOWTV.COM/BILLINGHELP,7.99,EDUC VISITS/HOLS/CAMPS/TOYS,"CABLE, SATELLITE, OTHER PAY TELEVISION, RADIO SVCS"
28/08/2019,WEST CWD LAC CARE,WWW.ARGOS.CO.UK,466.91,EQUIPMENT,DISCOUNT STORES
28/08/2019,WEST CWD LAC CARE,WWW.ARGOS.CO.UK,164.94,EQUIPMENT,DISCOUNT STORES
28/08/2019,WEST CWD LAC CARE,WWW.ARGOS.CO.UK,348.92,EQUIPMENT,DISCOUNT STORES
28/08/2019,WEST CWD LAC CARE,WWW.ARGOS.CO.UK,95.99,EQUIPMENT,DISCOUNT STORES
28/08/2019,WEST CWD LAC CARE,WWW.ARGOS.CO.UK,-466.91,EQUIPMENT,DISCOUNT STORES
28/08/2019,WEST CWD LAC CARE,WWW.ARGOS.CO.UK,-95.99,EQUIPMENT,DISCOUNT STORES
28/08/2019,BURBANK COMMUNITY HOME,W M MORRISON STORE,22.80,PURCHASE OF FOOD (RAW MATERIALS),"GROCERY STORES, SUPERMARKETS"
28/08/2019,BURBANK COMMUNITY HOME,SUPERMARKET AT GC,8.86,PURCHASE OF FOOD (RAW MATERIALS),"GROCERY STORES, SUPERMARKETS"
28/08/2019,CHEYNE WALK COMMUNITY HOME,PANDORA,35.00,EQUIPMENT,"CLOCK, JEWELRY, WATCH, AND SILVERWARE STORE"
28/08/2019,TRANSPORT,PAYPAL  IKEALIMITED,219.00,FURNITURE,DEPARTMENT STORES
28/08/2019,ISPSB - ADAPTATIONS & IMPROVEMENTS,NRS HEALTHCARE,392.22,EQUIPMENT,DENTAL/LAB/MED/OPHTHALMIC HOSP EQUIP & SUPPLIES
28/08/2019,LIBERTAS COMMUNITY HOME,C BREWER & SONS,80.29,EQUIPMENT,"BUILDING MATERIALS, LUMBER STORES"
28/08/2019,LIBERTAS COMMUNITY HOME,TIENDA ARENAL,19.44,EDUC VISITS/HOLS/CAMPS/TOYS,"GIFT, CARD, NOVELTY AND SOUVENIR SHOPS"
28/08/2019,LIBERTAS COMMUNITY HOME,FRESH SHOES JAVEA,114.78,"CLOTHING, UNIFORM AND LAUNDRY",SHOE STORES
28/08/2019,LIBERTAS COMMUNITY HOME,CHABADA,76.24,PURCHASE OF FOOD (RAW MATERIALS),"EATING PLACES, RESTAURANTS"
29/08/2019,NW NIL RECOURSE TO PUBLIC FUNDS CARE,PREMIER INN,644.50,INDEPENDENT LIVING PLACEMENTS,PREMIER INN
29/08/2019,EXTENDED HOPE,ODEON,100.00,EDUC VISITS/HOLS/CAMPS/TOYS,MOTION PICTURE THEATERS
29/08/2019,LIBERTAS COMMUNITY HOME,BRUJA DE JAVEA,130.74,PURCHASE OF FOOD (RAW MATERIALS),"EATING PLACES, RESTAURANTS"
29/08/2019,TRANSPORT,COMMERCIAL BODY FI,52.30,VEHICLE REPAIRS AND MAINTENANCE,"AUTOMOTIVE PARTS, ACCESSORIES STORES"
29/08/2019,SE TARGETTED YOUTH SUPPORT,WM MORRISONS STORE,3.70,REFRESHMENT COSTS,"GROCERY STORES, SUPERMARKETS"
29/08/2019,SE TARGETTED YOUTH SUPPORT,WM MORRISONS STORE,11.25,PURCHASE OF FOOD (RAW MATERIALS),"GROCERY STORES, SUPERMARKETS"
29/08/2019,WEST CWD LAC CARE,AMZNMKTPLACE,22.00,EQUIPMENT,MISCELLANEOUS AND SPECIALTY RETAIL STORES
29/08/2019,RUTH HOUSE,GIFFGAFF,6.00,TELECOMMUNICATION CHARGES,TELECOM INCL PREPAID/RECURRING PHONE SVCS
29/08/2019,WEST CWD LAC CARE,DUNELM LTD,79.00,EQUIPMENT,"DRAPERY, UPOLSTERY, AND WINDOW COVERINGS STORES"
29/08/2019,WEST CWD LAC CARE,HOMEBASE LTD 084,88.50,EQUIPMENT,HOME SUPPLY WAREHOUSE STORES
29/08/2019,BURBANK COMMUNITY HOME,SUPERMARKET AT GC,17.76,REFRESHMENT COSTS,"GROCERY STORES, SUPERMARKETS"
29/08/2019,SE CARE - NON-LAC CP & COURT,WWW.ARGOS.CO.UK,79.99,OTHER COMMUNITY CARE VOL,DISCOUNT STORES
29/08/2019,CS BUSINESS SUPPORT WEST,SCREWFIX DIR.LTD,95.47,PURCHASE OF BUILDING MATERIALS,"BUILDING MATERIALS, LUMBER STORES"
29/08/2019,ARUNDEL,ASDA GROCERIES ONLINE,138.40,CLEANING AND DOMESTIC SUPPLIES,"GROCERY STORES, SUPERMARKETS"
29/08/2019,ARUNDEL,TESCO STORES 5999,114.29,REFRESHMENT COSTS,"GROCERY STORES, SUPERMARKETS"
29/08/2019,TRANSPORT,WAYFAIR #2996700234,378.98,FURNITURE,"EQUIP, FURNITURE, HOME FURNSHNGS STRS (EXCPT APPL)"
29/08/2019,TRANSPORT,PAYPAL  SHAHEENHANI,5.80,FIXTURES AND FITTINGS,TELECOMMUNICATION EQUIPMENT INCL TELEPHONE SALES
29/08/2019,SOLD CURRICULUM PROGRAMME DELIVERY,RINGGO,5.40,EDUC VISITS/HOLS/CAMPS/TOYS,AUTOMOBILE PARKING LOTS AND GARAGES
29/08/2019,SOLD DAY TO DAY OPERATIONS,POUNDLAND,4.00,DAY TO DAY MAINTENANCE,DISCOUNT STORES
29/08/2019,HOPE SERVICE - WEST,SAINSBURYS SACAT(4409),6.75,PURCHASE OF FOOD (RAW MATERIALS),"GROCERY STORES, SUPERMARKETS"
29/08/2019,DEPUTYSHIP TEAM,AXA INSURANCE,252.54,3RD PARTY PAYMENTS PRIVATE INDIV,DIRECT MARKETING-CONTINUITY/SUBSCRIPTION MERCHANTS
29/08/2019,FIRE SERVICES IT,AMZNMKTPLACE,100.32,COMPUTER HARDWARE,MISCELLANEOUS AND SPECIALTY RETAIL STORES
29/08/2019,LIBERTAS COMMUNITY HOME,WOKING GARDEN CENTRE,40.00,FURNITURE,LANDSCAPING AND HORTICULTURAL SERVICES
29/08/2019,ESTATES TEAM,COUNTRY LAND AND BUSIN,835.75,SUBSCRIPTIONS,"CLUBS-CNTRY,MBRSHIP(ATHLET,REC,SPRTS,PRIVATE GOLF"
29/08/2019,HEAD OF COUNTRYSIDE,COUNTRY LAND AND BUSIN,835.75,SUBSCRIPTIONS,"CLUBS-CNTRY,MBRSHIP(ATHLET,REC,SPRTS,PRIVATE GOLF"
29/08/2019,PROPERTY OPERATIONS TEAM,B & Q 1018,37.46,PURCHASE OF BUILDING MATERIALS,HOME SUPPLY WAREHOUSE STORES
29/08/2019,PROPERTY OPERATIONS TEAM,B & Q 1018,10.00,PURCHASE OF BUILDING MATERIALS,HOME SUPPLY WAREHOUSE STORES
29/08/2019,PROPERTY OPERATIONS TEAM,B & Q 1018,-10.00,PURCHASE OF BUILDING MATERIALS,HOME SUPPLY WAREHOUSE STORES
29/08/2019,SHELL UK LICENSING,DAVENTRY DISTRICT C,79.00,FEES,GOVERNMENT SERVICES-NOT ELSEWHERE CLASSIFIED
29/08/2019,SHELL UK LICENSING,WWW.READING.GOV.UK,375.00,FEES,GOVERNMENT SERVICES-NOT ELSEWHERE CLASSIFIED
29/08/2019,WOKING CMHRS CARE,WORTHING COUNTRY C,75.00,FEES,FINES
29/08/2019,SE TARGETTED YOUTH SUPPORT,ASDA SUPERSTORE,34.07,EQUIPMENT,"GROCERY STORES, SUPERMARKETS"
29/08/2019,LIBERTAS COMMUNITY HOME,CARAVANZARA,308.94,EDUC VISITS/HOLS/CAMPS/TOYS,HEALTH  AND BEAUTY SPAS
29/08/2019,TRANSPORT,SURREY VALETING,14.00,VEHICLE REPAIRS AND MAINTENANCE,CAR WASHES
29/08/2019,FAIRCROFT COMMUNITY HOME,PETS AT HOME LTD,70.50,EQUIPMENT,PET SHOPS - PET FOODS AND SUPPLIES
29/08/2019,FAIRCROFT COMMUNITY HOME,THE STAR,148.15,REFRESHMENT COSTS,"EATING PLACES, RESTAURANTS"
29/08/2019,ACT,AMAZON.CO.UK MA2FB1TP4,26.83,EQUIPMENT,DIRECT MARKETING-OTHER DIRECT MARKETERS/NOT ELSEW.
29/08/2019,SURREY PENSIONS,TRAVELODGE,271.00,SUBSISTENCE AND CONFERENCE EXPENSES,TRAVELODGE
29/08/2019,HEAD OF FAMILY RESILIENCE,SLI DO,900.00,OTHER COMMUNITY CARE VOL,COMPUTER SOFTWARE STORES
29/08/2019,ARUNDEL,AMZNMKTPLACE,16.48,EQUIPMENT,MISCELLANEOUS AND SPECIALTY RETAIL STORES
29/08/2019,ARUNDEL,AMZNMKTPLACE,5.98,EQUIPMENT,MISCELLANEOUS AND SPECIALTY RETAIL STORES
29/08/2019,EXTENDED HOPE,TESCO STORE 2590,110.67,PURCHASE OF FOOD (RAW MATERIALS),"GROCERY STORES, SUPERMARKETS"
29/08/2019,EXTENDED HOPE,SAINSBURYS 0652,100.00,PURCHASE OF FOOD (RAW MATERIALS),"GROCERY STORES, SUPERMARKETS"
29/08/2019,EXTENDED HOPE,SAINSBURYS 0652,36.00,CURRICULUM CONSUMABLES,"GROCERY STORES, SUPERMARKETS"
29/08/2019,WOODLANDS COMMUNITY HOME,SAINSBURYS TO YOU 0686,4.60,PURCHASE OF FOOD (RAW MATERIALS),"GROCERY STORES, SUPERMARKETS"
29/08/2019,WOODLANDS COMMUNITY HOME,SAINSBURYS TO YOU 0686,86.20,PURCHASE OF FOOD (RAW MATERIALS),"GROCERY STORES, SUPERMARKETS"
29/08/2019,WOODLANDS COMMUNITY HOME,SAINSBURYS TO YOU 0686,-2.00,PURCHASE OF FOOD (RAW MATERIALS),"GROCERY STORES, SUPERMARKETS"
29/08/2019,ABBEYWOOD,AMZNMKTPLACE,93.36,EQUIPMENT,MISCELLANEOUS AND SPECIALTY RETAIL STORES
29/08/2019,WEST CWD LAC CARE,AMZNMKTPLACE,9.99,EQUIPMENT,MISCELLANEOUS AND SPECIALTY RETAIL STORES
29/08/2019,WEST CWD LAC CARE,AMZNMKTPLACE,26.91,EQUIPMENT,MISCELLANEOUS AND SPECIALTY RETAIL STORES
30/08/2019,SE CARE - LAC,SURREY CC CARD PAY,-33.00,OTHER COMMUNITY CARE VOL,COMPUTER NETWORK/INFORMATION SERVICES
30/08/2019,MALLOW CRESCENT,AMZNMKTPLACE AMAZON.CO,204.09,COMPUTER HARDWARE,MISCELLANEOUS AND SPECIALTY RETAIL STORES
30/08/2019,STREETWORKS TEAM,PREMIER INN,61.00,SUBSISTENCE AND CONFERENCE EXPENSES,PREMIER INN
30/08/2019,ARUNDEL,TESCO STORES 5999,164.20,REFRESHMENT COSTS,"GROCERY STORES, SUPERMARKETS"
30/08/2019,TRANSPORT,PROPERTY APPLIANCE SER,98.00,EQUIPMENT,ELECTRICAL AND SMALL APPLIANCE REPAIR SHOPS
30/08/2019,CHAIRMAN,STATIONERY OFFICE BOOK,84.79,NEWSPAPER AND PERIODICALS,BOOK STORES
30/08/2019,HOPE SERVICE - WEST,MCDONALDS,5.29,PURCHASE OF FOOD (RAW MATERIALS),FAST FOOD RESTAURANTS
30/08/2019,PROPERTY OPERATIONS TEAM,WICKES HANWORTH,34.00,PURCHASE OF BUILDING MATERIALS,HOME SUPPLY WAREHOUSE STORES
30/08/2019,PROPERTY OPERATIONS TEAM,SCREWFIX HANWORTH,39.99,PURCHASE OF BUILDING MATERIALS,"BUILDING MATERIALS, LUMBER STORES"
30/08/2019,KARIBU COMMUNITY HOME,BP WOODCOTE S/SERVE,53.06,VEHICLE REPAIRS AND MAINTENANCE,SERVICE STATIONS WITH OR WITHOUT ANCILLARY SERVICE
30/08/2019,SW EXTRA CARE TEAM,AMZNMKTPLACE,69.00,EQUIPMENT,MISCELLANEOUS AND SPECIALTY RETAIL STORES
30/08/2019,HOPE SERVICE - WEST,SAINSBURYS TO YOU 0686,60.20,PURCHASE OF FOOD (RAW MATERIALS),"GROCERY STORES, SUPERMARKETS"
30/08/2019,HOPE SERVICE - WEST,SAINSBURYS TO YOU 0686,-1.10,PURCHASE OF FOOD (RAW MATERIALS),"GROCERY STORES, SUPERMARKETS"
30/08/2019,CHEYNE WALK COMMUNITY HOME,CURRYS,378.98,EQUIPMENT,ELECTRONIC SALES
30/08/2019,IMT PRODUCTION APPLICATIONS TEAM,INFOGRAM.COM,"2,986.99",COMPUTER SERVICES,"COMPUTERS, COMPUTER PERIPHERAL EQUIPMENT, SOFTWARE"
30/08/2019,CHEYNE WALK COMMUNITY HOME,ARGOS WEST GREEN,157.97,FURNITURE,DISCOUNT STORES
30/08/2019,CHEYNE WALK COMMUNITY HOME,ARGOS WEST GREEN,107.99,FURNITURE,DISCOUNT STORES
30/08/2019,FAIRCROFT COMMUNITY HOME,THE KIT-SHOP,158.25,"CLOTHING, UNIFORM AND LAUNDRY",SPORTING GOODS STORES
30/08/2019,APPLEWOOD,ASDA GROCERIES ONLINE,208.73,PURCHASE OF FOOD (RAW MATERIALS),"GROCERY STORES, SUPERMARKETS"
30/08/2019,APPLEWOOD,ASDA GROCERIES ONLINE,-0.78,PURCHASE OF FOOD (RAW MATERIALS),"GROCERY STORES, SUPERMARKETS"
30/08/2019,SE CARE - NON-LAC CP & COURT,GEN REGISTER OFFICE,14.00,OTHER COMMUNITY CARE VOL,GOVERNMENT SERVICES-NOT ELSEWHERE CLASSIFIED
30/08/2019,SE CARE - NON-LAC CP & COURT,SURREY CC CARD PAY,35.00,OTHER COMMUNITY CARE VOL,COMPUTER NETWORK/INFORMATION SERVICES
30/08/2019,ROW VOLUNTEERS WEST                     ,METHOLD VEHICLE HIRE,54.00,HIRE OF VEHICLES,AUTOMOBILE RENTAL AGENCY-NOT ELSEWHERE CLASSIFIED
30/08/2019,ROW VOLUNTEERS WEST                     ,SHELL BURNT CM 199,6.00,PETROL/DIESEL ALL OFF BUSINESS,SERVICE STATIONS WITH OR WITHOUT ANCILLARY SERVICE
30/08/2019,LIBERTAS COMMUNITY HOME,LUNGO MARE JAVEA,143.08,PURCHASE OF FOOD (RAW MATERIALS),"EATING PLACES, RESTAURANTS"
30/08/2019,LOCAL ASSISTANCE SCHEME,WILKO.COM,73.50,FURNITURE,MISCELLANEOUS GENERAL MERCHANDISE
30/08/2019,HILLSIDE,SAINSBURYS 0784,1.15,PURCHASE OF FOOD (RAW MATERIALS),"GROCERY STORES, SUPERMARKETS"
30/08/2019,HILLSIDE,ALDI 34 775,69.23,PURCHASE OF FOOD (RAW MATERIALS),"GROCERY STORES, SUPERMARKETS"
30/08/2019,ARUNDEL,ROBERT DYAS HOLDNG LTD,6.99,EQUIPMENT,HARDWARE STORES
30/08/2019,ARUNDEL,CVLE / MPLC,169.93,FEES,"CONSULTING, MANAGEMENT, AND PUBLIC RELATIONS SVCS"
30/08/2019,CHEYNE WALK COMMUNITY HOME,AIRBNB   HMANZM8JXS,596.37,EDUC VISITS/HOLS/CAMPS/TOYS,"LODGING-HOTELS,MOTELS,RESORTS-NOT CLASSIFIED"
30/08/2019,CHEYNE WALK COMMUNITY HOME,JUSTPARK,6.00,EDUC VISITS/HOLS/CAMPS/TOYS,AUTOMOBILE PARKING LOTS AND GARAGES
30/08/2019,CHEYNE WALK COMMUNITY HOME,HOMEBASE LTD 087,15.75,EQUIPMENT,HOME SUPPLY WAREHOUSE STORES
30/08/2019,CORPORATE GROUP - LEGAL SERVICES,CUSTOMER THERMOMETER,49.79,SUBSCRIPTIONS,COMPUTER SOFTWARE STORES
30/08/2019,RUTH HOUSE,AMZNMKTPLACE,3.82,EDUC VISITS/HOLS/CAMPS/TOYS,MISCELLANEOUS AND SPECIALTY RETAIL STORES
30/08/2019,FAIRCROFT COMMUNITY HOME,GAME RETAIL,20.00,EDUC VISITS/HOLS/CAMPS/TOYS,"GAME, TOY, AND HOBBY SHOPS"
30/08/2019,FAIRCROFT COMMUNITY HOME,STARBUCKS,4.20,REFRESHMENT COSTS,FAST FOOD RESTAURANTS
30/08/2019,FAIRCROFT COMMUNITY HOME,STARBUCKS,3.40,REFRESHMENT COSTS,FAST FOOD RESTAURANTS
30/08/2019,FAIRCROFT COMMUNITY HOME,KINGSTON EE CF,6.80,MISCELLANEOUS STAFF TRAVEL,AUTOMOBILE PARKING LOTS AND GARAGES
30/08/2019,FAIRCROFT COMMUNITY HOME,SUBWAY,8.78,REFRESHMENT COSTS,FAST FOOD RESTAURANTS
30/08/2019,RBDM - GENERAL,AMZNMKTPLACE,29.99,EQUIPMENT,MISCELLANEOUS AND SPECIALTY RETAIL STORES
30/08/2019,RBDM - GENERAL,AMZNMKTPLACE AMAZON.CO,29.99,EQUIPMENT,MISCELLANEOUS AND SPECIALTY RETAIL STORES
30/08/2019,ACL CENTRAL EXPENDITURE,AMZNMKTPLACE,1.65,EQUIPMENT,MISCELLANEOUS AND SPECIALTY RETAIL STORES
30/08/2019,ACL CENTRAL EXPENDITURE,AMZNMKTPLACE,17.99,EQUIPMENT,MISCELLANEOUS AND SPECIALTY RETAIL STORES
30/08/2019,LIBERTAS COMMUNITY HOME,MERCADONA AV.AMANECER,47.19,PURCHASE OF FOOD (RAW MATERIALS),"GROCERY STORES, SUPERMARKETS"
30/08/2019,RUTH HOUSE,SAINSBURYS TO YOU 0686,16.30,PURCHASE OF FOOD (RAW MATERIALS),"GROCERY STORES, SUPERMARKETS"
30/08/2019,RUTH HOUSE,SAINSBURYS TO YOU 0686,63.20,PURCHASE OF FOOD (RAW MATERIALS),"GROCERY STORES, SUPERMARKETS"
30/08/2019,RUTH HOUSE,AMZNMKTPLACE,75.96,EQUIPMENT,MISCELLANEOUS AND SPECIALTY RETAIL STORES
30/08/2019,WEST CWD LAC CARE,THE RANGE,458.71,EQUIPMENT,DEPARTMENT STORES
30/08/2019,WEST CWD LAC CARE,ARGOS RETAIL GROUP,249.98,EQUIPMENT,DISCOUNT STORES
30/08/2019,RUTH HOUSE,NOWTV.COM/BILLINGHELP,3.99,EDUC VISITS/HOLS/CAMPS/TOYS,"CABLE, SATELLITE, OTHER PAY TELEVISION, RADIO SVCS"
30/08/2019,FOSTERING SERVICE CENTRAL COSTS,SAINSBURYS,11.00,REFRESHMENT COSTS,"GROCERY STORES, SUPERMARKETS"
30/08/2019,TRANSPORT,DIRECT SUPPLY,-3.59,"CLOTHING, UNIFORM AND LAUNDRY",MOTOR VEHICLE SUPPLIES AND NEW PARTS
30/08/2019,FOSTERING SERVICE CENTRAL COSTS,SAINSBURYS,11.00,REFRESHMENT COSTS,"GROCERY STORES, SUPERMARKETS"
30/08/2019,SE CARE - CP & COURT LAC,L B SOUTHWARK - INT,33.00,OTHER COMMUNITY CARE VOL,GOVERNMENT SERVICES-NOT ELSEWHERE CLASSIFIED
30/08/2019,SE CARE - CP & COURT LAC,L B SOUTHWARK - INT,33.00,OTHER COMMUNITY CARE VOL,GOVERNMENT SERVICES-NOT ELSEWHERE CLASSIFIED
30/08/2019,NE SECTION 17 CARE,WWW.PONTINS.CO.UK,288.00,INDEPENDENT LIVING PLACEMENTS,"LODGING-HOTELS,MOTELS,RESORTS-NOT CLASSIFIED"
30/08/2019,SE CARE - NON-LAC CP & COURT,ROADRUNNERS MINICABS,18.60,NON-STAFF RELATED TRANSPORT COSTS,LIMOUSINES AND TAXICABS
30/08/2019,SE CARE - NON-LAC CP & COURT,ROADRUNNERS MINICABS,18.60,NON-STAFF RELATED TRANSPORT COSTS,LIMOUSINES AND TAXICABS
30/08/2019,NE SECTION 17 CARE,247 247 TAXIS,40.00,NON-STAFF RELATED TRANSPORT COSTS,LIMOUSINES AND TAXICABS
30/08/2019,SE CARE - LAC,SURREY CC CARD PAY,33.00,OTHER COMMUNITY CARE VOL,COMPUTER NETWORK/INFORMATION SERVICES
30/08/2019,SE CARE - LAC,SURREY CC CARD PAY,33.00,OTHER COMMUNITY CARE VOL,COMPUTER NETWORK/INFORMATION SERVICES
30/08/2019,LIBERTAS COMMUNITY HOME,TESCO STORES 2025,122.75,PURCHASE OF FOOD (RAW MATERIALS),"GROCERY STORES, SUPERMARKETS"
30/08/2019,BURBANK COMMUNITY HOME,GOLDEN COAST HOLIDAY P,48.25,EDUC VISITS/HOLS/CAMPS/TOYS,"BAR,LOUNGE,DISCO,NIGHTCLUB,TAVERN-ALCOHOLIC DRINKS"
30/08/2019,BIKEABILITY - CYCLE TRAINING,THE BIKEABILITY TRUST,123.96,EQUIPMENT,STATIONERY/OFFICE SUPPLIES/PRINTING & WRITING PAP.
31/08/2019,LIBERTAS COMMUNITY HOME,AUTOPISTA MARE NOSTRUM,8.01,EDUC VISITS/HOLS/CAMPS/TOYS,"BRIDGE AND ROAD FEES, TOLLS"
31/08/2019,CHEYNE WALK COMMUNITY HOME,ORIGINAL FACTORY S,64.00,EQUIPMENT,DEPARTMENT STORES
31/08/2019,CHEYNE WALK COMMUNITY HOME,LAZER WORLD,6.00,EDUC VISITS/HOLS/CAMPS/TOYS,RECREATION SERVICES (NOT ELSEWHERE CLASSIFIED)
31/08/2019,CHEYNE WALK COMMUNITY HOME,LAZER WORLD,20.00,EDUC VISITS/HOLS/CAMPS/TOYS,RECREATION SERVICES (NOT ELSEWHERE CLASSIFIED)
31/08/2019,KARIBU COMMUNITY HOME,TESCO STORE 2812,189.02,PURCHASE OF FOOD (RAW MATERIALS),"GROCERY STORES, SUPERMARKETS"
31/08/2019,HILLSIDE,TRL CARPARK,6.00,EDUC VISITS/HOLS/CAMPS/TOYS,AUTOMOBILE PARKING LOTS AND GARAGES
31/08/2019,BURBANK COMMUNITY HOME,SUPERMARKET AT GC,15.24,EDUC VISITS/HOLS/CAMPS/TOYS,"GROCERY STORES, SUPERMARKETS"
31/08/2019,CHEYNE WALK COMMUNITY HOME,EASYJET,333.93,EDUC VISITS/HOLS/CAMPS/TOYS,EASYJET
31/08/2019,CHEYNE WALK COMMUNITY HOME,EASYJET,192.28,EDUC VISITS/HOLS/CAMPS/TOYS,EASYJET
31/08/2019,FAIRCROFT COMMUNITY HOME,KFC,9.57,REFRESHMENT COSTS,FAST FOOD RESTAURANTS
31/08/2019,FAIRCROFT COMMUNITY HOME,MCDONALDS,8.56,REFRESHMENT COSTS,FAST FOOD RESTAURANTS
31/08/2019,FAIRCROFT COMMUNITY HOME,HARRY RAMSDENS,9.99,REFRESHMENT COSTS,"MISC FOOD STORE-CONVENIENCE,MRKT,SPLTY,VENDNG MACS"
31/08/2019,FAIRCROFT COMMUNITY HOME,WELCOME BREAK STARBUCK,4.35,REFRESHMENT COSTS,"MISC FOOD STORE-CONVENIENCE,MRKT,SPLTY,VENDNG MACS"
31/08/2019,WEB OPERATIONS TEAM,REPORTURI 100K REPORTS,15.23,SUBSCRIPTIONS,COMPUTER SOFTWARE STORES
31/08/2019,EXTENDED HOPE,TESCO STORE 2590,89.83,PURCHASE OF FOOD (RAW MATERIALS),"GROCERY STORES, SUPERMARKETS"
31/08/2019,CHEYNE WALK COMMUNITY HOME,TESCO STORE 2560,14.27,CLEANING MATERIALS,"GROCERY STORES, SUPERMARKETS"
31/08/2019,CHEYNE WALK COMMUNITY HOME,BOOTS/0837,25.44,EDUC VISITS/HOLS/CAMPS/TOYS,"DRUG STORES, PHARMACIES"
31/08/2019,ACL CENTRAL EXPENDITURE,AMZNMKTPLACE,15.29,EQUIPMENT,MISCELLANEOUS AND SPECIALTY RETAIL STORES
31/08/2019,LIBERTAS COMMUNITY HOME,SSP AEROPUERTO ALC,13.00,PURCHASE OF FOOD (RAW MATERIALS),"EATING PLACES, RESTAURANTS"
31/08/2019,LIBERTAS COMMUNITY HOME,EAT AEROPUERTO ALICANT,67.59,PURCHASE OF FOOD (RAW MATERIALS),FAST FOOD RESTAURANTS
31/08/2019,LIBERTAS COMMUNITY HOME,ALICANTE AEROPUERTO,5.70,EDUC VISITS/HOLS/CAMPS/TOYS,"BAR,LOUNGE,DISCO,NIGHTCLUB,TAVERN-ALCOHOLIC DRINKS"
31/08/2019,LIBERTAS COMMUNITY HOME,VICTORIA CAR HIRE,-39.98,EDUC VISITS/HOLS/CAMPS/TOYS,AUTOMOBILE RENTAL AGENCY-NOT ELSEWHERE CLASSIFIED
31/08/2019,NW LAC AND LEAVING CARE,AARON CARS,26.40,TRANSPORT SOCIAL CARE-TAXI,LIMOUSINES AND TAXICABS
31/08/2019,RUTH HOUSE,PRODUCT SUPPORT AG,54.00,EQUIPMENT,ELECTRONIC SALES
31/08/2019,BURBANK COMMUNITY HOME,GOLDEN COAST HOLIDAY P,8.00,EDUC VISITS/HOLS/CAMPS/TOYS,RECREATIONAL AND SPORTING CAMPS
31/08/2019,HOPE SERVICE - WEST,AMZNMKTPLACE,23.94,CURRICULUM CONSUMABLES,MISCELLANEOUS AND SPECIALTY RETAIL STORES
01/09/2019,MISC EDCAT SUPPORT,INDEED,240.64,STAFF ADVERTISING ,BUSINESS SERVICES-NOT ELSEWHERE CLASSIFIED
01/09/2019,SUPERFAST BROADBAND ECONOMIC DEVELOPMENT,GOOGLE  GSUITE_SUPERFA,8.25,COMPUTER SERVICES,DIRECT MARKETING-CONTINUITY/SUBSCRIPTION MERCHANTS
01/09/2019,BURBANK COMMUNITY HOME,THE OLD MILL,100.45,EDUC VISITS/HOLS/CAMPS/TOYS,"EATING PLACES, RESTAURANTS"
01/09/2019,ACL CENTRAL EXPENDITURE,AMZNMKTPLACE,10.98,EQUIPMENT,MISCELLANEOUS AND SPECIALTY RETAIL STORES
01/09/2019,CHEYNE WALK COMMUNITY HOME,FUTBOL CLUB BARCELONA,60.78,EDUC VISITS/HOLS/CAMPS/TOYS,TOURIST ATTRACTIONS AND EXHIBITS
01/09/2019,CHEYNE WALK COMMUNITY HOME,TESCO STORE 2560,24.40,PURCHASE OF FOOD (RAW MATERIALS),"GROCERY STORES, SUPERMARKETS"
01/09/2019,ACL CENTRAL EXPENDITURE,AMZNMKTPLACE,74.71,DAY TO DAY MAINTENANCE,MISCELLANEOUS AND SPECIALTY RETAIL STORES
01/09/2019,ACL CENTRAL EXPENDITURE,AMAZON.CO.UK MA5U24A74,464.23,CURRIC BOOKS,DIRECT MARKETING-OTHER DIRECT MARKETERS/NOT ELSEW.
01/09/2019,FAIRCROFT COMMUNITY HOME,STARBUCKS,6.95,REFRESHMENT COSTS,FAST FOOD RESTAURANTS
01/09/2019,FAIRCROFT COMMUNITY HOME,COSTA COFFEE,3.65,REFRESHMENT COSTS,FAST FOOD RESTAURANTS
01/09/2019,FAIRCROFT COMMUNITY HOME,KINGSTON EE CF,12.50,NON-STAFF RELATED TRANSPORT COSTS,AUTOMOBILE PARKING LOTS AND GARAGES
01/09/2019,FAIRCROFT COMMUNITY HOME,GAME RETAIL,20.00,EDUC VISITS/HOLS/CAMPS/TOYS,"GAME, TOY, AND HOBBY SHOPS"
01/09/2019,FAIRCROFT COMMUNITY HOME,SBLENDED MILKSHAKES,3.60,REFRESHMENT COSTS,FAST FOOD RESTAURANTS
01/09/2019,FAIRCROFT COMMUNITY HOME,TESCO STORES 6156,4.50,PURCHASE OF FOOD (RAW MATERIALS),"GROCERY STORES, SUPERMARKETS"
01/09/2019,FAIRCROFT COMMUNITY HOME,TESCO STORES 6156,4.10,PURCHASE OF FOOD (RAW MATERIALS),"GROCERY STORES, SUPERMARKETS"
01/09/2019,FAIRCROFT COMMUNITY HOME,MCDONALDS,11.27,REFRESHMENT COSTS,FAST FOOD RESTAURANTS
01/09/2019,WOODLANDS COMMUNITY HOME,SAINSBURYS TO YOU 0686,26.90,PURCHASE OF FOOD (RAW MATERIALS),"GROCERY STORES, SUPERMARKETS"
01/09/2019,WOODLANDS COMMUNITY HOME,SAINSBURYS TO YOU 0686,57.75,PURCHASE OF FOOD (RAW MATERIALS),"GROCERY STORES, SUPERMARKETS"
01/09/2019,CHEYNE WALK COMMUNITY HOME,AIRBNB   HMAHXHXTXA,245.69,EDUC VISITS/HOLS/CAMPS/TOYS,"LODGING-HOTELS,MOTELS,RESORTS-NOT CLASSIFIED"
01/09/2019,CHEYNE WALK COMMUNITY HOME,AIRBNB   HMANZM8JXS,141.50,EDUC VISITS/HOLS/CAMPS/TOYS,"LODGING-HOTELS,MOTELS,RESORTS-NOT CLASSIFIED"
01/09/2019,CHEYNE WALK COMMUNITY HOME,JUSTPARK,-6.00,EDUC VISITS/HOLS/CAMPS/TOYS,AUTOMOBILE PARKING LOTS AND GARAGES
01/09/2019,ASSET PLANNING - OPERATIONS,CURRYS S/S,54.98,COMPUTER HARDWARE,ELECTRONIC SALES
01/09/2019,ACL CENTRAL EXPENDITURE,AMZNMKTPLACE,70.63,EQUIPMENT,MISCELLANEOUS AND SPECIALTY RETAIL STORES
01/09/2019,BURBANK COMMUNITY HOME,LIDL GB BARNSTAPLE,11.33,PURCHASE OF FOOD (RAW MATERIALS),"GROCERY STORES, SUPERMARKETS"
01/09/2019,BURBANK COMMUNITY HOME,LIDL GB BARNSTAPLE,4.72,PURCHASE OF FOOD (RAW MATERIALS),"GROCERY STORES, SUPERMARKETS"
01/09/2019,NE TARGETTED YOUTH SUPPORT,AMZNMKTPLACE,34.99,EQUIPMENT,MISCELLANEOUS AND SPECIALTY RETAIL STORES
01/09/2019,TRANSPORT,AMZNMKTPLACE,199.87,"CLOTHING, UNIFORM AND LAUNDRY",MISCELLANEOUS AND SPECIALTY RETAIL STORES
02/09/2019,TRANSPORT,AMZNMKTPLACE AMAZON.CO,61.92,COMPUTER HARDWARE,MISCELLANEOUS AND SPECIALTY RETAIL STORES
02/09/2019,PE/CDT MAINTENANCE OVERHEADS,MARK HARROD LTD,112.20,ITEMS PURCHASED FOR RE-SALE,SPORTING GOODS STORES
02/09/2019,SHELL UK LICENSING,WWW.CENTRALBEDFORDSHIR,384.00,FEES,GOVERNMENT SERVICES-NOT ELSEWHERE CLASSIFIED
02/09/2019,SE CARE - LAC,HM PASSPORT OFFICE,49.00,OTHER COMMUNITY CARE VOL,GOVERNMENT SERVICES-NOT ELSEWHERE CLASSIFIED
02/09/2019,ARUNDEL,PREMIER INN,432.00,EDUC VISITS/HOLS/CAMPS/TOYS,PREMIER INN
02/09/2019,ARUNDEL,PREMIER INN,394.00,EDUC VISITS/HOLS/CAMPS/TOYS,PREMIER INN
02/09/2019,ARUNDEL,PREMIER INN,432.00,EDUC VISITS/HOLS/CAMPS/TOYS,PREMIER INN
02/09/2019,ARUNDEL,PREMIER INN,394.00,EDUC VISITS/HOLS/CAMPS/TOYS,PREMIER INN
02/09/2019,ARUNDEL,PREMIER INN,394.00,EDUC VISITS/HOLS/CAMPS/TOYS,PREMIER INN
02/09/2019,NW NIL RECOURSE TO PUBLIC FUNDS CARE,PREMIER INN,504.50,INDEPENDENT LIVING PLACEMENTS,PREMIER INN
02/09/2019,LEGAL EXPENSES - CORPORATE GROUP,COMPANIES HOUSE,13.00,FEES,GOVERNMENT SERVICES-NOT ELSEWHERE CLASSIFIED
02/09/2019,LEGAL EXPENSES - CORPORATE GROUP,COMPANIES HOUSE,13.00,FEES,GOVERNMENT SERVICES-NOT ELSEWHERE CLASSIFIED
02/09/2019,LEGAL EXPENSES - CORPORATE GROUP,COMPANIES HOUSE,13.00,FEES,GOVERNMENT SERVICES-NOT ELSEWHERE CLASSIFIED
02/09/2019,FAIRCROFT COMMUNITY HOME,RINGGO PARKING,1.39,MISCELLANEOUS STAFF TRAVEL,AUTOMOBILE PARKING LOTS AND GARAGES
02/09/2019,FAIRCROFT COMMUNITY HOME,ZIZZI GUILDFORD,55.62,REFRESHMENT COSTS,"EATING PLACES, RESTAURANTS"
02/09/2019,ASSET PLANNING - OPERATIONS,IMPACT TEST EQUIPMENT,54.00,EQUIPMENT,INDUSTRIAL SUPPLIES NOT ELSEWHERE CLASSIFIED
02/09/2019,RUTH HOUSE,AMAZON PRIME MA0W041N4,7.99,EDUC VISITS/HOLS/CAMPS/TOYS,DIRECT MARKETING-CONTINUITY/SUBSCRIPTION MERCHANTS
02/09/2019,RUTH HOUSE,SAINSBURYS TO YOU 0675,43.80,PURCHASE OF FOOD (RAW MATERIALS),"GROCERY STORES, SUPERMARKETS"
02/09/2019,WEST CWD LAC CARE,DUNELM LTD,-25.00,EQUIPMENT,"DRAPERY, UPOLSTERY, AND WINDOW COVERINGS STORES"
02/09/2019,BURBANK COMMUNITY HOME,WELCOME BREAK KFC,15.75,PURCHASE OF FOOD (RAW MATERIALS),"MISC FOOD STORE-CONVENIENCE,MRKT,SPLTY,VENDNG MACS"
02/09/2019,BURBANK COMMUNITY HOME,WELCOME BREAK-GORDANO,21.57,PURCHASE OF FOOD (RAW MATERIALS),"MISC FOOD STORE-CONVENIENCE,MRKT,SPLTY,VENDNG MACS"
02/09/2019,HILLSIDE,SAINSBURYS 0784,25.15,PURCHASE OF FOOD (RAW MATERIALS),"GROCERY STORES, SUPERMARKETS"
02/09/2019,BURBANK COMMUNITY HOME,WELCOME B/WAITROSE,3.50,EDUC VISITS/HOLS/CAMPS/TOYS,"MISC FOOD STORE-CONVENIENCE,MRKT,SPLTY,VENDNG MACS"
02/09/2019,BURBANK COMMUNITY HOME,SUBWAY,3.99,EDUC VISITS/HOLS/CAMPS/TOYS,FAST FOOD RESTAURANTS
02/09/2019,SE EDUCATION PSYCHOLOGISTS,AMAZON.CO.UK MA2BE0J74,867.65,EQUIPMENT,DIRECT MARKETING-OTHER DIRECT MARKETERS/NOT ELSEW.
02/09/2019,BURBANK COMMUNITY HOME,SAINSBURYS TO YOU 0686,299.68,PURCHASE OF FOOD (RAW MATERIALS),"GROCERY STORES, SUPERMARKETS"
02/09/2019,MISC EDCAT SUPPORT,AMAZON.CO.UK MA0SB2AU4,133.54,COMPUTER HARDWARE,DIRECT MARKETING-OTHER DIRECT MARKETERS/NOT ELSEW.
02/09/2019,HERITAGE PUBLIC SERVICE,BOOKER LIMITED ALDERSH,46.50,ITEMS PURCHASED FOR RE-SALE,CATERERS
02/09/2019,HOPE SERVICE - WEST,SAINSBURYS SACAT 0683,44.25,PURCHASE OF FOOD (RAW MATERIALS),"GROCERY STORES, SUPERMARKETS"
02/09/2019,TRANSPORT,AMZNMKTPLACE,42.22,STATIONERY,MISCELLANEOUS AND SPECIALTY RETAIL STORES
02/09/2019,PE/CDT MAINTENANCE OVERHEADS,TABLETENNISTABLE.CO.UK,60.00,ITEMS PURCHASED FOR RE-SALE,"SPORTS APPAREL, RIDING APPAREL STORES"
02/09/2019,PE/CDT MAINTENANCE OVERHEADS,BROXAP LTD,374.40,ITEMS PURCHASED FOR RE-SALE,GENERAL CONTRACTORS/RESIDENTIAL BUILDINGS
02/09/2019,PE/CDT MAINTENANCE OVERHEADS,JOHNSON HEALTH TECH UK,819.34,ITEMS PURCHASED FOR RE-SALE,SPORTING GOODS STORES
02/09/2019,PE/CDT MAINTENANCE OVERHEADS,WWW.NISSEN.UK.COM,768.00,ITEMS PURCHASED FOR RE-SALE,SPORTING GOODS STORES
02/09/2019,PE/CDT MAINTENANCE OVERHEADS,YORKLEEN LTD,462.00,EQUIPMENT,"SANITATION, POLISHING & SPECIALITY CLEANING PREP"
02/09/2019,PE/CDT MAINTENANCE OVERHEADS,SCREWFIX DIRECT,148.68,EQUIPMENT,HOME SUPPLY WAREHOUSE STORES
02/09/2019,MALLOW CRESCENT,TESCO STORE 2590,75.90,PURCHASE OF FOOD (RAW MATERIALS),"GROCERY STORES, SUPERMARKETS"
02/09/2019,MALLOW CRESCENT,TESCO STORE 2590,60.69,PURCHASE OF FOOD (RAW MATERIALS),"GROCERY STORES, SUPERMARKETS"
02/09/2019,SHELL UK LICENSING,WILTSHIRE COUNTY C,339.00,FEES,GOVERNMENT SERVICES-NOT ELSEWHERE CLASSIFIED
02/09/2019,MALLOW CRESCENT,TESCO STORE 2590,150.91,PURCHASE OF FOOD (RAW MATERIALS),"GROCERY STORES, SUPERMARKETS"
02/09/2019,LOCAL DELIVERY GROUP,AUTOGLASS,391.10,DAY TO DAY MAINTENANCE,"AUTOMOTIVE PARTS, ACCESSORIES STORES"
02/09/2019,NE SECTION 17 CARE,HOTELSCOM8118974456477,457.00,INDEPENDENT LIVING PLACEMENTS,TRAVEL AGENCIES AND TOUR OPERATORS
02/09/2019,NE SECTION 17 CARE,TRAVELODGE,642.00,INDEPENDENT LIVING PLACEMENTS,TRAVELODGE
02/09/2019,NE NIL RECOURSE TO PUBLIC FUNDS CARE,TRAVELODGE,472.00,INDEPENDENT LIVING PLACEMENTS,TRAVELODGE
02/09/2019,CPCS ENGAGEMENT TEAM,AMZNMKTPLACE AMAZON.CO,20.98,EQUIPMENT,MISCELLANEOUS AND SPECIALTY RETAIL STORES
02/09/2019,FAIRCROFT COMMUNITY HOME,TESCO STORE 2812,194.71,PURCHASE OF FOOD (RAW MATERIALS),"GROCERY STORES, SUPERMARKETS"
02/09/2019,FAIRCROFT COMMUNITY HOME,SAINSBURYS SACAT 0764,5.60,REFRESHMENT COSTS,"GROCERY STORES, SUPERMARKETS"
02/09/2019,FAIRCROFT COMMUNITY HOME,SAINSBURYS SACAT 0764,1.25,REFRESHMENT COSTS,"GROCERY STORES, SUPERMARKETS"
02/09/2019,FAIRCROFT COMMUNITY HOME,DOMINOS,14.99,REFRESHMENT COSTS,"EATING PLACES, RESTAURANTS"
02/09/2019,SPLASH PROJECT,AMAZON PRIME MA2KG60M4,7.99,EDUC VISITS/HOLS/CAMPS/TOYS,DIRECT MARKETING-CONTINUITY/SUBSCRIPTION MERCHANTS
02/09/2019,SPLASH PROJECT,AMAZON PRIME,-7.99,EDUC VISITS/HOLS/CAMPS/TOYS,DIRECT MARKETING-CONTINUITY/SUBSCRIPTION MERCHANTS
02/09/2019,ROW VOLUNTEERS WEST                     ,SHELL BURNT CM 199,8.00,PETROL/DIESEL ALL OFF BUSINESS,SERVICE STATIONS WITH OR WITHOUT ANCILLARY SERVICE
02/09/2019,EXTENDED HOPE,TESCO STORE 2590,65.59,PURCHASE OF FOOD (RAW MATERIALS),"GROCERY STORES, SUPERMARKETS"
02/09/2019,TRANSPORT,AMZNMKTPLACE,-8.69,"CLOTHING, UNIFORM AND LAUNDRY",MISCELLANEOUS AND SPECIALTY RETAIL STORES
03/09/2019,BURBANK COMMUNITY HOME,PRIMARK,16.00,"CLOTHING, UNIFORM AND LAUNDRY",FAMILY CLOTHING STORES
03/09/2019,CHEYNE WALK COMMUNITY HOME,PORTAVENTURA WEB TICKE,82.13,EDUC VISITS/HOLS/CAMPS/TOYS,"AMUSEMENT PARKS,CARNIVALS,CIRCUS,FORTUNE TELLERS"
03/09/2019,TRAINING AND DEVELOPMENT,PREMIER INN,263.00,TRAINING EXPENSES EXTERNAL GENERAL,PREMIER INN
03/09/2019,YSS YOUTH CENTRE IMPROVEMENTS,TVLICENSING.CO.UK,154.50,LICENCE FEES,"CONSULTING, MANAGEMENT, AND PUBLIC RELATIONS SVCS"
03/09/2019,ORCHARD COURT,CURRYS ONLINE,379.00,EQUIPMENT,ELECTRONIC SALES
03/09/2019,ORCHARD COURT,WWW.ARGOS.CO.UK,369.00,EQUIPMENT,DISCOUNT STORES
03/09/2019,NE TARGETTED YOUTH SUPPORT,WP-GO4AWALK.COM,14.95,EQUIPMENT,INFORMATION RETRIEVAL SERVICES
03/09/2019,ACL CENTRAL EXPENDITURE,AMAZON PRIME MA26G7PZ4,7.99,EQUIPMENT,DIRECT MARKETING-CONTINUITY/SUBSCRIPTION MERCHANTS
03/09/2019,CHEYNE WALK COMMUNITY HOME,EASYJET,25.49,EDUC VISITS/HOLS/CAMPS/TOYS,EASYJET
03/09/2019,CHEYNE WALK COMMUNITY HOME,EASYJET,26.92,EDUC VISITS/HOLS/CAMPS/TOYS,EASYJET
03/09/2019,ARUNDEL,TESCO STORES 5999,108.32,REFRESHMENT COSTS,"GROCERY STORES, SUPERMARKETS"
03/09/2019,MAYFORD CENTRE - BUSINESS,HORACE SMITH LOCKSMITH,23.80,EQUIPMENT,HARDWARE STORES
03/09/2019,SERVICE DELIVERY RESOURCES,WWW.TROPHYSTORE.CO.UK,51.48,DESCRIPTION &AWARD LONG SERVICE,"GIFT, CARD, NOVELTY AND SOUVENIR SHOPS"
03/09/2019,ISPSB - ADAPTATIONS & IMPROVEMENTS,NRS HEALTHCARE,53.14,EQUIPMENT,DENTAL/LAB/MED/OPHTHALMIC HOSP EQUIP & SUPPLIES
03/09/2019,MALLOW CRESCENT,DIABETES UK SERVICES,15.00,TRAINING EXPENSES EXTERNAL GENERAL,"ORGANIZATIONS, CHARITABLE AND SOCIAL SERVICES"
03/09/2019,MALLOW CRESCENT,DIABETES UK SERVICES,15.00,TRAINING EXPENSES EXTERNAL GENERAL,"ORGANIZATIONS, CHARITABLE AND SOCIAL SERVICES"
03/09/2019,MALLOW CRESCENT,DIABETES UK SERVICES,15.00,TRAINING EXPENSES EXTERNAL GENERAL,"ORGANIZATIONS, CHARITABLE AND SOCIAL SERVICES"
03/09/2019,WOODLANDS COMMUNITY HOME,SAINSBURYS 0686,7.98,EQUIPMENT,"GROCERY STORES, SUPERMARKETS"
03/09/2019,WOODLANDS COMMUNITY HOME,SAINSBURYS 0686,40.50,CLEANING MATERIALS,"GROCERY STORES, SUPERMARKETS"
03/09/2019,WOODLANDS COMMUNITY HOME,SAINSBURYS 0686,40.50,PURCHASE OF FOOD (RAW MATERIALS),"GROCERY STORES, SUPERMARKETS"
03/09/2019,LIBRARIES CENTRAL,AMZNMKTPLACE,13.48,EQUIPMENT,MISCELLANEOUS AND SPECIALTY RETAIL STORES
03/09/2019,TRANSPORT,SCHOOL BOTTLE,597.60,EQUIPMENT,MISCELLANEOUS AND SPECIALTY RETAIL STORES
03/09/2019,SOLD ESTATES MANAGEMENT,SCREWFIX DIRECT,14.88,DAY TO DAY MAINTENANCE,HOME SUPPLY WAREHOUSE STORES
03/09/2019,SOLD CENTRE IMPROVEMENT,PROJECTORPOINT.CO.UK,475.20,EQUIPMENT,ELECTRICAL PARTS AND EQUIPMENT
03/09/2019,HOPE SERVICE - WEST,AMAZON.CO.UK MA8KY51R4,17.48,CURRICULUM CONSUMABLES,DIRECT MARKETING-OTHER DIRECT MARKETERS/NOT ELSEW.
03/09/2019,HOPE SERVICE - WEST,AMZNMKTPLACE,11.38,CURRICULUM CONSUMABLES,MISCELLANEOUS AND SPECIALTY RETAIL STORES
03/09/2019,HOPE SERVICE - WEST,AMZNMKTPLACE AMAZON.CO,44.25,CURRICULUM CONSUMABLES,MISCELLANEOUS AND SPECIALTY RETAIL STORES
03/09/2019,PROPERTY OPERATIONS TEAM,WICKES HANWORTH,26.96,PURCHASE OF BUILDING MATERIALS,HOME SUPPLY WAREHOUSE STORES
03/09/2019,HR LEADERSHIP DEVELOPMENT,PODNOSH,200.00,BOOKS,"CONSULTING, MANAGEMENT, AND PUBLIC RELATIONS SVCS"
03/09/2019,LIBERTAS COMMUNITY HOME,ONE STOP 1523,1.40,REFRESHMENT COSTS,"GROCERY STORES, SUPERMARKETS"
03/09/2019,HILLSIDE,SAINSBURYS 0784,8.95,PURCHASE OF FOOD (RAW MATERIALS),"GROCERY STORES, SUPERMARKETS"
03/09/2019,COUNTY HALL,JCM LOCKSMITHS LTD,472.66,EQUIPMENT,HARDWARE STORES
03/09/2019,NATIONAL TRADING STANDARDS SCAM TEAM,INSTITUTE OF COUNSELLI,539.00,TRAINING EXPENSES EXTERNAL GENERAL,SCHOOLS & EDUCATIONAL SVC-NOT ELSEWHERE CLASSIFIED
03/09/2019,NATIONAL TRADING STANDARDS SCAM TEAM,INSTITUTE OF COUNSELLI,539.00,TRAINING EXPENSES EXTERNAL GENERAL,SCHOOLS & EDUCATIONAL SVC-NOT ELSEWHERE CLASSIFIED
03/09/2019,PASSENGER TRANSPORT CO-ORDINATION CENTRE,WINSTANLEYS PRAMWORLD,399.90,EQUIPMENT,MISCELLANEOUS AND SPECIALTY RETAIL STORES
03/09/2019,FAIRCROFT COMMUNITY HOME,GAME RETAIL,14.00,EDUC VISITS/HOLS/CAMPS/TOYS,"GAME, TOY, AND HOBBY SHOPS"
03/09/2019,FAIRCROFT COMMUNITY HOME,KFC KINGSTON,13.38,REFRESHMENT COSTS,FAST FOOD RESTAURANTS
03/09/2019,FAIRCROFT COMMUNITY HOME,STARBUCKS,7.30,REFRESHMENT COSTS,FAST FOOD RESTAURANTS
03/09/2019,FAIRCROFT COMMUNITY HOME,MOJANG.COM,17.95,EDUC VISITS/HOLS/CAMPS/TOYS,DIGITAL GOODS GAMES
03/09/2019,FAIRCROFT COMMUNITY HOME,Q PARK EDEN WALK,8.60,NON-STAFF RELATED TRANSPORT COSTS,AUTOMOBILE PARKING LOTS AND GARAGES
03/09/2019,ARMED FORCES COMMUNITY COVENANT GRANT,MARKS&SPENCER PLC,60.00,REFRESHMENT COSTS,"GROCERY STORES, SUPERMARKETS"
03/09/2019,ARUNDEL,J H LORIMER,11.00,STATIONERY,"OFFICE, SCHOOL SUPPLY, AND STATIONERY STORES"
03/09/2019,RUTH HOUSE,G J HONOUR,170.52,PURCHASE OF FOOD (RAW MATERIALS),"MISC FOOD STORE-CONVENIENCE,MRKT,SPLTY,VENDNG MACS"
03/09/2019,RUTH HOUSE,MY.MORRISONS.COM,20.00,REFRESHMENT COSTS,"GROCERY STORES, SUPERMARKETS"
03/09/2019,ACL CENTRAL EXPENDITURE,TESCO DELIVERY SAVER2,6.99,REFRESHMENT COSTS,DIRECT MARKETING-CONTINUITY/SUBSCRIPTION MERCHANTS
03/09/2019,ROW VOLUNTEERS WEST                     ,METHOLD VEHICLE HIRE,40.00,HIRE OF VEHICLES,AUTOMOBILE RENTAL AGENCY-NOT ELSEWHERE CLASSIFIED
03/09/2019,EXTENDED HOPE,HOBBYCRAFT,12.50,CURRICULUM CONSUMABLES,"ARTIST SUPPLY STORES, CRAFT SHOPS"
03/09/2019,CHALKMEAD,AMZNMKTPLACE,12.99,UPKEEP OF GROUNDS,MISCELLANEOUS AND SPECIALTY RETAIL STORES
03/09/2019,MAINTENANCE SURVEYING TEAM,WWW.RIBABOOKSHOPS.COM,"1,234.80",COMPUTER SOFTWARE,BOOK STORES
03/09/2019,ASSET PLANNING - OPERATIONS,SAINSBURYS SACAT 0652,23.75,REFRESHMENT COSTS,"GROCERY STORES, SUPERMARKETS"
03/09/2019,RUTH HOUSE,SAINSBURYS TO YOU 0686,23.45,PURCHASE OF FOOD (RAW MATERIALS),"GROCERY STORES, SUPERMARKETS"
03/09/2019,RUTH HOUSE,SAINSBURYS TO YOU 0686,113.80,PURCHASE OF FOOD (RAW MATERIALS),"GROCERY STORES, SUPERMARKETS"
03/09/2019,BURBANK COMMUNITY HOME,THE NEW INN,22.50,REFRESHMENT COSTS,"BAR,LOUNGE,DISCO,NIGHTCLUB,TAVERN-ALCOHOLIC DRINKS"
03/09/2019,BURBANK COMMUNITY HOME,W M MORRISON STORE,3.50,MEDICAL EXPENSES,"GROCERY STORES, SUPERMARKETS"
03/09/2019,BURBANK COMMUNITY HOME,LLOYDS AT SAINSBURYS,3.50,PURCHASE OF FOOD (RAW MATERIALS),"GROCERY STORES, SUPERMARKETS"
03/09/2019,BURBANK COMMUNITY HOME,SAINSBURYS SACAT 0686,13.50,"CLOTHING, UNIFORM AND LAUNDRY","GROCERY STORES, SUPERMARKETS"
03/09/2019,BURBANK COMMUNITY HOME,3C_ WOKING BOROUGH COU,1.40,MISCELLANEOUS STAFF TRAVEL,AUTOMOBILE PARKING LOTS AND GARAGES
03/09/2019,BURBANK COMMUNITY HOME,ASDA STORES 4823,17.25,"CLOTHING, UNIFORM AND LAUNDRY","GROCERY STORES, SUPERMARKETS"
03/09/2019,BURBANK COMMUNITY HOME,ARGOS BROOKWOOD IN,19.99,EQUIPMENT,DISCOUNT STORES
03/09/2019,CHEYNE WALK COMMUNITY HOME,AMAZON PRIME MA3F54P94,7.99,SUBSCRIPTIONS,DIRECT MARKETING-CONTINUITY/SUBSCRIPTION MERCHANTS
03/09/2019,HILLSIDE,SAINSBURYS SACAT 0784,22.35,PURCHASE OF FOOD (RAW MATERIALS),"GROCERY STORES, SUPERMARKETS"
03/09/2019,HILLSIDE,WILKO RETAIL LIMIT,7.00,EQUIPMENT,HOUSEHOLD APPLIANCE STORES
03/09/2019,LIBERTAS COMMUNITY HOME,TESCO STORES 2025,78.46,PURCHASE OF FOOD (RAW MATERIALS),"GROCERY STORES, SUPERMARKETS"
03/09/2019,NE LAC AND LEAVING CARE,DOMINOS PIZZA UK & IRE,25.62,CHILDREN ACT SEC 17 PAYMENTS,"EATING PLACES, RESTAURANTS"
03/09/2019,MALLOW CRESCENT,SAINSBURYS TO YOU 0652,105.33,PURCHASE OF FOOD (RAW MATERIALS),"GROCERY STORES, SUPERMARKETS"
03/09/2019,ORCHARD COURT,CURRYS ONLINE,379.00,EQUIPMENT,ELECTRONIC SALES
03/09/2019,FIRE SERVICES IT,AMZNMKTPLACE,25.49,COMPUTER HARDWARE,MISCELLANEOUS AND SPECIALTY RETAIL STORES
03/09/2019,ACCESS PROGRAMMES,AMZNMKTPLACE,86.49,EQUIPMENT,MISCELLANEOUS AND SPECIALTY RETAIL STORES
03/09/2019,TRANSPORT,AMAZON.CO.UK MA5ZW01V4,118.35,STATIONERY,DIRECT MARKETING-OTHER DIRECT MARKETERS/NOT ELSEW.
03/09/2019,CHEYNE WALK COMMUNITY HOME,AIRBNB   HMAHXHXTXA,-13.58,EDUC VISITS/HOLS/CAMPS/TOYS,"LODGING-HOTELS,MOTELS,RESORTS-NOT CLASSIFIED"
03/09/2019,CHEYNE WALK COMMUNITY HOME,AIRBNB   HMAHXHXTXA,-232.11,EDUC VISITS/HOLS/CAMPS/TOYS,"LODGING-HOTELS,MOTELS,RESORTS-NOT CLASSIFIED"
04/09/2019,WOODLANDS COMMUNITY HOME,AMZNMKTPLACE AMAZON.CO,-28.00,MISCELLANEOUS INSURANCE,MISCELLANEOUS AND SPECIALTY RETAIL STORES
04/09/2019,LIBERTAS COMMUNITY HOME,AMZNMKTPLACE AMAZON.CO,174.93,FIXTURES AND FITTINGS,MISCELLANEOUS AND SPECIALTY RETAIL STORES
04/09/2019,TRANSPORT,PREMIER VANGUARD L,816.48,OPERATIONAL FIRE EQUIPMENT,"OFFICE, SCHOOL SUPPLY, AND STATIONERY STORES"
04/09/2019,NATIONAL TRADING STANDARDS SCAM TEAM,BRITISH A,178.44,PURCHASE CARD TRANSACTION LOG DEFAULT,BRITISH A
04/09/2019,ACL CENTRAL EXPENDITURE,AMZNMKTPLACE AMAZON.CO,17.48,COMPUTER HARDWARE,MISCELLANEOUS AND SPECIALTY RETAIL STORES
04/09/2019,HAVEN GUILDFORD,TESCO STORE 2047,17.88,REFRESHMENT COSTS,"GROCERY STORES, SUPERMARKETS"
04/09/2019,CHALKMEAD,SOUTHERN COUNTY CARE,134.00,DAY TO DAY MAINTENANCE,"HEALTH PRACTITIONERS, MEDICAL SRVCS-NOT ELSEWHERE"
04/09/2019,BARNFIELD,SCREWFIX DIRECT,56.95,SECURITY ALARM MAINTENANCE,HOME SUPPLY WAREHOUSE STORES
04/09/2019,SCHOOL SPORT 2015-16                    ,WWW.BISHOPSPORT.CO.UK,136.74,EQUIPMENT,SPORTING GOODS STORES
04/09/2019,BURBANK COMMUNITY HOME,MIND WOKING,5.00,"CLOTHING, UNIFORM AND LAUNDRY","ORGANIZATIONS, CHARITABLE AND SOCIAL SERVICES"
04/09/2019,BURBANK COMMUNITY HOME,SELFSERVE TICKET,28.95,NON-STAFF RELATED TRANSPORT COSTS,PASSENGER RAILWAYS
04/09/2019,BURBANK COMMUNITY HOME,MCDONALDS,13.06,PURCHASE OF FOOD (RAW MATERIALS),FAST FOOD RESTAURANTS
04/09/2019,HILLSIDE,SAINSBURYS 0784,17.85,PURCHASE OF FOOD (RAW MATERIALS),"GROCERY STORES, SUPERMARKETS"
04/09/2019,CS BUSINESS SUPPORT WEST,AJPRODUCTSCOUK,30.00,FIXTURES AND FITTINGS,"OFFICE, SCHOOL SUPPLY, AND STATIONERY STORES"
04/09/2019,MALLOW CRESCENT,SAINSBURYS TO YOU 0652,-1.00,PURCHASE OF FOOD (RAW MATERIALS),"GROCERY STORES, SUPERMARKETS"
04/09/2019,ACL CENTRAL EXPENDITURE,WWW.TOOLSTATION.COM,39.90,EQUIPMENT,HARDWARE STORES
04/09/2019,ACL CENTRAL EXPENDITURE,WALSH - BIGGIN HILL,56.94,EQUIPMENT,"CLOCK, JEWELRY, WATCH, AND SILVERWARE STORE"
04/09/2019,SE TEACHERS,WWW.ELKLAN.CO.UK,66.00,EQUIPMENT,SCHOOLS & EDUCATIONAL SVC-NOT ELSEWHERE CLASSIFIED
04/09/2019,SE EDUCATION PSYCHOLOGISTS,BOOKPOINT LIMITED,93.50,EQUIPMENT,"BOOKS,PERIODICALS AND NEWSPAPERS"
04/09/2019,LOCAL DELIVERY GROUP,WWW.BEAL.ORG.UK,148.80,EQUIPMENT,ELECTRICAL PARTS AND EQUIPMENT
04/09/2019,WOODLANDS COMMUNITY HOME,AMZNMKTPLACE AMAZON.CO,232.48,CLEANING AND DOMESTIC SUPPLIES,MISCELLANEOUS AND SPECIALTY RETAIL STORES
04/09/2019,WOODLANDS COMMUNITY HOME,CURRYS ONLINE,253.00,CLEANING AND DOMESTIC SUPPLIES,ELECTRONIC SALES
04/09/2019,WOODLANDS COMMUNITY HOME,MCDONALDS,5.71,EDUC VISITS/HOLS/CAMPS/TOYS,"EATING PLACES, RESTAURANTS"
04/09/2019,WOODLANDS COMMUNITY HOME,AMZNMKTPLACE AMAZON.CO,-204.48,CLEANING AND DOMESTIC SUPPLIES,MISCELLANEOUS AND SPECIALTY RETAIL STORES
04/09/2019,SINGING PROGRAMMES,ACP  MUSIC-ROOM_GBP,428.40,CURRIC BOOKS,MISCELLANEOUS PUBLISHING AND PRINTING
04/09/2019,TRANSPORT,AMZNMKTPLACE,246.92,OPERATIONAL FIRE EQUIPMENT,MISCELLANEOUS AND SPECIALTY RETAIL STORES
04/09/2019,TRANSPORT,PARMA INDUSTRIES,468.86,OPERATIONAL FIRE EQUIPMENT,MOTOR VEHICLE SUPPLIES AND NEW PARTS
04/09/2019,SOLD MARKETING TEAM,AMZNMKTPLACE,115.98,PUBLICITY,MISCELLANEOUS AND SPECIALTY RETAIL STORES
04/09/2019,PE/CDT MAINTENANCE OVERHEADS,SCREWFIX DIRECT,343.38,EQUIPMENT,HOME SUPPLY WAREHOUSE STORES
04/09/2019,HAVEN YTH CENTRE,MARKS&SPENCER PLC,7.95,REFRESHMENT COSTS,"GROCERY STORES, SUPERMARKETS"
04/09/2019,SOUTH WEST OUTREACH,SAINSBURYS TO YOU 0652,49.10,PURCHASE OF FOOD (RAW MATERIALS),"GROCERY STORES, SUPERMARKETS"
04/09/2019,SOUTH WEST OUTREACH,SAINSBURYS TO YOU 0652,178.75,PURCHASE OF FOOD (RAW MATERIALS),"GROCERY STORES, SUPERMARKETS"
04/09/2019,NATIONAL TRADING STANDARDS SCAM TEAM,HOTELSCOM8047175556836,450.08,PURCHASE CARD TRANSACTION LOG DEFAULT,TRAVEL AGENCIES AND TOUR OPERATORS
04/09/2019,SE CARE - LAC,SURREY CC CARD PAY,70.00,OTHER COMMUNITY CARE VOL,COMPUTER NETWORK/INFORMATION SERVICES
04/09/2019,SE CARE - LAC,SURREY CC CARD PAY,70.00,OTHER COMMUNITY CARE VOL,COMPUTER NETWORK/INFORMATION SERVICES
04/09/2019,ABBEYWOOD,AKZONOBEL_UK,383.99,DAY TO DAY MAINTENANCE,"GLASS, PAINT, WALLPAPER STORES"
04/09/2019,ABBEYWOOD,AMZNMKTPLACE AMAZON.CO,234.98,FURNITURE,MISCELLANEOUS AND SPECIALTY RETAIL STORES
04/09/2019,ABBEYWOOD,WWW.PLASTICSHEETS.COM,27.39,DAY TO DAY MAINTENANCE,INDUSTRIAL SUPPLIES NOT ELSEWHERE CLASSIFIED
04/09/2019,ABBEYWOOD,AMZNMKTPLACE AMAZON.CO,-234.98,FURNITURE,MISCELLANEOUS AND SPECIALTY RETAIL STORES
04/09/2019,SOLD DAY TO DAY OPERATIONS,WWW.QUICKSARCHERY.CO.U,175.93,EQUIPMENT,SPORTING GOODS STORES
04/09/2019,CHEYNE WALK COMMUNITY HOME,TESCO-STORES 6647,171.14,PURCHASE OF FOOD (RAW MATERIALS),"GROCERY STORES, SUPERMARKETS"
04/09/2019,CHEYNE WALK COMMUNITY HOME,SAINSBURYS 0026,131.62,EQUIPMENT,"GROCERY STORES, SUPERMARKETS"
04/09/2019,CHEYNE WALK COMMUNITY HOME,B & Q 1155,89.00,FIXTURES AND FITTINGS,HOME SUPPLY WAREHOUSE STORES
04/09/2019,CHEYNE WALK COMMUNITY HOME,HOMEBASE LTD 087,69.25,FIXTURES AND FITTINGS,HOME SUPPLY WAREHOUSE STORES
04/09/2019,CHEYNE WALK COMMUNITY HOME,ARGOS WEST GREEN,14.99,FIXTURES AND FITTINGS,DISCOUNT STORES
04/09/2019,FAIRCROFT COMMUNITY HOME,ADIDAS UK LIMITED,46.94,"CLOTHING, UNIFORM AND LAUNDRY",SPORTING GOODS STORES
04/09/2019,FAIRCROFT COMMUNITY HOME,TESCO DELIVERY SAVER2,6.99,PURCHASE OF FOOD (RAW MATERIALS),DIRECT MARKETING-CONTINUITY/SUBSCRIPTION MERCHANTS
04/09/2019,FAIRCROFT COMMUNITY HOME,D AND E ROBERTS,388.80,DAY TO DAY MAINTENANCE,"UTLTS-ELCTRC, GAS, HEATING OIL, SANITARY, WATER"
04/09/2019,SPLASH PROJECT,AMZNMKTPLACE AMAZON.CO,38.47,EDUC VISITS/HOLS/CAMPS/TOYS,MISCELLANEOUS AND SPECIALTY RETAIL STORES
04/09/2019,SPLASH PROJECT,SAINSBURYS 0675,18.72,EDUC VISITS/HOLS/CAMPS/TOYS,"GROCERY STORES, SUPERMARKETS"
04/09/2019,SPLASH PROJECT,AMZ HAPPY HIPPO,-24.95,EDUC VISITS/HOLS/CAMPS/TOYS,MISCELLANEOUS AND SPECIALTY RETAIL STORES
04/09/2019,BURBANK COMMUNITY HOME,AMZNMKTPLACE,47.87,EQUIPMENT,MISCELLANEOUS AND SPECIALTY RETAIL STORES
04/09/2019,WEB OPERATIONS TEAM,WORDPRESS G2DATD6XWE,84.00,SUBSCRIPTIONS,"COMP PROGRAMING,DATA PRCSNG,INTGRTD SYS DSGN SRVS"
04/09/2019,MALLOW CRESCENT,SAINSBURYS TO YOU 0652,112.49,PURCHASE OF FOOD (RAW MATERIALS),"GROCERY STORES, SUPERMARKETS"
04/09/2019,TS SERVICE MANAGEMENT,TRADING STANDARDS INST,89.00,SUBSISTENCE AND CONFERENCE EXPENSES,DIRECT MARKETING-COMBINATION CATALOG/RETAIL MERCH.
04/09/2019,BURBANK COMMUNITY HOME,AMAZON.CO.UK MA2KY21L4,33.90,EQUIPMENT,DIRECT MARKETING-OTHER DIRECT MARKETERS/NOT ELSEW.
05/09/2019,WOODLANDS COMMUNITY HOME,SURREY CC CARD PAY,-60.00,STAFF TRAINING,COMPUTER NETWORK/INFORMATION SERVICES
05/09/2019,TRAVEL AND TRANSPORT GROUP,SURREY CC CARD PAY,-1.00,NON-STAFF RELATED TRANSPORT COSTS,COMPUTER NETWORK/INFORMATION SERVICES
05/09/2019,NATIONAL TRADING STANDARDS SCAM TEAM,BRITISH A,221.36,PURCHASE CARD TRANSACTION LOG DEFAULT,BRITISH A
05/09/2019,FAIRCROFT COMMUNITY HOME,AMZNMKTPLACE AMAZON.CO,29.48,EQUIPMENT,MISCELLANEOUS AND SPECIALTY RETAIL STORES
05/09/2019,FAIRCROFT COMMUNITY HOME,AMZNMKTPLACE AMAZON.CO,8.98,EQUIPMENT,MISCELLANEOUS AND SPECIALTY RETAIL STORES
05/09/2019,HOPE SERVICE - WEST,NBX CRAGGY ISLAND,60.00,EDUC VISITS/HOLS/CAMPS/TOYS,RECREATION SERVICES (NOT ELSEWHERE CLASSIFIED)
05/09/2019,ORBIS PENSION FUND AND TREASURY,MARRIOTT,145.00,PURCHASE CARD TRANSACTION LOG DEFAULT,MARRIOTT
05/09/2019,TRANSPORT,CALLANCOTE LTD,156.00,STATIONERY,INDUSTRIAL SUPPLIES NOT ELSEWHERE CLASSIFIED
05/09/2019,TRANSPORT,WAYFAIR #3008120804,372.94,FURNITURE,"EQUIP, FURNITURE, HOME FURNSHNGS STRS (EXCPT APPL)"
05/09/2019,HOPE SERVICE - WEST,SAINSBURYS TO YOU 0683,49.95,PURCHASE OF FOOD (RAW MATERIALS),"GROCERY STORES, SUPERMARKETS"
05/09/2019,PROJECTS AND CONTRACTS GROUP,WWW.BEAL.ORG.UK,29.52,EQUIPMENT,ELECTRICAL PARTS AND EQUIPMENT
05/09/2019,WOODLANDS COMMUNITY HOME,SURREY CC CARD PAY,60.00,STAFF TRAINING,COMPUTER NETWORK/INFORMATION SERVICES
05/09/2019,WOODLANDS COMMUNITY HOME,WWW.EUREKADIRECT.CO.UK,95.22,EQUIPMENT,DENTAL/LAB/MED/OPHTHALMIC HOSP EQUIP & SUPPLIES
05/09/2019,WOODLANDS COMMUNITY HOME,SAINSBURYS 0686,4.50,PURCHASE OF FOOD (RAW MATERIALS),"GROCERY STORES, SUPERMARKETS"
05/09/2019,WOODLANDS COMMUNITY HOME,SAINSBURYS 0686,17.20,PURCHASE OF FOOD (RAW MATERIALS),"GROCERY STORES, SUPERMARKETS"
05/09/2019,WOODLANDS COMMUNITY HOME,VALUE PRODUCTS LTD,22.96,EQUIPMENT,MISCELLANEOUS AND SPECIALTY RETAIL STORES
05/09/2019,ENSEMBLES & TOURS,JUST MUSIC,110.45,CURRIC BOOKS,"MUSIC STORES-INSTRUMENTS, PIANOS, SHEET MUSIC"
05/09/2019,ACL CENTRAL EXPENDITURE,WWW.FASTPRINT.CO.UK,98.01,EQUIPMENT,MISCELLANEOUS PUBLISHING AND PRINTING
05/09/2019,TRANSPORT,KEYMEX LTD,313.20,EQUIPMENT,HOUSEHOLD APPLIANCE STORES
05/09/2019,TRANSPORT,VIKING UK,335.90,FURNITURE,STATIONERY/OFFICE SUPPLIES/PRINTING & WRITING PAP.
05/09/2019,SOLD ESTATES MANAGEMENT,CASTLE VEHICLE LEASING,95.88,VEHICLE RUNNING COSTS,"SCHOOLS, BUSINESS AND SECRETARIAL"
05/09/2019,HOPE SERVICE - WEST,AMZNMKTPLACE AMAZON.CO,27.09,CLEANING AND DOMESTIC SUPPLIES,MISCELLANEOUS AND SPECIALTY RETAIL STORES
05/09/2019,HOPE SERVICE - WEST,AMZNMKTPLACE AMAZON.CO,15.95,CURRICULUM CONSUMABLES,MISCELLANEOUS AND SPECIALTY RETAIL STORES
05/09/2019,HOPE SERVICE - WEST,WWW.CGPBOOKS.CO.UK,15.95,BOOKS,MISCELLANEOUS AND SPECIALTY RETAIL STORES
05/09/2019,HOPE SERVICE - WEST,MARKALLENGROUP.COM/MA-,45.60,TRAINING EXPENSES EXTERNAL GENERAL,BUSINESS SERVICES-NOT ELSEWHERE CLASSIFIED
05/09/2019,MAINTENANCE SURVEYING TEAM,AMAZON.CO.UK MA4EM8PW4,61.93,EQUIPMENT,DIRECT MARKETING-OTHER DIRECT MARKETERS/NOT ELSEW.
05/09/2019,CHEYNE WALK COMMUNITY HOME,BT BILL PAYMENT 2,160.68,TELECOMMUNICATION CHARGES,TELECOMMUNICATION EQUIPMENT INCL TELEPHONE SALES
05/09/2019,PROPERTY OPERATIONS TEAM,SCREWFIX CAMBERLEY,512.82,PURCHASE OF BUILDING MATERIALS,"BUILDING MATERIALS, LUMBER STORES"
05/09/2019,PROPERTY OPERATIONS TEAM,SCREWFIX CAMBERLEY,53.97,PURCHASE OF BUILDING MATERIALS,"BUILDING MATERIALS, LUMBER STORES"
05/09/2019,B & C PRIMARY AUTHORITY PARTNERSHIP     ,STATES OF GUERNSEY,55.00,FEES,GOVERNMENT SERVICES-NOT ELSEWHERE CLASSIFIED
05/09/2019,TS SERVICE MANAGEMENT,SP   QUILL PRODUCTIONS,79.68,EQUIPMENT,"MISC FOOD STORE-CONVENIENCE,MRKT,SPLTY,VENDNG MACS"
05/09/2019,INSTRUMENT HIRE SHOP,WWW.ALDAUTOMOTIVE.CO.U,364.58,HIRE OF VEHICLES,BUSINESS SERVICES-NOT ELSEWHERE CLASSIFIED
05/09/2019,HILLSIDE,SAINSBURYS 0784,3.75,PURCHASE OF FOOD (RAW MATERIALS),"GROCERY STORES, SUPERMARKETS"
05/09/2019,LOCAL ASSISTANCE SCHEME,WILKO.COM,99.00,FURNITURE,MISCELLANEOUS GENERAL MERCHANDISE
05/09/2019,KARIBU COMMUNITY HOME,HOLIDAY PAYMENT VRUK,615.50,EDUC VISITS/HOLS/CAMPS/TOYS,TRAVEL AGENCIES AND TOUR OPERATORS
05/09/2019,HILLSIDE,ALDI 34 775,2.91,PURCHASE OF FOOD (RAW MATERIALS),"GROCERY STORES, SUPERMARKETS"
05/09/2019,HILLSIDE,ALDI 34 775,41.65,PURCHASE OF FOOD (RAW MATERIALS),"GROCERY STORES, SUPERMARKETS"
05/09/2019,TRAVEL AND TRANSPORT GROUP,SURREY CC CARD PAY,1.00,NON-STAFF RELATED TRANSPORT COSTS,COMPUTER NETWORK/INFORMATION SERVICES
05/09/2019,FAIRCROFT COMMUNITY HOME,STARBUCKS,4.20,REFRESHMENT COSTS,FAST FOOD RESTAURANTS
05/09/2019,FAIRCROFT COMMUNITY HOME,CREAMS,14.70,REFRESHMENT COSTS,"EATING PLACES, RESTAURANTS"
05/09/2019,FAIRCROFT COMMUNITY HOME,KINGSTON EE CF,5.90,NON-STAFF RELATED TRANSPORT COSTS,AUTOMOBILE PARKING LOTS AND GARAGES
05/09/2019,FAIRCROFT COMMUNITY HOME,PIZZA HUT 344,34.28,REFRESHMENT COSTS,"EATING PLACES, RESTAURANTS"
05/09/2019,ACL CENTRAL EXPENDITURE,TESCO STORE 2160,135.24,REFRESHMENT COSTS,"GROCERY STORES, SUPERMARKETS"
05/09/2019,ABBEYWOOD,AMZNMKTPLACE,25.37,STATIONERY,MISCELLANEOUS AND SPECIALTY RETAIL STORES
05/09/2019,ABBEYWOOD,B & Q 1237,169.30,DAY TO DAY MAINTENANCE,HOME SUPPLY WAREHOUSE STORES
05/09/2019,FAIRCROFT COMMUNITY HOME,ARGOS KILN LANE IN,99.95,EQUIPMENT,DISCOUNT STORES
05/09/2019,ACT,AMAZON.CO.UK MA92H8PN4,12.34,EQUIPMENT,DIRECT MARKETING-OTHER DIRECT MARKETERS/NOT ELSEW.
05/09/2019,ABBEYWOOD,AMZNMKTPLACE,158.48,FIXTURES AND FITTINGS,MISCELLANEOUS AND SPECIALTY RETAIL STORES
05/09/2019,ABBEYWOOD,WWW.ARGOS.CO.UK,158.93,FIXTURES AND FITTINGS,DISCOUNT STORES
05/09/2019,ACL CENTRAL EXPENDITURE,SAINSBURYS LOC 4334,15.40,REFRESHMENT COSTS,"GROCERY STORES, SUPERMARKETS"
05/09/2019,ROW VOLUNTEERS WEST                     ,METHOLD VEHICLE HIRE,54.00,HIRE OF VEHICLES,AUTOMOBILE RENTAL AGENCY-NOT ELSEWHERE CLASSIFIED
05/09/2019,ROW VOLUNTEERS WEST                     ,SHELL BURNT CM 199,10.00,PETROL/DIESEL ALL OFF BUSINESS,SERVICE STATIONS WITH OR WITHOUT ANCILLARY SERVICE
05/09/2019,CHALKMEAD,LAWSONS REDHILL,15.65,UPKEEP OF GROUNDS,CONSTRUCTION MATERIALS NOT ELSEWHERE CLASSIFIED
05/09/2019,CHALKMEAD,SCREWFIX DIRECT LT,36.74,DAY TO DAY MAINTENANCE,"BUILDING MATERIALS, LUMBER STORES"
05/09/2019,CHALKMEAD,MFG GATTON POINT,21.78,DAY TO DAY MAINTENANCE,SERVICE STATIONS WITH OR WITHOUT ANCILLARY SERVICE
05/09/2019,CHALKMEAD,WILKO RETAIL LIMIT,23.25,E25 CATERING EQUIPMENT,HOUSEHOLD APPLIANCE STORES
05/09/2019,CHEYNE WALK COMMUNITY HOME,COSTA COFFEE,14.35,REFRESHMENT COSTS,FAST FOOD RESTAURANTS
05/09/2019,CHEYNE WALK COMMUNITY HOME,SAVERS HEALTH & BEAUTY,31.34,EQUIPMENT,"DRUG STORES, PHARMACIES"
05/09/2019,CHEYNE WALK COMMUNITY HOME,ORIGINAL FACTORY S,10.00,EQUIPMENT,DEPARTMENT STORES
05/09/2019,BARNFIELD,B & M RETAIL,19.99,EQUIPMENT,DISCOUNT STORES
05/09/2019,BARNFIELD,POUNDLAND LTD 1279,15.00,EQUIPMENT,DISCOUNT STORES
05/09/2019,ASSET PLANNING - OPERATIONS,QA EQUIPMENT LTD,414.00,EQUIPMENT,DENTAL/LAB/MED/OPHTHALMIC HOSP EQUIP & SUPPLIES
05/09/2019,RUTH HOUSE,GIFFGAFF,6.00,TELECOMMUNICATION CHARGES,TELECOM INCL PREPAID/RECURRING PHONE SVCS
05/09/2019,NE SECTION 17 CARE,TRAVELODGE,227.50,INDEPENDENT LIVING PLACEMENTS,TRAVELODGE
05/09/2019,NE SECTION 17 CARE,TRAVELODGE,404.00,INDEPENDENT LIVING PLACEMENTS,TRAVELODGE
05/09/2019,SE CARE - LAC,GEN REGISTER OFFICE,36.00,OTHER COMMUNITY CARE VOL,GOVERNMENT SERVICES-NOT ELSEWHERE CLASSIFIED
05/09/2019,SE CARE - LAC,GEN REGISTER OFFICE,36.00,OTHER COMMUNITY CARE VOL,GOVERNMENT SERVICES-NOT ELSEWHERE CLASSIFIED
05/09/2019,CS BUSINESS SUPPORT WEST,AMZNMKTPLACE,9.91,"CLOTHING, UNIFORM AND LAUNDRY",MISCELLANEOUS AND SPECIALTY RETAIL STORES
05/09/2019,CS BUSINESS SUPPORT WEST,WWW.247BLINDS.CO.UK,32.99,FIXTURES AND FITTINGS,"DRAPERY, UPOLSTERY, AND WINDOW COVERINGS STORES"
05/09/2019,HOPE SERVICE - WEST,SAINSBURYS TO YOU 0686,118.70,PURCHASE OF FOOD (RAW MATERIALS),"GROCERY STORES, SUPERMARKETS"
05/09/2019,HOPE SERVICE - WEST,SAINSBURYS TO YOU 0686,-13.30,PURCHASE OF FOOD (RAW MATERIALS),"GROCERY STORES, SUPERMARKETS"
05/09/2019,QUADRANT COURT WOKING,FAST KEY SERVICES LIMI,32.17,EQUIPMENT,BUSINESS SERVICES-NOT ELSEWHERE CLASSIFIED
05/09/2019,ARUNDEL,TESCO STORES 5999,60.33,REFRESHMENT COSTS,"GROCERY STORES, SUPERMARKETS"
05/09/2019,ARUNDEL,TESCO STORES 5999,14.00,REFRESHMENT COSTS,"GROCERY STORES, SUPERMARKETS"
05/09/2019,ARUNDEL,HALFORDS 0839,9.50,VEHICLE REPAIRS AND MAINTENANCE,BICYCLE SHOPS-SALES AND SERVICE
05/09/2019,EPSOM LIBRARY,AMAZON.CO.UK MA1Q67PZ4,14.49,EQUIPMENT,DIRECT MARKETING-OTHER DIRECT MARKETERS/NOT ELSEW.
05/09/2019,FIRE SERVICES IT,AMZNMKTPLACE,80.00,COMPUTER HARDWARE,MISCELLANEOUS AND SPECIALTY RETAIL STORES
05/09/2019,ABBEYWOOD,AMZNMKTPLACE,254.76,FURNITURE,MISCELLANEOUS AND SPECIALTY RETAIL STORES
05/09/2019,HERITAGE MANAGER,AMZNMKTPLACE,69.99,EQUIPMENT,MISCELLANEOUS AND SPECIALTY RETAIL STORES
06/09/2019,HILLSIDE,SAINSBURYS SACAT 0784,9.00,PURCHASE OF FOOD (RAW MATERIALS),"GROCERY STORES, SUPERMARKETS"
06/09/2019,FAIRCROFT COMMUNITY HOME,BUTLINS,433.57,EDUC VISITS/HOLS/CAMPS/TOYS,"LODGING-HOTELS,MOTELS,RESORTS-NOT CLASSIFIED"
06/09/2019,ACL CENTRAL EXPENDITURE,CREATIVEGLASSGUILD,123.35,EQUIPMENT,"EQUIP, FURNITURE, HOME FURNSHNGS STRS (EXCPT APPL)"
06/09/2019,ABBEYWOOD,AMZNMKTPLACE,25.84,DAY TO DAY MAINTENANCE,MISCELLANEOUS AND SPECIALTY RETAIL STORES
06/09/2019,CHEYNE WALK COMMUNITY HOME,CO-OP GROUP PETROL,72.80,PETROL/DIESEL ALL OFF BUSINESS,SERVICE STATIONS WITH OR WITHOUT ANCILLARY SERVICE
06/09/2019,CHEYNE WALK COMMUNITY HOME,BIRCHWOOD MEDICAL PRAC,30.00,MEDICAL EXPENSES,"HEALTH PRACTITIONERS, MEDICAL SRVCS-NOT ELSEWHERE"
06/09/2019,SPLASH PROJECT,AMZNMKTPLACE,580.48,EDUC VISITS/HOLS/CAMPS/TOYS,MISCELLANEOUS AND SPECIALTY RETAIL STORES
06/09/2019,APPLEWOOD,ASDA GROCERIES ONLINE,151.36,PURCHASE OF FOOD (RAW MATERIALS),"GROCERY STORES, SUPERMARKETS"
06/09/2019,APPLEWOOD,ASDA GROCERIES ONLINE,-1.04,PURCHASE OF FOOD (RAW MATERIALS),"GROCERY STORES, SUPERMARKETS"
06/09/2019,ACL CENTRAL EXPENDITURE,TESCO STORE 2160,70.71,REFRESHMENT COSTS,"GROCERY STORES, SUPERMARKETS"
06/09/2019,HOPE SERVICE - WEST,SAINSBURYS LOC 4409,15.75,PURCHASE OF FOOD (RAW MATERIALS),"GROCERY STORES, SUPERMARKETS"
06/09/2019,EXTENDED HOPE,TESCO STORE 2590,89.79,PURCHASE OF FOOD (RAW MATERIALS),"GROCERY STORES, SUPERMARKETS"
06/09/2019,EXTENDED HOPE,HOMEBASE,35.00,CURRICULUM CONSUMABLES,HOME SUPPLY WAREHOUSE STORES
06/09/2019,EXTENDED HOPE,RIVER ISLAND 400,108.00,CURRICULUM CONSUMABLES,MEN'S AND WOMEN'S CLOTHING STORES
06/09/2019,CONSORT HOUSE REDHILL,AMZNMKTPLACE,55.06,EQUIPMENT,MISCELLANEOUS AND SPECIALTY RETAIL STORES
06/09/2019,NE SECTION 17 CARE,PREMIER INN,258.00,FEES,PREMIER INN
06/09/2019,HEALTH & WELLBEING                      ,DECATHLON UK,199.80,EQUIPMENT,SPORTING GOODS STORES
06/09/2019,LIBERTAS COMMUNITY HOME,ARGOS LTD,7.50,EQUIPMENT,DISCOUNT STORES
06/09/2019,PSSS HEARING IMPAIRED,ERGO2WORK B.V,69.30,EQUIPMENT,"OFFICE, SCHOOL SUPPLY, AND STATIONERY STORES"
06/09/2019,PSSS HEARING IMPAIRED,APPLIANCE SPARES WAREH,43.98,EQUIPMENT,HOUSEHOLD APPLIANCE STORES
06/09/2019,ASSET PLANNING - OPERATIONS,POST OFFICE COUNTER,16.62,POSTAGE AND COURIER CHARGES,POSTAL SERVICES-GOVERNMENT ONLY
06/09/2019,ASSET PLANNING - OPERATIONS,B & Q 1029,11.63,EQUIPMENT,HOME SUPPLY WAREHOUSE STORES
06/09/2019,RUTH HOUSE,SAINSBURYS TO YOU 0686,210.70,PURCHASE OF FOOD (RAW MATERIALS),"GROCERY STORES, SUPERMARKETS"
06/09/2019,LIBERTAS COMMUNITY HOME,SAINSBURYS SACAT 0680,105.22,PURCHASE OF FOOD (RAW MATERIALS),"GROCERY STORES, SUPERMARKETS"
06/09/2019,LIBERTAS COMMUNITY HOME,B & Q 1029,38.00,DAY TO DAY MAINTENANCE,HOME SUPPLY WAREHOUSE STORES
06/09/2019,BURBANK COMMUNITY HOME,WWW.LABEEBY.CO.UK,54.19,"CLOTHING, UNIFORM AND LAUNDRY",MEN'S AND WOMEN'S CLOTHING STORES
06/09/2019,ORCHARD COURT,WWW.ARGOS.CO.UK,-8.95,FURNITURE,DISCOUNT STORES
06/09/2019,QUADRANT COURT WOKING,AMZNMKTPLACE AMAZON.CO,33.32,EQUIPMENT,MISCELLANEOUS AND SPECIALTY RETAIL STORES
06/09/2019,MALLOW CRESCENT,EB  PBS FESTIVAL 2019,35.00,TRAINING EXPENSES EXTERNAL GENERAL,BUSINESS SERVICES-NOT ELSEWHERE CLASSIFIED
06/09/2019,ARUNDEL,TESCO STORES 5999,179.07,REFRESHMENT COSTS,"GROCERY STORES, SUPERMARKETS"
06/09/2019,WOODLANDS COMMUNITY HOME,ROBERT DYAS HOLDNG LTD,5.58,EQUIPMENT,HARDWARE STORES
06/09/2019,HOPE SERVICE - WEST,SUMUP   LOULABELLS,11.80,REFRESHMENT COSTS,"GROCERY STORES, SUPERMARKETS"
06/09/2019,HOPE SERVICE - WEST,H & M ONLINE,76.94,"CLOTHING, UNIFORM AND LAUNDRY",MEN'S AND WOMEN'S CLOTHING STORES
06/09/2019,TRANSPORT,AMZNMKTPLACE,194.99,"CLOTHING, UNIFORM AND LAUNDRY",MISCELLANEOUS AND SPECIALTY RETAIL STORES
06/09/2019,TRANSPORT,AMZNMKTPLACE,164.11,EQUIPMENT,MISCELLANEOUS AND SPECIALTY RETAIL STORES
06/09/2019,OCCUPATIONAL HEALTH,VITALOGRAPH,56.40,EQUIPMENT,"HEALTH PRACTITIONERS, MEDICAL SRVCS-NOT ELSEWHERE"
06/09/2019,PE/CDT MAINTENANCE OVERHEADS,JOHNSON HEALTH TECH UK,237.17,EQUIPMENT,SPORTING GOODS STORES
06/09/2019,"WOODCOT, 4 TANNERY LANE, BRAMLEY",OVO ENERGY LTD,111.86,GAS,"UTLTS-ELCTRC, GAS, HEATING OIL, SANITARY, WATER"
06/09/2019,"WOODCOT, 4 TANNERY LANE, BRAMLEY",OVO ENERGY LTD,623.13,GAS,"UTLTS-ELCTRC, GAS, HEATING OIL, SANITARY, WATER"
06/09/2019,PE/CDT MAINTENANCE OVERHEADS,RS COMPONENTS,310.30,EQUIPMENT,ELECTRICAL PARTS AND EQUIPMENT
06/09/2019,SERVICE DELIVERY RESOURCES,SWR LIPHOOK SST,43.40,MISCELLANEOUS STAFF TRAVEL,PASSENGER RAILWAYS
06/09/2019,PROPERTY OPERATIONS TEAM,SCREWFIX EGHAM,76.12,PURCHASE OF BUILDING MATERIALS,"GROCERY STORES, SUPERMARKETS"
06/09/2019,SHELL UK LICENSING,EREWASH BOROUGH COUNCI,79.00,FEES,GOVERNMENT SERVICES-NOT ELSEWHERE CLASSIFIED
06/09/2019,SHELL UK LICENSING,WWW.MANCHESTER.GOV.UK,113.00,FEES,AUTOMOBILE PARKING LOTS AND GARAGES
06/09/2019,SHELL UK LICENSING,WWW.TEIGNBRIDGE.GOV.UK,113.00,FEES,GOVERNMENT SERVICES-NOT ELSEWHERE CLASSIFIED
06/09/2019,WOKING CMHRS CARE,WORTHING COUNTRY C,75.00,FEES,FINES
06/09/2019,MALLOW CRESCENT,AMZNMKTPLACE AMAZON.CO,5.37,EQUIPMENT,MISCELLANEOUS AND SPECIALTY RETAIL STORES
07/09/2019,HILLSIDE,SAINSBURYS 0784,10.55,PURCHASE OF FOOD (RAW MATERIALS),"GROCERY STORES, SUPERMARKETS"
07/09/2019,BURBANK COMMUNITY HOME,ROBERT DYAS HOLDNG LTD,12.99,EQUIPMENT,HARDWARE STORES
07/09/2019,BURBANK COMMUNITY HOME,SPORTSDIRECT 174,31.04,"CLOTHING, UNIFORM AND LAUNDRY",SPORTING GOODS STORES
07/09/2019,BURBANK COMMUNITY HOME,3C_ WOKING BOROUGH COU,1.40,MISCELLANEOUS STAFF TRAVEL,AUTOMOBILE PARKING LOTS AND GARAGES
07/09/2019,HILLSIDE,SAINSBURYS TO YOU 0675,8.00,PURCHASE OF FOOD (RAW MATERIALS),"GROCERY STORES, SUPERMARKETS"
07/09/2019,HILLSIDE,SAINSBURYS TO YOU 0675,116.02,PURCHASE OF FOOD (RAW MATERIALS),"GROCERY STORES, SUPERMARKETS"
07/09/2019,WOODLANDS COMMUNITY HOME,CARPHONE WAREHOUSE,19.99,EQUIPMENT,TELECOMMUNICATION EQUIPMENT INCL TELEPHONE SALES
07/09/2019,LIBERTAS COMMUNITY HOME,WWW.IKEA.COM,261.95,EQUIPMENT,"EQUIP, FURNITURE, HOME FURNSHNGS STRS (EXCPT APPL)"
07/09/2019,KARIBU COMMUNITY HOME,TESCO STORE 2812,103.69,PURCHASE OF FOOD (RAW MATERIALS),"GROCERY STORES, SUPERMARKETS"
07/09/2019,LIBERTAS COMMUNITY HOME,AMZNMKTPLACE AMAZON.CO,14.48,FURNITURE,MISCELLANEOUS AND SPECIALTY RETAIL STORES
08/09/2019,FAIRCROFT COMMUNITY HOME,CHINA CHEF,37.00,REFRESHMENT COSTS,FAST FOOD RESTAURANTS
08/09/2019,FAIRCROFT COMMUNITY HOME,CHARLOTTE REID LONDON,25.00,"CLOTHING, UNIFORM AND LAUNDRY",WOMEN'S ACCESSORY AND SPECIALTY STORES
08/09/2019,FAIRCROFT COMMUNITY HOME,MARKS&SPENCER PLC,45.05,"CLOTHING, UNIFORM AND LAUNDRY","GROCERY STORES, SUPERMARKETS"
08/09/2019,EXTENDED HOPE,AMZNMKTPLACE,179.94,CURRICULUM EQUIPMENT AND FURNITURE,MISCELLANEOUS AND SPECIALTY RETAIL STORES
08/09/2019,RUTH HOUSE,GIFFGAFF,6.00,TELECOMMUNICATION CHARGES,TELECOM INCL PREPAID/RECURRING PHONE SVCS
08/09/2019,CHALKMEAD,AMAZON.CO.UK MA8JH7XX4,47.30,REFRESHMENT COSTS,DIRECT MARKETING-OTHER DIRECT MARKETERS/NOT ELSEW.
08/09/2019,CHEYNE WALK COMMUNITY HOME,CINEWORLD,27.65,EDUC VISITS/HOLS/CAMPS/TOYS,"THEATRICAL PRODUCERS(EXCL MOTION PIX),TICKET AGNCY"
08/09/2019,CHEYNE WALK COMMUNITY HOME,FRESH BAZAR FOOD,8.01,PURCHASE OF FOOD (RAW MATERIALS),"GROCERY STORES, SUPERMARKETS"
08/09/2019,PSSS HEARING IMPAIRED,AMZNMKTPLACE AMAZON.CO,21.49,EQUIPMENT,MISCELLANEOUS AND SPECIALTY RETAIL STORES
08/09/2019,RUTH HOUSE,AMZNMKTPLACE,13.98,EQUIPMENT,MISCELLANEOUS AND SPECIALTY RETAIL STORES
08/09/2019,BURBANK COMMUNITY HOME,3C_ WOKING BOROUGH COU,1.40,MISCELLANEOUS STAFF TRAVEL,AUTOMOBILE PARKING LOTS AND GARAGES
08/09/2019,BURBANK COMMUNITY HOME,SHOE ZONE LTD,13.04,"CLOTHING, UNIFORM AND LAUNDRY",SHOE STORES
08/09/2019,SOLD DAY TO DAY OPERATIONS,BRITISH CANOEING,54.00,EXAMINATION FEES,COMPUTER SOFTWARE STORES
08/09/2019,SOLD DAY TO DAY OPERATIONS,BRITISHCANOEING,80.00,EXAMINATION FEES,COMPUTER SOFTWARE STORES
08/09/2019,RBDM - GENERAL,AMZNMKTPLACE,67.96,ITEMS PURCHASED FOR RE-SALE,MISCELLANEOUS AND SPECIALTY RETAIL STORES
08/09/2019,SOUTH WEST OUTREACH,WAYFAIR #2743692628,28.98,EQUIPMENT,"EQUIP, FURNITURE, HOME FURNSHNGS STRS (EXCPT APPL)"
08/09/2019,SOUTH WEST OUTREACH,WILKO.COM,30.00,EQUIPMENT,MISCELLANEOUS GENERAL MERCHANDISE
09/09/2019,TRANSPORT,DIRECTA (UK)LTD,39.79,STATIONERY,INDUSTRIAL SUPPLIES NOT ELSEWHERE CLASSIFIED
09/09/2019,PE/CDT MAINTENANCE OVERHEADS,RS COMPONENTS,85.57,EQUIPMENT,ELECTRICAL PARTS AND EQUIPMENT
09/09/2019,NE SECTION 17 CARE,PREMIER INN,549.50,FEES,PREMIER INN
09/09/2019,FAIRCROFT COMMUNITY HOME,MCDONALDS,8.07,REFRESHMENT COSTS,FAST FOOD RESTAURANTS
09/09/2019,ABBEYWOOD,AMZNMKTPLACE,228.75,DAY TO DAY MAINTENANCE,MISCELLANEOUS AND SPECIALTY RETAIL STORES
09/09/2019,ABBEYWOOD,AMZNMKTPLACE AMAZON.CO,21.74,EDUC VISITS/HOLS/CAMPS/TOYS,MISCELLANEOUS AND SPECIALTY RETAIL STORES
09/09/2019,HEATHSIDE,NURSECALLMATS.CO.UK,216.00,EQUIPMENT - INDEPENDENT SECTOR,"EQUIP, FURNITURE, HOME FURNSHNGS STRS (EXCPT APPL)"
09/09/2019,TARGETED INTERVENTION,WELCOME BREAK STARBUCK,8.15,VEHICLE RUNNING COSTS,"MISC FOOD STORE-CONVENIENCE,MRKT,SPLTY,VENDNG MACS"
09/09/2019,ACL CENTRAL EXPENDITURE,TESCO STORE 3149,60.82,PURCHASE OF FOOD (RAW MATERIALS),"GROCERY STORES, SUPERMARKETS"
09/09/2019,ACL CENTRAL EXPENDITURE,TIMPSON LTD,-30.00,DAY TO DAY MAINTENANCE,"HAT CLEANING SHOPS, SHOE REPAIR SHOPS, SHOE SHINE"
09/09/2019,FAIRCROFT COMMUNITY HOME,SAINSBURYS PFS0473,10.00,EQUIPMENT,SERVICE STATIONS WITH OR WITHOUT ANCILLARY SERVICE
09/09/2019,FAIRCROFT COMMUNITY HOME,SURREY CC CARD PAY,25.00,EDUC VISITS/HOLS/CAMPS/TOYS,COMPUTER NETWORK/INFORMATION SERVICES
09/09/2019,RUTH HOUSE,W M MORRISON STORE,16.28,REFRESHMENT COSTS,"GROCERY STORES, SUPERMARKETS"
09/09/2019,SPLASH PROJECT,SAINSBURYS 0675,49.20,EDUC VISITS/HOLS/CAMPS/TOYS,"GROCERY STORES, SUPERMARKETS"
09/09/2019,ACL CENTRAL EXPENDITURE,TESCO STORE 2160,41.47,REFRESHMENT COSTS,"GROCERY STORES, SUPERMARKETS"
09/09/2019,EXTENDED HOPE,SAINSBURYS 0652,100.00,PURCHASE OF FOOD (RAW MATERIALS),"GROCERY STORES, SUPERMARKETS"
09/09/2019,EXTENDED HOPE,SAINSBURYS 0652,28.36,PURCHASE OF FOOD (RAW MATERIALS),"GROCERY STORES, SUPERMARKETS"
09/09/2019,CHEYNE WALK COMMUNITY HOME,TESCO STORE 2560,130.89,PURCHASE OF FOOD (RAW MATERIALS),"GROCERY STORES, SUPERMARKETS"
09/09/2019,CHEYNE WALK COMMUNITY HOME,TESCO STORE 2560,9.48,EQUIPMENT,"GROCERY STORES, SUPERMARKETS"
09/09/2019,SE TARGETTED YOUTH SUPPORT,WAITROSE 178,2.74,REFRESHMENT COSTS,"GROCERY STORES, SUPERMARKETS"
09/09/2019,SPEECH & LANGUAGE THERAPY,AMZNMKTPLACE,25.98,EQUIPMENT,MISCELLANEOUS AND SPECIALTY RETAIL STORES
09/09/2019,SPEECH & LANGUAGE THERAPY,WWW.COURSEBEETLE.CO.UK,215.00,TRAINING USING EXTERNAL PROVIDERS,COMPUTER SOFTWARE STORES
09/09/2019,SPEECH & LANGUAGE THERAPY,APPLIANCE SPARES WAREH,77.97,EQUIPMENT,HOUSEHOLD APPLIANCE STORES
09/09/2019,SPEECH & LANGUAGE THERAPY,APPLIANCE SPARES WAREH,40.98,EQUIPMENT,HOUSEHOLD APPLIANCE STORES
09/09/2019,ASSET PLANNING - OPERATIONS,MARGNOR FASTENERS,11.87,EQUIPMENT,MISCELLANEOUS AND SPECIALTY RETAIL STORES
09/09/2019,RUTH HOUSE,INNOVATE PRIMARY,170.20,PURCHASE OF FOOD (RAW MATERIALS),SCHOOLS & EDUCATIONAL SVC-NOT ELSEWHERE CLASSIFIED
09/09/2019,BURBANK COMMUNITY HOME,WICKES WOKING,8.15,DAY TO DAY MAINTENANCE,HOME SUPPLY WAREHOUSE STORES
09/09/2019,BURBANK COMMUNITY HOME,CO-OP GROUP FOOD,2.20,PURCHASE OF FOOD (RAW MATERIALS),"GROCERY STORES, SUPERMARKETS"
09/09/2019,HILLSIDE,SAINSBURYS 0784,12.35,PURCHASE OF FOOD (RAW MATERIALS),"GROCERY STORES, SUPERMARKETS"
09/09/2019,SE CARE - LAC,SURREY CC CARD PAY,35.00,OTHER COMMUNITY CARE VOL,COMPUTER NETWORK/INFORMATION SERVICES
09/09/2019,LIBERTAS COMMUNITY HOME,SAINSBURYS SACAT 0652,175.52,PURCHASE OF FOOD (RAW MATERIALS),"GROCERY STORES, SUPERMARKETS"
09/09/2019,LIBERTAS COMMUNITY HOME,ALDI STORES LTD,11.98,EQUIPMENT,"GROCERY STORES, SUPERMARKETS"
09/09/2019,MALLOW CRESCENT,SAINSBURYS TO YOU 0652,121.90,PURCHASE OF FOOD (RAW MATERIALS),"GROCERY STORES, SUPERMARKETS"
09/09/2019,HOPE SERVICE - WEST,SAINSBURYS TO YOU 0686,65.60,PURCHASE OF FOOD (RAW MATERIALS),"GROCERY STORES, SUPERMARKETS"
09/09/2019,QUADRANT COURT WOKING,AMZNMKTPLACE,36.16,EQUIPMENT,MISCELLANEOUS AND SPECIALTY RETAIL STORES
09/09/2019,TRANSPORT,MOBILE PHONE,145.00,DAY TO DAY MAINTENANCE,"GIFT, CARD, NOVELTY AND SOUVENIR SHOPS"
09/09/2019,HOPE SERVICE - WEST,SAINSBURYS TO YOU 0683,41.95,PURCHASE OF FOOD (RAW MATERIALS),"GROCERY STORES, SUPERMARKETS"
09/09/2019,TRANSPORT CO-ORDINATION TEAM,SHAPE POSTURE SEATING,758.40,FURNITURE,DENTAL/LAB/MED/OPHTHALMIC HOSP EQUIP & SUPPLIES
09/09/2019,MALLOW CRESCENT,DIABETES UK SERVICES,15.00,TRAINING EXPENSES EXTERNAL GENERAL,"ORGANIZATIONS, CHARITABLE AND SOCIAL SERVICES"
09/09/2019,FIRE SERVICES IT,SP   LDC PAGERS DIRECT,285.12,COMPUTER HARDWARE,TELECOM INCL PREPAID/RECURRING PHONE SVCS
09/09/2019,CHILDREN'S RIGHTS TEAM,DOMINOS PIZZA UK & IRE,63.97,REFRESHMENT COSTS,"EATING PLACES, RESTAURANTS"
09/09/2019,RBDM - GENERAL,AMZNMKTPLACE,84.95,ITEMS PURCHASED FOR RE-SALE,MISCELLANEOUS AND SPECIALTY RETAIL STORES
09/09/2019,COMM LRNG & SKILLS,WWW.QUANTUMJOBS.COM,717.60,TRAINING EXPENSES EXTERNAL GENERAL,SCHOOLS & EDUCATIONAL SVC-NOT ELSEWHERE CLASSIFIED
09/09/2019,LIBERTAS COMMUNITY HOME,ALLEN BRAITHWAITE WALL,196.00,EQUIPMENT,"GLASS, PAINT, WALLPAPER STORES"
09/09/2019,TRANSPORT,KEYMEX LTD,561.60,EQUIPMENT,HOUSEHOLD APPLIANCE STORES
09/09/2019,SOLD ESTATES MANAGEMENT,AMZNMKTPLACE AMAZON.CO,25.00,DAY TO DAY MAINTENANCE,MISCELLANEOUS AND SPECIALTY RETAIL STORES
09/09/2019,ORBIS TRAINING PROPERTY,WWW.TREES.ORG.UK,720.00,TRAINING EXPENSES EXTERNAL GENERAL,"ORGANIZATIONS, CHARITABLE AND SOCIAL SERVICES"
09/09/2019,COMLIANCE TEAM,AGORA PUBLICATIONS,84.78,BOOKS,"ORGANIZATIONS, MEMBERSHIP-NOT ELSEWHERE CLASSIFIED"
09/09/2019,ARUNDEL,TESCO STORES 5999,181.33,REFRESHMENT COSTS,"GROCERY STORES, SUPERMARKETS"
09/09/2019,ARUNDEL,ASDA SUPERSTORE,24.00,REFRESHMENT COSTS,"GROCERY STORES, SUPERMARKETS"
09/09/2019,NW CARE - CP & COURT LAC,SURREY CC CARD PAY,11.00,OTHER COMMUNITY CARE VOL,COMPUTER NETWORK/INFORMATION SERVICES
09/09/2019,PE/CDT MAINTENANCE OVERHEADS,MANBAT LTD,28.80,EQUIPMENT,"DURABLE GOODS, NOT ELSEWHERE CLASSIFIED"
09/09/2019,MALLOW CRESCENT,TESCO STORE 2590,105.08,PURCHASE OF FOOD (RAW MATERIALS),"GROCERY STORES, SUPERMARKETS"
09/09/2019,MALLOW CRESCENT,TESCO STORE 2590,55.92,PURCHASE OF FOOD (RAW MATERIALS),"GROCERY STORES, SUPERMARKETS"
09/09/2019,TRAINING AND DEVELOPMENT,THE ROYAL MARITIME CLU,198.00,TRAINING EXPENSES EXTERNAL GENERAL,"LODGING-HOTELS,MOTELS,RESORTS-NOT CLASSIFIED"
09/09/2019,REDHILL & BANSTEAD CMHRS CARE,WORTHING COUNTRY C,75.00,FEES,FINES
09/09/2019,MALLOW CRESCENT,TESCO STORE 2590,118.12,PURCHASE OF FOOD (RAW MATERIALS),"GROCERY STORES, SUPERMARKETS"
09/09/2019,FAIRCROFT COMMUNITY HOME,SAINSBURYS SACAT 0687,39.55,PURCHASE OF FOOD (RAW MATERIALS),"GROCERY STORES, SUPERMARKETS"
09/09/2019,FAIRCROFT COMMUNITY HOME,NANDOS,31.95,REFRESHMENT COSTS,"EATING PLACES, RESTAURANTS"
09/09/2019,CORPORATE GROUP - LEGAL SERVICES,AMAZON.CO.UK MA52F8X24,99.00,LIBRARY RESOURCES,DIRECT MARKETING-OTHER DIRECT MARKETERS/NOT ELSEW.
10/09/2019,NE SECTION 17 CARE,PREMIER INN,310.00,INDEPENDENT LIVING PLACEMENTS,PREMIER INN
10/09/2019,NE SECTION 17 CARE,PREMIER INN,281.50,INDEPENDENT LIVING PLACEMENTS,PREMIER INN
10/09/2019,PE/CDT MAINTENANCE OVERHEADS,WWW.ARCO.CO.UK,64.26,EQUIPMENT,INDUSTRIAL SUPPLIES NOT ELSEWHERE CLASSIFIED
10/09/2019,ACT,HOTEL ON BOOKING.COM H,443.80,TRAINING EXPENSES EXTERNAL GENERAL,"LODGING-HOTELS,MOTELS,RESORTS-NOT CLASSIFIED"
10/09/2019,RECRUITMENT,FACEBK  3Q82XNJPS2,50.00,STAFF ADVERTISING ,ADVERTISING SERVICES
10/09/2019,ARUNDEL,PARK INN BY RADISSON,103.00,EDUC VISITS/HOLS/CAMPS/TOYS,PARK INN BY RADISSON
10/09/2019,ARUNDEL,PARK INN BY RADISSON,103.00,EDUC VISITS/HOLS/CAMPS/TOYS,PARK INN BY RADISSON
10/09/2019,ARUNDEL,PARK INN BY RADISSON,109.00,EDUC VISITS/HOLS/CAMPS/TOYS,PARK INN BY RADISSON
10/09/2019,ARUNDEL,INCCHOICE,23.58,EQUIPMENT,DENTAL/LAB/MED/OPHTHALMIC HOSP EQUIP & SUPPLIES
10/09/2019,TARGETED INTERVENTION,MERCEDES-BENZ WORLD,8.45,EDUC VISITS/HOLS/CAMPS/TOYS,"EATING PLACES, RESTAURANTS"
10/09/2019,TARGETED INTERVENTION,STARBUCKS,8.55,EDUC VISITS/HOLS/CAMPS/TOYS,FAST FOOD RESTAURANTS
10/09/2019,NW CP & COURT TEAM,AMZNMKTPLACE,131.54,COMPUTER HARDWARE,MISCELLANEOUS AND SPECIALTY RETAIL STORES
10/09/2019,NW NIL RECOURSE TO PUBLIC FUNDS CARE,THE WOKING HOTEL,997.80,INDEPENDENT LIVING PLACEMENTS,"LODGING-HOTELS,MOTELS,RESORTS-NOT CLASSIFIED"
10/09/2019,ASSET PLANNING - OPERATIONS,SIMPLY MOULDINGS,28.80,EQUIPMENT,CONSTRUCTION MATERIALS NOT ELSEWHERE CLASSIFIED
10/09/2019,ASSET PLANNING - OPERATIONS,BRITISH STANDARDS,169.20,BOOKS,BUSINESS SERVICES-NOT ELSEWHERE CLASSIFIED
10/09/2019,ASSET PLANNING - OPERATIONS,WWW.MUDFORDS.CO.UK,386.40,EQUIPMENT,INDUSTRIAL SUPPLIES NOT ELSEWHERE CLASSIFIED
10/09/2019,RUTH HOUSE,SAINSBURYS TO YOU 0686,38.10,PURCHASE OF FOOD (RAW MATERIALS),"GROCERY STORES, SUPERMARKETS"
10/09/2019,RUTH HOUSE,SAINSBURYS TO YOU 0686,88.70,PURCHASE OF FOOD (RAW MATERIALS),"GROCERY STORES, SUPERMARKETS"
10/09/2019,CONSORT HOUSE REDHILL,WILKO RETAIL LIMIT,15.00,EQUIPMENT,HOUSEHOLD APPLIANCE STORES
10/09/2019,BURBANK COMMUNITY HOME,SELFSERVE TICKET,27.90,EDUC VISITS/HOLS/CAMPS/TOYS,PASSENGER RAILWAYS
10/09/2019,BURBANK COMMUNITY HOME,HAMLEYS WATERLOO,6.00,EDUC VISITS/HOLS/CAMPS/TOYS,"GAME, TOY, AND HOBBY SHOPS"
10/09/2019,MEADOWSIDE,AMAZON.CO.UK MA7FT4HT4,52.75,BOOKS,DIRECT MARKETING-OTHER DIRECT MARKETERS/NOT ELSEW.
10/09/2019,ACL CENTRAL EXPENDITURE,AMAZON.CO.UK MA53K85X4,39.99,PUBLICITY,DIRECT MARKETING-OTHER DIRECT MARKETERS/NOT ELSEW.
10/09/2019,TARGETED INTERVENTION,MERCEDES-BENZ WORLD,6.35,EDUC VISITS/HOLS/CAMPS/TOYS,"EATING PLACES, RESTAURANTS"
10/09/2019,BURBANK COMMUNITY HOME,MERITYRE SPECIALISTS,81.10,VEHICLE REPAIRS AND MAINTENANCE,"AUTOMOTIVE PARTS, ACCESSORIES STORES"
10/09/2019,ACL CENTRAL EXPENDITURE,AMZNMKTPLACE,73.47,EQUIPMENT,MISCELLANEOUS AND SPECIALTY RETAIL STORES
10/09/2019,SW TEACHERS,WWW.ELKLAN.CO.UK,66.00,SUBSCRIPTIONS,SCHOOLS & EDUCATIONAL SVC-NOT ELSEWHERE CLASSIFIED
10/09/2019,SW TEACHERS,WWW.ELKLAN.CO.UK,66.00,SUBSCRIPTIONS,SCHOOLS & EDUCATIONAL SVC-NOT ELSEWHERE CLASSIFIED
10/09/2019,SCHOOL APPEALS,POUNDLAND LTD,4.00,REFRESHMENT COSTS,DISCOUNT STORES
10/09/2019,SCHOOL APPEALS,ALDI STORES LTD,1.47,REFRESHMENT COSTS,"GROCERY STORES, SUPERMARKETS"
10/09/2019,DEMOCRATIC SERVICES TEAM,WWW.UK.INSIGHT.COM,967.18,COMPUTER CONSUMABLES,DIRECT MARKETING-CATALOG MERCHANTS
10/09/2019,TRANSPORT,TOOLSTATION LTD,33.43,DAY TO DAY MAINTENANCE,HARDWARE STORES
10/09/2019,TRANSPORT,PAYPAL  IDEOLOGYLTD,2.29,DAY TO DAY MAINTENANCE,VARIETY STORES
10/09/2019,TRANSPORT,SCREWFIX DIRECT LT,9.99,DAY TO DAY MAINTENANCE,"BUILDING MATERIALS, LUMBER STORES"
10/09/2019,SERVICE DELIVERY RESOURCES,ALDI STORES LTD,7.99,DAY TO DAY MAINTENANCE,"GROCERY STORES, SUPERMARKETS"
10/09/2019,BURBANK COMMUNITY HOME,SCHOOLGATEWA BROADWATE,50.00,REFRESHMENT COSTS,"COLLEGES, UNIV, PRO SCHOOLS, JUNIOR COLLEGES"
10/09/2019,HILLSIDE,SAINSBURYS 0675,1.50,PURCHASE OF FOOD (RAW MATERIALS),"GROCERY STORES, SUPERMARKETS"
10/09/2019,HILLSIDE,SAINSBURYS 0675,34.11,PURCHASE OF FOOD (RAW MATERIALS),"GROCERY STORES, SUPERMARKETS"
10/09/2019,LOCAL DELIVERY GROUP,AMZNMKTPLACE,201.24,EQUIPMENT,MISCELLANEOUS AND SPECIALTY RETAIL STORES
10/09/2019,LOCAL DELIVERY GROUP,AMAZON.CO.UK MA5GH7HW4,51.40,EQUIPMENT,DIRECT MARKETING-OTHER DIRECT MARKETERS/NOT ELSEW.
10/09/2019,MALLOW CRESCENT,SP   SAFETY-LABEL,34.60,EQUIPMENT,COMPUTER SOFTWARE STORES
10/09/2019,ENSEMBLES & TOURS,JUST MUSIC,50.44,CURRIC BOOKS,"MUSIC STORES-INSTRUMENTS, PIANOS, SHEET MUSIC"
10/09/2019,HERITAGE,ROYAL HOSPITAL NEURO,60.00,TRAINING EXPENSES EXTERNAL GENERAL,"ORGANIZATIONS, CHARITABLE AND SOCIAL SERVICES"
10/09/2019,ENSEMBLES & TOURS,GOODMUSIC,42.00,CURRIC BOOKS,MISCELLANEOUS PUBLISHING AND PRINTING
10/09/2019,TRANSPORT,AMZNMKTPLACE,21.99,OPERATIONAL FIRE EQUIPMENT,MISCELLANEOUS AND SPECIALTY RETAIL STORES
10/09/2019,STAFF OFFICE,WWW.POPPYLOTTERY.SAFEA,555.00,PUBLICITY,"ORGANIZATIONS, CHARITABLE AND SOCIAL SERVICES"
10/09/2019,TRANSPORT,WWW.STOCKSIGNS.CO.UK,244.02,OPERATIONAL FIRE EQUIPMENT,"COMMERCIAL ART, GRAPHICS, PHOTOGRAPHY"
10/09/2019,EXTENDED HOPE,AMZNMKTPLACE AMAZON.CO,12.87,CURRICULUM CONSUMABLES,MISCELLANEOUS AND SPECIALTY RETAIL STORES
10/09/2019,MAINTENANCE SURVEYING TEAM,WWW.JCTLTD.CO.UK,82.40,EQUIPMENT,BOOK STORES
10/09/2019,ARUNDEL,TESCO STORES 5999,163.81,REFRESHMENT COSTS,"GROCERY STORES, SUPERMARKETS"
10/09/2019,HILLSIDE,MARKS&SPENCER PLC,74.00,"CLOTHING, UNIFORM AND LAUNDRY","GROCERY STORES, SUPERMARKETS"
10/09/2019,ENSEMBLES & TOURS,SHEETMUSICPLUS.COM,20.06,EQUIPMENT,"MUSIC STORES-INSTRUMENTS, PIANOS, SHEET MUSIC"
10/09/2019,WAVERLEY CMHRS CARE,TRAVELODGE,975.36,OTHER COMMUNITY CARE PRIV,TRAVELODGE
10/09/2019,LIBRARIES CENTRAL,ASSOC-VOL-MANAGERS,120.00,TRAINING EXPENSES EXTERNAL GENERAL,"ORGANIZATIONS, MEMBERSHIP-NOT ELSEWHERE CLASSIFIED"
10/09/2019,LIBERTAS COMMUNITY HOME,DELIVEROO.CO.UK,81.69,PURCHASE OF FOOD (RAW MATERIALS),"MISC FOOD STORE-CONVENIENCE,MRKT,SPLTY,VENDNG MACS"
10/09/2019,KARIBU COMMUNITY HOME,AMZNMKTPLACE,26.88,EQUIPMENT,MISCELLANEOUS AND SPECIALTY RETAIL STORES
10/09/2019,LOCAL ASSISTANCE SCHEME,WWW.IKEA.COM,234.00,FURNITURE,"EQUIP, FURNITURE, HOME FURNSHNGS STRS (EXCPT APPL)"
10/09/2019,COUNTY HALL,B & Q 1076,21.15,EQUIPMENT,HOME SUPPLY WAREHOUSE STORES
10/09/2019,COUNTY HALL,B & Q 1076,34.70,EQUIPMENT,HOME SUPPLY WAREHOUSE STORES
10/09/2019,NATIONAL TRADING STANDARDS SCAM TEAM,AMZNMKTPLACE AMAZON.CO,45.99,EQUIPMENT,MISCELLANEOUS AND SPECIALTY RETAIL STORES
10/09/2019,NATIONAL TRADING STANDARDS SCAM TEAM,SECOND NEST LTD,300.00,PURCHASE CARD TRANSACTION LOG DEFAULT,REAL ESTATE AGENTS AND MANAGERS-RENTALS
10/09/2019,ABBEYWOOD,AMZNMKTPLACE,135.66,EQUIPMENT,MISCELLANEOUS AND SPECIALTY RETAIL STORES
10/09/2019,ABBEYWOOD,AKZONOBEL_UK,88.79,DAY TO DAY MAINTENANCE,"GLASS, PAINT, WALLPAPER STORES"
10/09/2019,COMMUNICATIONS TEAM,HOO HOOTSUITE INC,6.01,PUBLICITY,BUSINESS SERVICES-NOT ELSEWHERE CLASSIFIED
10/09/2019,APPLEWOOD,KINDERKEY INTERNATIONA,78.00,EQUIPMENT,"EQUIP, FURNITURE, HOME FURNSHNGS STRS (EXCPT APPL)"
10/09/2019,ABBEYWOOD,BOOKER LIMITED ALDERSH,410.26,PURCHASE OF FOOD (RAW MATERIALS),CATERERS
10/09/2019,ABBEYWOOD,THE RANGE,299.14,EDUC VISITS/HOLS/CAMPS/TOYS,DEPARTMENT STORES
10/09/2019,ACL CENTRAL EXPENDITURE,W M MORRISON STORE,12.50,REFRESHMENT COSTS,"GROCERY STORES, SUPERMARKETS"
10/09/2019,EXTENDED HOPE,TESCO STORE 2590,45.19,PURCHASE OF FOOD (RAW MATERIALS),"GROCERY STORES, SUPERMARKETS"
10/09/2019,CHEYNE WALK COMMUNITY HOME,TESCO STORE 2560,15.80,EQUIPMENT,"GROCERY STORES, SUPERMARKETS"
10/09/2019,CHEYNE WALK COMMUNITY HOME,NETFLIX.COM,8.99,SUBSCRIPTIONS,"CABLE, SATELLITE, OTHER PAY TELEVISION, RADIO SVCS"
11/09/2019,NE SECTION 17 CARE,PREMIER INN,291.00,INDEPENDENT LIVING PLACEMENTS,PREMIER INN
11/09/2019,SW LOOKED AFTER TEAM,FLYBE.COM J9VLA4       0,323.05,FEES,"AIR CARRIERS, AIRLINES-NOT ELSEWHERE CLASSIFIED"
11/09/2019,NE SECTION 17 CARE,PREMIER INN,329.00,INDEPENDENT LIVING PLACEMENTS,PREMIER INN
11/09/2019,FAIRCROFT COMMUNITY HOME,3C_ CP PLUS - ROYAL SU,6.50,NON-STAFF RELATED TRANSPORT COSTS,AUTOMOBILE PARKING LOTS AND GARAGES
11/09/2019,CHALKMEAD,SAINSBURYS 2325,18.10,REFRESHMENT COSTS,"GROCERY STORES, SUPERMARKETS"
11/09/2019,ORBIS HEAD OF PROCUREMENT,WWW.CIPS.ORG,137.00,SUBSCRIPTIONS,"ORGANIZATIONS, MEMBERSHIP-NOT ELSEWHERE CLASSIFIED"
11/09/2019,TARGETED INTERVENTION,MERCEDES-BENZ WORLD,6.10,EDUC VISITS/HOLS/CAMPS/TOYS,"EATING PLACES, RESTAURANTS"
11/09/2019,ASSET PLANNING - OPERATIONS,BSI STANDARDS,320.40,BOOKS,BUSINESS SERVICES-NOT ELSEWHERE CLASSIFIED
11/09/2019,RUTH HOUSE,AMZNMKTPLACE,2.19,EDUC VISITS/HOLS/CAMPS/TOYS,MISCELLANEOUS AND SPECIALTY RETAIL STORES
11/09/2019,RUTH HOUSE,GIFFGAFF,6.00,TELECOMMUNICATION CHARGES,TELECOM INCL PREPAID/RECURRING PHONE SVCS
11/09/2019,RUTH HOUSE,GIFFGAFF,6.00,TELECOMMUNICATION CHARGES,TELECOM INCL PREPAID/RECURRING PHONE SVCS
11/09/2019,RUTH HOUSE,GIFFGAFF,6.00,TELECOMMUNICATION CHARGES,TELECOM INCL PREPAID/RECURRING PHONE SVCS
11/09/2019,RUTH HOUSE,ARGOS LTD,39.99,EQUIPMENT,DISCOUNT STORES
11/09/2019,CONSORT HOUSE REDHILL,AMZNMKTPLACE,140.97,EQUIPMENT,MISCELLANEOUS AND SPECIALTY RETAIL STORES
11/09/2019,BURBANK COMMUNITY HOME,WICKES WOKING,5.30,DAY TO DAY MAINTENANCE,HOME SUPPLY WAREHOUSE STORES
11/09/2019,CHALKMEAD,AMZNMKTPLACE,98.37,DAY TO DAY MAINTENANCE,MISCELLANEOUS AND SPECIALTY RETAIL STORES
11/09/2019,CHALKMEAD,HEATING PLUMBING SUPPL,13.18,UPKEEP OF GROUNDS,PLUMBING AND HEATING EQUIPMENT
11/09/2019,BARNFIELD,B AND M RETAIL,28.33,PURCHASE OF FOOD (RAW MATERIALS),DISCOUNT STORES
11/09/2019,RECRUITMENT,FACEBK  U8ZMGN2PS2,50.00,STAFF ADVERTISING ,ADVERTISING SERVICES
11/09/2019,ORBIS HEAD OF PROCUREMENT,WWW.CIPS.ORG,137.00,SUBSCRIPTIONS,"ORGANIZATIONS, MEMBERSHIP-NOT ELSEWHERE CLASSIFIED"
11/09/2019,ORBIS HEAD OF PROCUREMENT,WWW.CIPS.ORG,137.00,SUBSCRIPTIONS,"ORGANIZATIONS, MEMBERSHIP-NOT ELSEWHERE CLASSIFIED"
11/09/2019,ORBIS HEAD OF PROCUREMENT,WWW.CIPS.ORG,137.00,SUBSCRIPTIONS,"ORGANIZATIONS, MEMBERSHIP-NOT ELSEWHERE CLASSIFIED"
11/09/2019,ORBIS HEAD OF PROCUREMENT,WWW.CIPS.ORG,137.00,SUBSCRIPTIONS,"ORGANIZATIONS, MEMBERSHIP-NOT ELSEWHERE CLASSIFIED"
11/09/2019,SE CARE - LAC,RB KINGSTON GUILDHALL2,35.00,OTHER COMMUNITY CARE VOL,GOVERNMENT SERVICES-NOT ELSEWHERE CLASSIFIED
11/09/2019,NE NIL RECOURSE TO PUBLIC FUNDS CARE,TRAVELODGE,446.00,INDEPENDENT LIVING PLACEMENTS,TRAVELODGE
11/09/2019,TARGETED INTERVENTION,MERCEDES-BENZ WORLD,7.00,EDUC VISITS/HOLS/CAMPS/TOYS,"EATING PLACES, RESTAURANTS"
11/09/2019,TRANSPORT,AMZNMKTPLACE AMAZON.CO,61.99,DAY TO DAY MAINTENANCE,MISCELLANEOUS AND SPECIALTY RETAIL STORES
11/09/2019,TRANSPORT,PAYPAL  CWATSON,14.99,DAY TO DAY MAINTENANCE,CHEMICALS/ALLIED PRODUCTS NOT ELSEWHERE CLASSIFIED
11/09/2019,SERVICE DELIVERY RESOURCES,NOTCUTTS GARDEN CE,37.96,EQUIPMENT,LAWN AND GARDEN SUPPLY STORES
11/09/2019,FAIRMOUNT HOUSE LEATHERHEAD,SCREWFIX DIR.LTD,35.26,EQUIPMENT,"BUILDING MATERIALS, LUMBER STORES"
11/09/2019,SURREY ARTS GENERAL,TESCO STORE 2590,325.34,REFRESHMENT COSTS,"GROCERY STORES, SUPERMARKETS"
11/09/2019,MGMT - ORBIS (MANAGEMENT TEAM & SUPPORT),CUSTOMER THERMOMETER,99.24,FEES,COMPUTER SOFTWARE STORES
11/09/2019,SERVICE DELIVERY RESOURCES,TROPHYSTORE.CO.UK LIMI,88.98,DESCRIPTION &AWARD LONG SERVICE,"CONTRACTORS,SPECIAL TRADE-NOT ELSEWHERE CLASSIFIED"
11/09/2019,BURBANK COMMUNITY HOME,SAINSBURYS TO YOU 0686,273.10,PURCHASE OF FOOD (RAW MATERIALS),"GROCERY STORES, SUPERMARKETS"
11/09/2019,MISC EDCAT SUPPORT,FABRICLANDB,134.50,PUBLICITY,PROFESSIONAL SERVICES-NOT ELSEWHERE CLASSIFIED
11/09/2019,SECTOR MANAGER,WWW.REXLONDONTRADE.COM,"1,275.41",ITEMS PURCHASED FOR RE-SALE,"GIFT, CARD, NOVELTY AND SOUVENIR SHOPS"
11/09/2019,LIBERTAS COMMUNITY HOME,AMZNMKTPLACE AMAZON.CO,50.58,EQUIPMENT,MISCELLANEOUS AND SPECIALTY RETAIL STORES
11/09/2019,TRANSPORT,AMZNMKTPLACE,194.99,"CLOTHING, UNIFORM AND LAUNDRY",MISCELLANEOUS AND SPECIALTY RETAIL STORES
11/09/2019,TRAINING AND DEVELOPMENT,WWW.DENBYDALECOFFEE.CO,144.00,TRAINING EXPENSES EXTERNAL GENERAL,MISCELLANEOUS AND SPECIALTY RETAIL STORES
11/09/2019,HOPE SERVICE - WEST,WWW.NISBETS.COM,42.16,CLEANING AND DOMESTIC SUPPLIES,DIRECT MARKETING-CATALOG MERCHANTS
11/09/2019,HOPE SERVICE - WEST,SAINSBURYS LOC 4409,5.00,NEWSPAPER AND PERIODICALS,"GROCERY STORES, SUPERMARKETS"
11/09/2019,PE/CDT MAINTENANCE OVERHEADS,SCREWFIX DIRECT,40.51,EQUIPMENT,HOME SUPPLY WAREHOUSE STORES
11/09/2019,PE/CDT MAINTENANCE OVERHEADS,SCREWFIX DIRECT,36.18,EQUIPMENT,HOME SUPPLY WAREHOUSE STORES
11/09/2019,SERVICE DELIVERY SENIOR MANAGEMENT,POST OFFICE COUNTER,4.55,POSTAGE AND COURIER CHARGES,POSTAL SERVICES-GOVERNMENT ONLY
11/09/2019,SUPERFAST BROADBAND ECONOMIC DEVELOPMENT,LAYERSHIFT,60.00,EDUCATION SEASON TICKETS,COMPUTER NETWORK/INFORMATION SERVICES
11/09/2019,HAVEN YTH CENTRE,POUNDLAND LTD 1244,2.00,REFRESHMENT COSTS,DISCOUNT STORES
11/09/2019,DEVELOPMENT TEAM,GITHUB,43.44,COMPUTER SERVICES,"COMP PROGRAMING,DATA PRCSNG,INTGRTD SYS DSGN SRVS"
11/09/2019,LOCAL ASSISTANCE SCHEME,WEBSTER FLOORS,300.00,FURNITURE,FLOOR COVERING STORES
11/09/2019,SOUTH WEST OUTREACH,SAINSBURYS TO YOU 0652,17.05,PURCHASE OF FOOD (RAW MATERIALS),"GROCERY STORES, SUPERMARKETS"
11/09/2019,SOUTH WEST OUTREACH,SAINSBURYS TO YOU 0652,129.95,PURCHASE OF FOOD (RAW MATERIALS),"GROCERY STORES, SUPERMARKETS"
11/09/2019,HILLSIDE,ASDA SUPERSTORE,45.65,"CLOTHING, UNIFORM AND LAUNDRY","GROCERY STORES, SUPERMARKETS"
11/09/2019,HILLSIDE,ASDA SUPERSTORE,28.05,PURCHASE OF FOOD (RAW MATERIALS),"GROCERY STORES, SUPERMARKETS"
11/09/2019,NE CARE - CP & COURT LAC,RB KINGSTON GUILDHALL2,44.00,OTHER COMMUNITY CARE VOL,GOVERNMENT SERVICES-NOT ELSEWHERE CLASSIFIED
11/09/2019,FAIRCROFT COMMUNITY HOME,DOMINOS,19.49,REFRESHMENT COSTS,"EATING PLACES, RESTAURANTS"
11/09/2019,FAIRCROFT COMMUNITY HOME,MARKS&SPENCER PLC,3.00,REFRESHMENT COSTS,FAST FOOD RESTAURANTS
11/09/2019,FAIRCROFT COMMUNITY HOME,ARGOS COBHAM (INSIDE S,17.49,EDUC VISITS/HOLS/CAMPS/TOYS,DISCOUNT STORES
11/09/2019,ACL CENTRAL EXPENDITURE,WWW.STAC.CO.UK,341.28,EQUIPMENT,"EQUIP, FURNITURE, HOME FURNSHNGS STRS (EXCPT APPL)"
11/09/2019,TARGETED INTERVENTION,CHISLEHURST CAVES,16.00,EDUC VISITS/HOLS/CAMPS/TOYS,TOURIST ATTRACTIONS AND EXHIBITS
11/09/2019,TARGETED INTERVENTION,CHISLEHURST CAVES,4.00,EDUC VISITS/HOLS/CAMPS/TOYS,TOURIST ATTRACTIONS AND EXHIBITS
11/09/2019,COMMUNICATIONS TEAM,HOO HOOTSUITE INC,6.00,PUBLICITY,BUSINESS SERVICES-NOT ELSEWHERE CLASSIFIED
11/09/2019,TARGETED INTERVENTION,SOVEREIGN SNOOKER LTD,16.72,VEHICLE RUNNING COSTS,"CLUBS-CNTRY,MBRSHIP(ATHLET,REC,SPRTS,PRIVATE GOLF"
11/09/2019,ACL CENTRAL EXPENDITURE,AMZNMKTPLACE,-9.99,CURRIC BOOKS,MISCELLANEOUS AND SPECIALTY RETAIL STORES
11/09/2019,ACL CENTRAL EXPENDITURE,TESCO STORE 3149,154.71,EQUIPMENT,"GROCERY STORES, SUPERMARKETS"
11/09/2019,ROW VOLUNTEERS EAST                     ,FIXINGS & POWERTOOL CE,54.52,EQUIPMENT,"BUILDING MATERIALS, LUMBER STORES"
12/09/2019,WOODLANDS COMMUNITY HOME,PRIMARK,107.10,"CLOTHING, UNIFORM AND LAUNDRY",FAMILY CLOTHING STORES
12/09/2019,PASSENGER TRANSPORT CO-ORDINATION CENTRE,HALFORDS ON LINE,250.00,EQUIPMENT,BICYCLE SHOPS-SALES AND SERVICE
12/09/2019,HOPE SERVICE - WEST,NBX CRAGGY ISLAND,26.50,EDUC VISITS/HOLS/CAMPS/TOYS,RECREATION SERVICES (NOT ELSEWHERE CLASSIFIED)
12/09/2019,PE/CDT MAINTENANCE OVERHEADS,RS COMPONENTS,33.12,EQUIPMENT,ELECTRICAL PARTS AND EQUIPMENT
12/09/2019,SW LOOKED AFTER TEAM,PREMIER INN,69.00,INDEPENDENT LIVING PLACEMENTS,PREMIER INN
12/09/2019,SHELL UK LICENSING,LBBRENT HOTLINE PAYMEN,226.00,FEES,GOVERNMENT SERVICES-NOT ELSEWHERE CLASSIFIED
12/09/2019,SHELL UK LICENSING,LBBRENT HOTLINE PAYMEN,226.00,FEES,GOVERNMENT SERVICES-NOT ELSEWHERE CLASSIFIED
12/09/2019,SHELL UK LICENSING,LBBRENT HOTLINE PAYMEN,226.00,FEES,GOVERNMENT SERVICES-NOT ELSEWHERE CLASSIFIED
12/09/2019,SHELL UK LICENSING,LBBRENT HOTLINE PAYMEN,226.00,FEES,GOVERNMENT SERVICES-NOT ELSEWHERE CLASSIFIED
12/09/2019,TARGETED INTERVENTION,TOP GOLF LTD,6.20,EDUC VISITS/HOLS/CAMPS/TOYS,"CLUBS-CNTRY,MBRSHIP(ATHLET,REC,SPRTS,PRIVATE GOLF"
12/09/2019,TARGETED INTERVENTION,HARRIS AND HOOLE  GUIL,2.90,VEHICLE RUNNING COSTS,"EATING PLACES, RESTAURANTS"
12/09/2019,NE SECTION 17 CARE,PREMIER INN,258.00,INDEPENDENT LIVING PLACEMENTS,PREMIER INN
12/09/2019,NE SECTION 17 CARE,PREMIER INN,388.00,INDEPENDENT LIVING PLACEMENTS,PREMIER INN
12/09/2019,CHEYNE WALK COMMUNITY HOME,PRIMARK,83.50,"CLOTHING, UNIFORM AND LAUNDRY",FAMILY CLOTHING STORES
12/09/2019,OPERATIONS GROUP,PREMIER INN,715.50,SUBSISTENCE AND CONFERENCE EXPENSES,PREMIER INN
12/09/2019,ACL CENTRAL EXPENDITURE,AMZ AMAZON.CO.UK,-59.30,CURRIC BOOKS,DIRECT MARKETING-OTHER DIRECT MARKETERS/NOT ELSEW.
12/09/2019,RUTH HOUSE,G J HONOUR,207.79,PURCHASE OF FOOD (RAW MATERIALS),"MISC FOOD STORE-CONVENIENCE,MRKT,SPLTY,VENDNG MACS"
12/09/2019,ACL CENTRAL EXPENDITURE,SCARVA POTTERY SUPPLIE,161.73,EQUIPMENT,"ARTIST SUPPLY STORES, CRAFT SHOPS"
12/09/2019,APPLEWOOD,WWW.LOCKDOCTOR.BIZ,10.62,EQUIPMENT,MISCELLANEOUS AND SPECIALTY RETAIL STORES
12/09/2019,ABBEYWOOD,ROYAL COLLECTIO,56.00,EDUC VISITS/HOLS/CAMPS/TOYS,TOURIST ATTRACTIONS AND EXHIBITS
12/09/2019,ABBEYWOOD,ROYAL COLLECTIO,29.20,EDUC VISITS/HOLS/CAMPS/TOYS,TOURIST ATTRACTIONS AND EXHIBITS
12/09/2019,NE SECTION 17 CARE,TRAVELODGE,207.50,INDEPENDENT LIVING PLACEMENTS,TRAVELODGE
12/09/2019,SE CARE - NON-LAC CP & COURT,SURREY CC CARD PAY,33.00,OTHER COMMUNITY CARE VOL,COMPUTER NETWORK/INFORMATION SERVICES
12/09/2019,SE CARE - NON-LAC CP & COURT,SURREY CC CARD PAY,33.00,OTHER COMMUNITY CARE VOL,COMPUTER NETWORK/INFORMATION SERVICES
12/09/2019,SE CARE - NON-LAC CP & COURT,SURREY CC CARD PAY,33.00,OTHER COMMUNITY CARE VOL,COMPUTER NETWORK/INFORMATION SERVICES
12/09/2019,SE CARE - LAC,SURREY CC CARD PAY,35.00,OTHER COMMUNITY CARE VOL,COMPUTER NETWORK/INFORMATION SERVICES
12/09/2019,ARUNDEL,PARK INN BY RADISSON,"1,000.00",EDUC VISITS/HOLS/CAMPS/TOYS,PARK INN BY RADISSON
12/09/2019,ARUNDEL,PARK INN BY RADISSON,627.00,OPERATIONAL FIRE EQUIPMENT,PARK INN BY RADISSON
12/09/2019,CHEYNE WALK COMMUNITY HOME,BOOTS 1014,16.60,EQUIPMENT,"DRUG STORES, PHARMACIES"
12/09/2019,CHEYNE WALK COMMUNITY HOME,GUNWHARF QUAYS,2.90,NON-STAFF RELATED TRANSPORT COSTS,AUTOMOBILE PARKING LOTS AND GARAGES
12/09/2019,CHEYNE WALK COMMUNITY HOME,GUNWHARF QUAYS,2.90,NON-STAFF RELATED TRANSPORT COSTS,AUTOMOBILE PARKING LOTS AND GARAGES
12/09/2019,CHEYNE WALK COMMUNITY HOME,SUPERDRY GUNWHARF QUAY,49.99,"CLOTHING, UNIFORM AND LAUNDRY",WOMEN'S ACCESSORY AND SPECIALTY STORES
12/09/2019,CHEYNE WALK COMMUNITY HOME,SUPERDRY GUNWHARF QUAY,26.99,"CLOTHING, UNIFORM AND LAUNDRY",WOMEN'S ACCESSORY AND SPECIALTY STORES
12/09/2019,CHEYNE WALK COMMUNITY HOME,MARKS&SPENCER PLC,18.00,"CLOTHING, UNIFORM AND LAUNDRY","GROCERY STORES, SUPERMARKETS"
12/09/2019,CHEYNE WALK COMMUNITY HOME,NCP LTD,2.60,NON-STAFF RELATED TRANSPORT COSTS,AUTOMOBILE PARKING LOTS AND GARAGES
12/09/2019,CHEYNE WALK COMMUNITY HOME,NANDOS PORTSMOUTH,38.40,REFRESHMENT COSTS,"EATING PLACES, RESTAURANTS"
12/09/2019,CHEYNE WALK COMMUNITY HOME,NANDOS PORTSMOUTH,2.80,REFRESHMENT COSTS,"EATING PLACES, RESTAURANTS"
12/09/2019,CHEYNE WALK COMMUNITY HOME,KRISPY KREME PORTSMOUT,3.95,REFRESHMENT COSTS,"CANDY, NUT, CONFECTIONERY STORES"
12/09/2019,CHEYNE WALK COMMUNITY HOME,CO-OP GROUP PETROL,3.00,REFRESHMENT COSTS,SERVICE STATIONS WITH OR WITHOUT ANCILLARY SERVICE
12/09/2019,SE TARGETTED YOUTH SUPPORT,WAITROSE 178,3.00,REFRESHMENT COSTS,"GROCERY STORES, SUPERMARKETS"
12/09/2019,RUTH HOUSE,AMZNMKTPLACE,29.38,EQUIPMENT,MISCELLANEOUS AND SPECIALTY RETAIL STORES
12/09/2019,RUTH HOUSE,AMZNMKTPLACE AMAZON.CO,13.99,EDUC VISITS/HOLS/CAMPS/TOYS,MISCELLANEOUS AND SPECIALTY RETAIL STORES
12/09/2019,RUTH HOUSE,AMAZON.CO.UK MA97L98S4,28.47,EDUC VISITS/HOLS/CAMPS/TOYS,DIRECT MARKETING-OTHER DIRECT MARKETERS/NOT ELSEW.
12/09/2019,HR - CSF TRAINING OPEN PROGRAMME,WESTSUSSEX.GOV.UK,70.00,TRAINING EXPENSES EXTERNAL GENERAL,"COLLEGES, UNIV, PRO SCHOOLS, JUNIOR COLLEGES"
12/09/2019,SE CARE - LAC,L B SOUTHWARK - INT,-33.00,OTHER COMMUNITY CARE VOL,GOVERNMENT SERVICES-NOT ELSEWHERE CLASSIFIED
12/09/2019,HOPE SERVICE - WEST,SAINSBURYS TO YOU 0686,53.58,PURCHASE OF FOOD (RAW MATERIALS),"GROCERY STORES, SUPERMARKETS"
12/09/2019,HOPE SERVICE - WEST,SAINSBURYS TO YOU 0686,-2.50,PURCHASE OF FOOD (RAW MATERIALS),"GROCERY STORES, SUPERMARKETS"
12/09/2019,ORCHARD COURT,WWW.ARGOS.CO.UK,-134.98,FURNITURE,DISCOUNT STORES
12/09/2019,QUADRANT COURT WOKING,FAST KEY SERVICES LIMI,10.25,EQUIPMENT,BUSINESS SERVICES-NOT ELSEWHERE CLASSIFIED
12/09/2019,ACL CENTRAL EXPENDITURE,AMZNMKTPLACE AMAZON.CO,27.99,EQUIPMENT,MISCELLANEOUS AND SPECIALTY RETAIL STORES
12/09/2019,SERVICE DELIVERY RESOURCES,BOOKER LIMITED REDHILL,378.31,REFRESHMENT COSTS,CATERERS
12/09/2019,SCHOOL SPORT 2015-16                    ,DECATHLON FARNBOROUGH,279.95,EQUIPMENT,SPORTING GOODS STORES
12/09/2019,HOPE SERVICE - WEST,SAINSBURYS TO YOU 0683,40.53,PURCHASE OF FOOD (RAW MATERIALS),"GROCERY STORES, SUPERMARKETS"
12/09/2019,HOPE SERVICE - WEST,MCDONALDS,5.07,REFRESHMENT COSTS,FAST FOOD RESTAURANTS
12/09/2019,WOODLANDS COMMUNITY HOME,RYMAN,40.97,EDUC VISITS/HOLS/CAMPS/TOYS,"OFFICE, SCHOOL SUPPLY, AND STATIONERY STORES"
12/09/2019,WOODLANDS COMMUNITY HOME,SPORTSDIRECT 174,85.00,"CLOTHING, UNIFORM AND LAUNDRY",SPORTING GOODS STORES
12/09/2019,AP & AR ORBIS NORTH,WWW.MONEYCLAIM.GOV,60.00,FEES,GOVERNMENT SERVICES-NOT ELSEWHERE CLASSIFIED
12/09/2019,SOLD BUSINESS SUPPORT,THE POST OFFICE,15.60,POSTAGE AND COURIER CHARGES,POSTAL SERVICES-GOVERNMENT ONLY
12/09/2019,SOLD DAY TO DAY OPERATIONS,TESCO STORES,4.65,STAFF TRAINING,"GROCERY STORES, SUPERMARKETS"
12/09/2019,HILLSIDE,SAINSBURYS SACAT 0784,17.25,PURCHASE OF FOOD (RAW MATERIALS),"GROCERY STORES, SUPERMARKETS"
12/09/2019,MALLOW CRESCENT,AMZNMKTPLACE,47.26,EQUIPMENT,MISCELLANEOUS AND SPECIALTY RETAIL STORES
12/09/2019,HOPE SERVICE - WEST,SAINSBURYS SACAT(4409),4.85,PURCHASE OF FOOD (RAW MATERIALS),"GROCERY STORES, SUPERMARKETS"
12/09/2019,LIBERTAS COMMUNITY HOME,AMZNMKTPLACE,84.99,FURNITURE,MISCELLANEOUS AND SPECIALTY RETAIL STORES
12/09/2019,HERITAGE ENTERPRISE (SCAU),HISTORIC ENGLAND,120.00,FEES,TOURIST ATTRACTIONS AND EXHIBITS
12/09/2019,SOLD ESTATES MANAGEMENT,CROWBOROUGH COACHW,54.85,VEHICLE RUNNING COSTS,AUTOMOTIVE SERVICE SHOPS
12/09/2019,SOLD ESTATES MANAGEMENT,RONTEC PIPPBROOK,83.16,VEHICLE RUNNING COSTS,SERVICE STATIONS WITH OR WITHOUT ANCILLARY SERVICE
12/09/2019,SOLD ESTATES MANAGEMENT,SHEERWATER GLASS CENTR,-24.00,VEHICLE REPAIRS AND MAINTENANCE,"CONTRACTORS,SPECIAL TRADE-NOT ELSEWHERE CLASSIFIED"
12/09/2019,ARUNDEL,TESCO STORES 5999,48.72,REFRESHMENT COSTS,"GROCERY STORES, SUPERMARKETS"
12/09/2019,PORTAGE SERVICE (NW),AMAZON.CO.UK MA1VB3874,59.40,CURRICULUM CONSUMABLES,DIRECT MARKETING-OTHER DIRECT MARKETERS/NOT ELSEW.
12/09/2019,SURREY ARTS GENERAL,MUSIC MARK,420.00,STAFF TRAINING,"ORGANIZATIONS, MEMBERSHIP-NOT ELSEWHERE CLASSIFIED"
12/09/2019,PROPERTY OPERATIONS TEAM,HOMEBASE,19.60,PURCHASE OF BUILDING MATERIALS,HOME SUPPLY WAREHOUSE STORES
12/09/2019,HAVEN GUILDFORD,PP FAMILYLINKS,175.00,CURRICULUM CONSUMABLES,"ORGANIZATIONS, CHARITABLE AND SOCIAL SERVICES"
12/09/2019,SHELL UK LICENSING,WWW.MANCHESTER.GOV.UK,226.00,FEES,AUTOMOBILE PARKING LOTS AND GARAGES
12/09/2019,SHELL UK LICENSING,WWW.CHESHIREWESTANDCHE,791.00,FEES,GOVERNMENT SERVICES-NOT ELSEWHERE CLASSIFIED
12/09/2019,TS SERVICE MANAGEMENT,AMZNMKTPLACE AMAZON.CO,9.95,EQUIPMENT,MISCELLANEOUS AND SPECIALTY RETAIL STORES
12/09/2019,TS SERVICE MANAGEMENT,AMZNMKTPLACE AMAZON.CO,11.49,EQUIPMENT,MISCELLANEOUS AND SPECIALTY RETAIL STORES
12/09/2019,DEVELOPMENT TEAM,MSFT  <E01008ZDZN>,"1,461.41",COMPUTER SERVICES,"COMPUTERS, COMPUTER PERIPHERAL EQUIPMENT, SOFTWARE"
12/09/2019,FAIRCROFT COMMUNITY HOME,HARRINGTONS,43.60,REFRESHMENT COSTS,BAKERIES
12/09/2019,FAIRCROFT COMMUNITY HOME,WAITROSE 176,34.91,REFRESHMENT COSTS,"GROCERY STORES, SUPERMARKETS"
12/09/2019,TRANSPORT,WWW.POLYMAX.CO.UK,21.96,VEHICLE REPAIRS AND MAINTENANCE,INDUSTRIAL SUPPLIES NOT ELSEWHERE CLASSIFIED
12/09/2019,TRANSPORT,RESOURCE INTL AUTO,18.70,VEHICLE REPAIRS AND MAINTENANCE,MOTOR VEHICLE SUPPLIES AND NEW PARTS
12/09/2019,HEATHSIDE,ARGOS RETAIL GROUP,329.00,EQUIPMENT,DISCOUNT STORES
12/09/2019,HEATHSIDE,WWW.ARGOS.CO.UK,372.98,EQUIPMENT,DISCOUNT STORES
12/09/2019,KESWICK,CURRYS ONLINE,200.00,EQUIPMENT,ELECTRONIC SALES
12/09/2019,COMMUNICATIONS TEAM,AMAZON.CO.UK MA7NN28E4,28.39,PUBLICITY,DIRECT MARKETING-OTHER DIRECT MARKETERS/NOT ELSEW.
12/09/2019,ACL CENTRAL EXPENDITURE,AMZ AMAZON.CO.UK,-11.34,CURRIC BOOKS,DIRECT MARKETING-OTHER DIRECT MARKETERS/NOT ELSEW.
12/09/2019,ACL CENTRAL EXPENDITURE,AMZ AMAZON.CO.UK,-50.72,CURRIC BOOKS,DIRECT MARKETING-OTHER DIRECT MARKETERS/NOT ELSEW.
12/09/2019,BURBANK COMMUNITY HOME,NETFLIX.COM,8.99,SUBSCRIPTIONS,"CABLE, SATELLITE, OTHER PAY TELEVISION, RADIO SVCS"
12/09/2019,SOLD MANAGEMENT AND OVERHEADS,AMAZON.CO.UK MA0N23BG4,34.25,BOOKS,DIRECT MARKETING-OTHER DIRECT MARKETERS/NOT ELSEW.
12/09/2019,SOLD MANAGEMENT AND OVERHEADS,AMAZON.CO.UK MA8NW6BN4,38.72,BOOKS,DIRECT MARKETING-OTHER DIRECT MARKETERS/NOT ELSEW.
13/09/2019,HOPE SERVICE - WEST,TVLICENSING.CO.UK,154.50,LICENCE FEES,"CONSULTING, MANAGEMENT, AND PUBLIC RELATIONS SVCS"
13/09/2019,LIBERTAS COMMUNITY HOME,TESCO STORES 2025,136.02,PURCHASE OF FOOD (RAW MATERIALS),"GROCERY STORES, SUPERMARKETS"
13/09/2019,ACL CENTRAL EXPENDITURE,SJASUPLIES,328.68,EQUIPMENT,"ORGANIZATIONS, CHARITABLE AND SOCIAL SERVICES"
13/09/2019,TRANSPORT,PAYPAL  DSGRETAILLI,369.00,EQUIPMENT,CAMERA AND PHOTOGRAPHIC SUPPLY STORES
13/09/2019,SEN ADAPTATIONS IN SCHOOLS,NRS HEALTHCARE,65.69,EQUIPMENT,DENTAL/LAB/MED/OPHTHALMIC HOSP EQUIP & SUPPLIES
13/09/2019,SOLD PROFESSIONAL TRAINING AND DEVLPMNT,BRITISHCANOEING,80.00,FEES,COMPUTER SOFTWARE STORES
13/09/2019,MISC EDCAT SUPPORT,ENVATOMARKET49172191,8.02,PUBLICITY,DIGITAL GOODS AUDIOVISUAL MEDIA
13/09/2019,MISC EDCAT SUPPORT,ENVATOMARKET49172882,9.02,PUBLICITY,DIGITAL GOODS AUDIOVISUAL MEDIA
13/09/2019,WOODLANDS COMMUNITY HOME,SAINSBURYS 0686,10.45,PURCHASE OF FOOD (RAW MATERIALS),"GROCERY STORES, SUPERMARKETS"
13/09/2019,WOODLANDS COMMUNITY HOME,SAINSBURYS 0686,88.55,PURCHASE OF FOOD (RAW MATERIALS),"GROCERY STORES, SUPERMARKETS"
13/09/2019,WOODLANDS COMMUNITY HOME,SECURITYSAFETYPRODUCTS,49.92,BOOKS,"DETECTVE/PROTECTVE AGNCY,SECURITY SRVS, ARMOR CARS"
13/09/2019,LIBERTAS COMMUNITY HOME,SAINSBURYS SACAT 0652,25.75,PURCHASE OF FOOD (RAW MATERIALS),"GROCERY STORES, SUPERMARKETS"
13/09/2019,LIBERTAS COMMUNITY HOME,SAINSBURYS 0652,10.00,EDUC VISITS/HOLS/CAMPS/TOYS,"GROCERY STORES, SUPERMARKETS"
13/09/2019,FAIRCROFT COMMUNITY HOME,AMZNMKTPLACE,23.67,EQUIPMENT,MISCELLANEOUS AND SPECIALTY RETAIL STORES
13/09/2019,SOLD ESTATES MANAGEMENT,AMZNMKTPLACE AMAZON.CO,6.84,DAY TO DAY MAINTENANCE,MISCELLANEOUS AND SPECIALTY RETAIL STORES
13/09/2019,CLOSED LANDFILL,WWW.THOMASTELFORD.CO.U,58.07,BOOKS,MISCELLANEOUS PUBLISHING AND PRINTING
13/09/2019,HOPE SERVICE - WEST,SAINSBURYS SACAT(4409),1.75,PURCHASE OF FOOD (RAW MATERIALS),"GROCERY STORES, SUPERMARKETS"
13/09/2019,ARUNDEL,TESCO STORES 5999,216.54,REFRESHMENT COSTS,"GROCERY STORES, SUPERMARKETS"
13/09/2019,HILLSIDE,SAINSBURYS 0784,3.40,CLEANING AND DOMESTIC SUPPLIES,"GROCERY STORES, SUPERMARKETS"
13/09/2019,HILLSIDE,SAINSBURYS 0784,17.30,PURCHASE OF FOOD (RAW MATERIALS),"GROCERY STORES, SUPERMARKETS"
13/09/2019,LIBERTAS COMMUNITY HOME,B & Q 1029,85.58,DAY TO DAY MAINTENANCE,HOME SUPPLY WAREHOUSE STORES
13/09/2019,ACL CENTRAL EXPENDITURE,WWW.STAC.CO.UK,341.28,EQUIPMENT,"EQUIP, FURNITURE, HOME FURNSHNGS STRS (EXCPT APPL)"
13/09/2019,NATIONAL TRADING STANDARDS SCAM TEAM,FAST KEY SERVICES LIMI,19.22,EQUIPMENT,BUSINESS SERVICES-NOT ELSEWHERE CLASSIFIED
13/09/2019,STRATEGIC LEADERSHIP (CEO & ACEO),SOCIETYM,631.00,VENUE COSTS (INCLUDING HIRE OF ROOMS),"LODGING-HOTELS,MOTELS,RESORTS-NOT CLASSIFIED"
13/09/2019,TARGETED INTERVENTION,DESIGN CAFE BY ABSOLUT,7.10,EDUC VISITS/HOLS/CAMPS/TOYS,"EATING PLACES, RESTAURANTS"
13/09/2019,FAIRCROFT COMMUNITY HOME,SAINSBURYS SACAT (2290,28.12,REFRESHMENT COSTS,"GROCERY STORES, SUPERMARKETS"
13/09/2019,FAIRCROFT COMMUNITY HOME,KFC-BOGNOR REGIS DT,10.58,REFRESHMENT COSTS,FAST FOOD RESTAURANTS
13/09/2019,WOODLANDS COMMUNITY HOME,TRAINLINE.COM,100.63,MISCELLANEOUS STAFF TRAVEL,PASSENGER RAILWAYS
13/09/2019,WOODLANDS COMMUNITY HOME,NEW UNION HOTEL,40.00,STAFF TRAINING,"LODGING-HOTELS,MOTELS,RESORTS-NOT CLASSIFIED"
13/09/2019,APPLEWOOD,ASDA GROCERIES ONLINE,164.07,PURCHASE OF FOOD (RAW MATERIALS),"GROCERY STORES, SUPERMARKETS"
13/09/2019,APPLEWOOD,ASDA GROCERIES ONLINE,-2.78,PURCHASE OF FOOD (RAW MATERIALS),"GROCERY STORES, SUPERMARKETS"
13/09/2019,ABBEYWOOD,AMZNMKTPLACE AMAZON.CO,167.98,DAY TO DAY MAINTENANCE,MISCELLANEOUS AND SPECIALTY RETAIL STORES
13/09/2019,NE SECTION 17 CARE,HOTELSCOM8096492556617,325.71,INDEPENDENT LIVING PLACEMENTS,TRAVEL AGENCIES AND TOUR OPERATORS
13/09/2019,SE CP & COURT TEAM,TRAVELODGE,70.24,OTHER COMMUNITY CARE VOL,TRAVELODGE
13/09/2019,NE SECTION 17 CARE,TRAVELODGE,400.00,INDEPENDENT LIVING PLACEMENTS,TRAVELODGE
13/09/2019,NE SECTION 17 CARE,PREMIER INN,298.50,INDEPENDENT LIVING PLACEMENTS,PREMIER INN
13/09/2019,SE CARE - CP & COURT LAC,SURREY CC CARD PAY,33.00,OTHER COMMUNITY CARE VOL,COMPUTER NETWORK/INFORMATION SERVICES
13/09/2019,ARUNDEL,B & Q 1191,106.00,EQUIPMENT,HOME SUPPLY WAREHOUSE STORES
13/09/2019,HOPE SERVICE - WEST,SAINSBURYS LOC 4409,8.15,NEWSPAPER AND PERIODICALS,"GROCERY STORES, SUPERMARKETS"
13/09/2019,EXTENDED HOPE,TESCO STORE 2590,84.52,PURCHASE OF FOOD (RAW MATERIALS),"GROCERY STORES, SUPERMARKETS"
13/09/2019,CHALKMEAD,TESCO STORES 5687,20.07,PURCHASE OF FOOD (RAW MATERIALS),"GROCERY STORES, SUPERMARKETS"
13/09/2019,TARGETED INTERVENTION,STARBUCKS COBHAM,12.15,EDUC VISITS/HOLS/CAMPS/TOYS,"EATING PLACES, RESTAURANTS"
13/09/2019,TARGETED INTERVENTION,TOP GOLF LTD,35.00,EDUC VISITS/HOLS/CAMPS/TOYS,"CLUBS-CNTRY,MBRSHIP(ATHLET,REC,SPRTS,PRIVATE GOLF"
13/09/2019,RUTH HOUSE,SAINSBURYS TO YOU 0686,12.80,PURCHASE OF FOOD (RAW MATERIALS),"GROCERY STORES, SUPERMARKETS"
13/09/2019,RUTH HOUSE,SAINSBURYS TO YOU 0686,82.70,PURCHASE OF FOOD (RAW MATERIALS),"GROCERY STORES, SUPERMARKETS"
13/09/2019,WORKPLACE COMMERCIAL TEAM,APPLE STORE R227,9.00,EQUIPMENT,ELECTRONIC SALES
13/09/2019,BURBANK COMMUNITY HOME,DEBRA,5.50,"CLOTHING, UNIFORM AND LAUNDRY","ORGANIZATIONS, CHARITABLE AND SOCIAL SERVICES"
13/09/2019,MEADOWSIDE,AMAZON PRIME MA0T25QS4,7.99,BOOKS,DIRECT MARKETING-CONTINUITY/SUBSCRIPTION MERCHANTS
14/09/2019,DOWNLANDS COUNTRYSIDE PROJECT,WICKES EPSOM,5.00,DAY TO DAY MAINTENANCE,"BUILDING MATERIALS, LUMBER STORES"
14/09/2019,HILLSIDE,SAINSBURYS TO YOU 0675,18.90,PURCHASE OF FOOD (RAW MATERIALS),"GROCERY STORES, SUPERMARKETS"
14/09/2019,HILLSIDE,SAINSBURYS TO YOU 0675,166.50,PURCHASE OF FOOD (RAW MATERIALS),"GROCERY STORES, SUPERMARKETS"
14/09/2019,ARUNDEL,TESCO STORES 5999,-13.95,REFRESHMENT COSTS,"GROCERY STORES, SUPERMARKETS"
14/09/2019,KARIBU COMMUNITY HOME,TESCO STORE 2812,106.84,PURCHASE OF FOOD (RAW MATERIALS),"GROCERY STORES, SUPERMARKETS"
14/09/2019,DEVELOPMENT TEAM,MSFT   E01008ZU2C,833.91,COMPUTER SERVICES,"COMPUTERS, COMPUTER PERIPHERAL EQUIPMENT, SOFTWARE"
14/09/2019,LIBERTAS COMMUNITY HOME,FREEPRINTS,9.93,EQUIPMENT,"PHOTO DEVELOPING, PHOTOFINISHING LABORATORIES"
14/09/2019,LIBERTAS COMMUNITY HOME,B & Q 1029,155.18,EQUIPMENT,HOME SUPPLY WAREHOUSE STORES
14/09/2019,NATIONAL TRADING STANDARDS SCAM TEAM,SECOND NEST LTD,-300.00,PURCHASE CARD TRANSACTION LOG DEFAULT,REAL ESTATE AGENTS AND MANAGERS-RENTALS
14/09/2019,FAIRCROFT COMMUNITY HOME,THE PIER SHOP,5.00,REFRESHMENT COSTS,FAST FOOD RESTAURANTS
14/09/2019,FAIRCROFT COMMUNITY HOME,BUTLINS BURGER KING,9.91,REFRESHMENT COSTS,"BAR,LOUNGE,DISCO,NIGHTCLUB,TAVERN-ALCOHOLIC DRINKS"
14/09/2019,APPLEWOOD,AMZNMKTPLACE,24.20,EQUIPMENT,MISCELLANEOUS AND SPECIALTY RETAIL STORES
14/09/2019,BURBANK COMMUNITY HOME,DOMINOS PIZZA UK & IRE,11.99,REFRESHMENT COSTS,"EATING PLACES, RESTAURANTS"
14/09/2019,BURBANK COMMUNITY HOME,MCDONALDS 1559,21.42,REFRESHMENT COSTS,FAST FOOD RESTAURANTS
14/09/2019,BURBANK COMMUNITY HOME,DOMINOS,6.49,REFRESHMENT COSTS,"EATING PLACES, RESTAURANTS"
15/09/2019,FAIRCROFT COMMUNITY HOME,BUTLINS PAPA JOHNS,3.25,REFRESHMENT COSTS,"BAR,LOUNGE,DISCO,NIGHTCLUB,TAVERN-ALCOHOLIC DRINKS"
15/09/2019,FAIRCROFT COMMUNITY HOME,BUTLINS RESTAURANTS,7.80,REFRESHMENT COSTS,"BAR,LOUNGE,DISCO,NIGHTCLUB,TAVERN-ALCOHOLIC DRINKS"
15/09/2019,NE TARGETTED YOUTH SUPPORT,AMAZON.CO.UK MA8IA2HR4,28.60,EQUIPMENT,DIRECT MARKETING-OTHER DIRECT MARKETERS/NOT ELSEW.
15/09/2019,ACL CENTRAL EXPENDITURE,AMAZON.CO.UK MA8BT8QF4,26.99,EQUIPMENT,DIRECT MARKETING-OTHER DIRECT MARKETERS/NOT ELSEW.
15/09/2019,SOLD CATERING,SAINSBURYS 0680,101.76,PURCHASE OF FOOD (RAW MATERIALS),"GROCERY STORES, SUPERMARKETS"
15/09/2019,MISC EDCAT SUPPORT,AMZNMKTPLACE,76.92,EQUIPMENT,MISCELLANEOUS AND SPECIALTY RETAIL STORES
15/09/2019,MISC EDCAT SUPPORT,AMZNMKTPLACE,25.18,PUBLICITY,MISCELLANEOUS AND SPECIALTY RETAIL STORES
15/09/2019,CHIEF PROPERTY OFFICER,AMAZON.CO.UK MA31L7QN4,19.77,STATIONERY,DIRECT MARKETING-OTHER DIRECT MARKETERS/NOT ELSEW.
15/09/2019,ASSET DATA MANAGER,AMAZON.CO.UK MA31L7QN4,149.47,EQUIPMENT,DIRECT MARKETING-OTHER DIRECT MARKETERS/NOT ELSEW.
15/09/2019,HAVEN GUILDFORD,WAITROSE 589,6.55,REFRESHMENT COSTS,"GROCERY STORES, SUPERMARKETS"
15/09/2019,HAVEN YTH CENTRE,CO-OP GROUP FOOD,4.90,REFRESHMENT COSTS,"GROCERY STORES, SUPERMARKETS"
15/09/2019,COUNTY HALL,AMZNMKTPLACE,45.68,EQUIPMENT,MISCELLANEOUS AND SPECIALTY RETAIL STORES
15/09/2019,FAIRCROFT COMMUNITY HOME,BUTLINS SUPERMARKETS,3.44,REFRESHMENT COSTS,"GROCERY STORES, SUPERMARKETS"
15/09/2019,ROW VOLUNTEERS EAST                     ,ENTERPRISE RENT-A-CAR,59.40,DAY TO DAY MAINTENANCE,ENTERPRISE RENT-A-CAR
15/09/2019,CHEYNE WALK COMMUNITY HOME,AMAZON PRIME MA1HX76N4,7.99,"CLOTHING, UNIFORM AND LAUNDRY",DIRECT MARKETING-CONTINUITY/SUBSCRIPTION MERCHANTS
15/09/2019,MALLOW CRESCENT,SAINSBURYS TO YOU 0652,145.28,PURCHASE OF FOOD (RAW MATERIALS),"GROCERY STORES, SUPERMARKETS"
15/09/2019,ROW VOLUNTEERS WEST                     ,AMZNMKTPLACE,310.25,EQUIPMENT,MISCELLANEOUS AND SPECIALTY RETAIL STORES
15/09/2019,BURBANK COMMUNITY HOME,W M MORRISON STORE,25.03,REFRESHMENT COSTS,"GROCERY STORES, SUPERMARKETS"
15/09/2019,RECRUITMENT,FACEBK  QU7KSNNPS2,50.00,STAFF ADVERTISING ,ADVERTISING SERVICES
15/09/2019,RIGHTS & PARTICIPATION TEAM,AMAZON.CO.UK MA2NE88I4,23.96,STATIONERY,DIRECT MARKETING-OTHER DIRECT MARKETERS/NOT ELSEW.
16/09/2019,ORBIS PENSION FUND AND TREASURY,LINCOMBE HALL HOTEL,280.00,PURCHASE CARD TRANSACTION LOG DEFAULT,"LODGING-HOTELS,MOTELS,RESORTS-NOT CLASSIFIED"
16/09/2019,FAIRCROFT COMMUNITY HOME,GEN REGISTER OFFICE,38.00,EQUIPMENT,GOVERNMENT SERVICES-NOT ELSEWHERE CLASSIFIED
16/09/2019,HEATHSIDE,ARGOS RETAIL GROUP,160.00,FURNITURE,DISCOUNT STORES
16/09/2019,ACL CENTRAL EXPENDITURE,TESCO STORE 2160,48.68,REFRESHMENT COSTS,"GROCERY STORES, SUPERMARKETS"
16/09/2019,HR - CSF TRAINING OPEN PROGRAMME,EB  NATIONAL I-THRIVE,150.00,STAFF TRAINING,BUSINESS SERVICES-NOT ELSEWHERE CLASSIFIED
16/09/2019,ROW VOLUNTEERS WEST                     ,AMZNMKTPLACE,24.50,EQUIPMENT,MISCELLANEOUS AND SPECIALTY RETAIL STORES
16/09/2019,DOWNLANDS COUNTRYSIDE PROJECT,NORTHPOINT VET SERVICE,154.13,FEES,VETERINARY SERVICES
16/09/2019,CHALKMEAD,HOMEBASE LTD 247,20.50,DAY TO DAY MAINTENANCE,HOME SUPPLY WAREHOUSE STORES
16/09/2019,CHEYNE WALK COMMUNITY HOME,FRESH BAZAR FOOD,8.37,PURCHASE OF FOOD (RAW MATERIALS),"GROCERY STORES, SUPERMARKETS"
16/09/2019,RECRUITMENT,HAYMARKET MEDIA GROUP,"1,254.00",STAFF ADVERTISING ,"CONSULTING, MANAGEMENT, AND PUBLIC RELATIONS SVCS"
16/09/2019,SE TARGETTED YOUTH SUPPORT,WAITROSE 178,1.43,REFRESHMENT COSTS,"GROCERY STORES, SUPERMARKETS"
16/09/2019,SE TARGETTED YOUTH SUPPORT,WAITROSE 178,0.42,REFRESHMENT COSTS,"GROCERY STORES, SUPERMARKETS"
16/09/2019,SE TARGETTED YOUTH SUPPORT,WM MORRISONS STORE,12.93,REFRESHMENT COSTS,"GROCERY STORES, SUPERMARKETS"
16/09/2019,TARGETED INTERVENTION,TESCO STORES 2017,4.70,EDUC VISITS/HOLS/CAMPS/TOYS,"GROCERY STORES, SUPERMARKETS"
16/09/2019,TARGETED INTERVENTION,WWW.CGPBOOKS.CO.UK,22.50,EXAMINATION FEES,MISCELLANEOUS AND SPECIALTY RETAIL STORES
16/09/2019,TARGETED INTERVENTION,WWW.CGPBOOKS.CO.UK,20.50,EXAMINATION FEES,MISCELLANEOUS AND SPECIALTY RETAIL STORES
16/09/2019,TARGETED INTERVENTION,STARBUCKS,8.25,EDUC VISITS/HOLS/CAMPS/TOYS,FAST FOOD RESTAURANTS
16/09/2019,RUTH HOUSE,WWW.BOZFRUITVEG.CO.UK,844.20,PURCHASE OF FOOD (RAW MATERIALS),COMPUTER SOFTWARE STORES
16/09/2019,RUTH HOUSE,ARGOS LTD,85.99,EQUIPMENT,DISCOUNT STORES
16/09/2019,RUTH HOUSE,ARGOS LTD,28.99,EQUIPMENT,DISCOUNT STORES
16/09/2019,LIBERTAS COMMUNITY HOME,SAINSBURYS SACAT 0652,152.98,PURCHASE OF FOOD (RAW MATERIALS),"GROCERY STORES, SUPERMARKETS"
16/09/2019,MALLOW CRESCENT,SAINSBURYS 0670,130.58,PURCHASE OF FOOD (RAW MATERIALS),"GROCERY STORES, SUPERMARKETS"
16/09/2019,HOPE SERVICE - WEST,SAINSBURYS TO YOU 0686,70.17,PURCHASE OF FOOD (RAW MATERIALS),"GROCERY STORES, SUPERMARKETS"
16/09/2019,APPLEWOOD,AMZNMKTPLACE AMAZON.CO,9.96,EQUIPMENT,MISCELLANEOUS AND SPECIALTY RETAIL STORES
16/09/2019,MISC EDCAT SUPPORT,ENVATOMARKET49215788,22.91,PUBLICITY,DIGITAL GOODS AUDIOVISUAL MEDIA
16/09/2019,MISC EDCAT SUPPORT,FIVERR.COM,10.10,PUBLICITY,DIRECT MARKETING-CATALOG MERCHANTS
16/09/2019,BURBANK COMMUNITY HOME,WWW.SURREYCC.GOV.UK,100.00,REFRESHMENT COSTS,GOVERNMENT SERVICES-NOT ELSEWHERE CLASSIFIED
16/09/2019,REIGATE AND BANSTEAD LOCALITY TEAM,AMAZON.CO.UK MA7R62DC4,19.48,EQUIPMENT,DIRECT MARKETING-OTHER DIRECT MARKETERS/NOT ELSEW.
16/09/2019,OCCUPATIONAL HEALTH,AMAZON.CO.UK MA2QH4DH4,44.98,EQUIPMENT,DIRECT MARKETING-OTHER DIRECT MARKETERS/NOT ELSEW.
16/09/2019,HOPE SERVICE - WEST,AMAZON.CO.UK MA2PC6QN4,11.97,BOOKS,DIRECT MARKETING-OTHER DIRECT MARKETERS/NOT ELSEW.
16/09/2019,SERVICE DELIVERY RESOURCES,SELFSERVE TICKET,49.40,MISCELLANEOUS STAFF TRAVEL,PASSENGER RAILWAYS
16/09/2019,MALLOW CRESCENT,TESCO STORE 2590,102.09,PURCHASE OF FOOD (RAW MATERIALS),"GROCERY STORES, SUPERMARKETS"
16/09/2019,MALLOW CRESCENT,TESCO STORE 2590,61.74,PURCHASE OF FOOD (RAW MATERIALS),"GROCERY STORES, SUPERMARKETS"
16/09/2019,HILLSIDE,SAINSBURYS SACAT 0675,18.95,PURCHASE OF FOOD (RAW MATERIALS),"GROCERY STORES, SUPERMARKETS"
16/09/2019,COMMUNITY ARCHAEOLOGIST PROJECT,W M MORRISON,88.18,EQUIPMENT,SERVICE STATIONS WITH OR WITHOUT ANCILLARY SERVICE
16/09/2019,LIBERTAS COMMUNITY HOME,AMAZON.CO.UK MA0XR8DH4,29.30,CURRIC BOOKS,DIRECT MARKETING-OTHER DIRECT MARKETERS/NOT ELSEW.
16/09/2019,LIBERTAS COMMUNITY HOME,GIFFGAFF,25.00,TELECOMMUNICATION CHARGES,TELECOM INCL PREPAID/RECURRING PHONE SVCS
16/09/2019,MALLOW CRESCENT,TESCO STORE 2590,152.53,PURCHASE OF FOOD (RAW MATERIALS),"GROCERY STORES, SUPERMARKETS"
16/09/2019,NE SECTION 17 CARE,TRAVELODGE,338.00,INDEPENDENT LIVING PLACEMENTS,TRAVELODGE
16/09/2019,ROW VOLUNTEERS EAST                     ,ENTERPRISE RENT-A-CAR,251.98,DAY TO DAY MAINTENANCE,ENTERPRISE RENT-A-CAR
16/09/2019,ROW VOLUNTEERS EAST                     ,MFG GATTON POINT,11.50,DAY TO DAY MAINTENANCE,SERVICE STATIONS WITH OR WITHOUT ANCILLARY SERVICE
16/09/2019,TRANSPORT,SCREWFIX DIRECT,25.29,VEHICLE REPAIRS AND MAINTENANCE,HOME SUPPLY WAREHOUSE STORES
16/09/2019,ABBEYWOOD,AMZNMKTPLACE,13.98,STATIONERY,MISCELLANEOUS AND SPECIALTY RETAIL STORES
16/09/2019,HOPE SERVICE - WEST,SAINSBURYS TO YOU 0683,65.55,PURCHASE OF FOOD (RAW MATERIALS),"GROCERY STORES, SUPERMARKETS"
16/09/2019,COUNTRYSIDE PROJECT DEVELOPMENT,WIZZ AIR  DE39JD,407.94,MISCELLANEOUS STAFF TRAVEL,"AIR CARRIERS, AIRLINES-NOT ELSEWHERE CLASSIFIED"
16/09/2019,HEATHSIDE,NURSECALLMATS.CO.UK,216.00,EQUIPMENT,"EQUIP, FURNITURE, HOME FURNSHNGS STRS (EXCPT APPL)"
16/09/2019,CHEYNE WALK COMMUNITY HOME,M&S SIMPLY FOOD - SSP,11.00,DAY TO DAY MAINTENANCE,"MISC FOOD STORE-CONVENIENCE,MRKT,SPLTY,VENDNG MACS"
16/09/2019,TRANSPORT,AMZNMKTPLACE,65.95,DAY TO DAY MAINTENANCE,MISCELLANEOUS AND SPECIALTY RETAIL STORES
17/09/2019,BURBANK COMMUNITY HOME,3C_ WOKING BOROUGH COU,1.40,MISCELLANEOUS STAFF TRAVEL,AUTOMOBILE PARKING LOTS AND GARAGES
17/09/2019,ROW MAINTENANCE,ENTERPRISE RENT-A-CAR,-200.00,DAY TO DAY MAINTENANCE,ENTERPRISE RENT-A-CAR
17/09/2019,COMMUNICATIONS TEAM,HP INC UK LIMITED,163.20,PRINTING,"COMPUTERS, COMPUTER PERIPHERAL EQUIPMENT, SOFTWARE"
17/09/2019,NW NIL RECOURSE TO PUBLIC FUNDS CARE,PREMIER INN,112.00,INDEPENDENT LIVING PLACEMENTS,PREMIER INN
17/09/2019,ROW VOLUNTEERS EAST                     ,FAIRALLS (BUILDERS' ME,185.18,DAY TO DAY MAINTENANCE,"BUILDING MATERIALS, LUMBER STORES"
17/09/2019,ROW VOLUNTEERS EAST                     ,ENTERPRISE RENT-A-CAR,55.70,DAY TO DAY MAINTENANCE,ENTERPRISE RENT-A-CAR
17/09/2019,TARGETED INTERVENTION,SOVEREIGN SNOOKER LTD,10.52,EDUC VISITS/HOLS/CAMPS/TOYS,"CLUBS-CNTRY,MBRSHIP(ATHLET,REC,SPRTS,PRIVATE GOLF"
17/09/2019,HEATHSIDE,AMZNMKTPLACE,39.80,EQUIPMENT,MISCELLANEOUS AND SPECIALTY RETAIL STORES
17/09/2019,HEATHSIDE,AMZNMKTPLACE AMAZON.CO,3.77,EQUIPMENT,MISCELLANEOUS AND SPECIALTY RETAIL STORES
17/09/2019,COMMUNICATIONS TEAM,AMZNMKTPLACE,5.98,EQUIPMENT,MISCELLANEOUS AND SPECIALTY RETAIL STORES
17/09/2019,CHEYNE WALK COMMUNITY HOME,SAINSBURYS 2325,50.77,PURCHASE OF FOOD (RAW MATERIALS),"GROCERY STORES, SUPERMARKETS"
17/09/2019,CHEYNE WALK COMMUNITY HOME,SUMUP   SHOPPERS PARAD,94.81,EDUC VISITS/HOLS/CAMPS/TOYS,MISCELLANEOUS AND SPECIALTY RETAIL STORES
17/09/2019,SURREY PENSIONS,WWW.BHCC-INTERNET,11.00,PURCHASE CARD TRANSACTION LOG DEFAULT,GOVERNMENT SERVICES-NOT ELSEWHERE CLASSIFIED
17/09/2019,SURREY PENSIONS,WWW.BHCC-INTERNET,11.00,PURCHASE CARD TRANSACTION LOG DEFAULT,GOVERNMENT SERVICES-NOT ELSEWHERE CLASSIFIED
17/09/2019,SURREY PENSIONS,WWW.BHCC-INTERNET,11.00,PURCHASE CARD TRANSACTION LOG DEFAULT,GOVERNMENT SERVICES-NOT ELSEWHERE CLASSIFIED
17/09/2019,SURREY PENSIONS,WWW.EASTSUSSEXCC.GOV.U,11.00,PURCHASE CARD TRANSACTION LOG DEFAULT,GOVERNMENT SERVICES-NOT ELSEWHERE CLASSIFIED
17/09/2019,SURREY PENSIONS,WESTSUSSEX.GOV.UK,11.00,PURCHASE CARD TRANSACTION LOG DEFAULT,"COLLEGES, UNIV, PRO SCHOOLS, JUNIOR COLLEGES"
17/09/2019,SURREY PENSIONS,WESTMINSTER CITY COUNC,16.00,PURCHASE CARD TRANSACTION LOG DEFAULT,GOVERNMENT SERVICES-NOT ELSEWHERE CLASSIFIED
17/09/2019,SURREY PENSIONS,WWW.EASTSUSSEXCC.GOV.U,-11.00,PURCHASE CARD TRANSACTION LOG DEFAULT,GOVERNMENT SERVICES-NOT ELSEWHERE CLASSIFIED
17/09/2019,ABBEYWOOD,AMZNMKTPLACE,19.98,MEDICAL EXPENSES,MISCELLANEOUS AND SPECIALTY RETAIL STORES
17/09/2019,HERITAGE PUBLIC SERVICE,W M MORRISON STORE,34.00,REFRESHMENT COSTS,"GROCERY STORES, SUPERMARKETS"
17/09/2019,DOWNLANDS COUNTRYSIDE PROJECT,HARRY HAWKINS,18.00,FEES,FUNERAL SERVICE AND CREMATORIES
17/09/2019,DOWNLANDS COUNTRYSIDE PROJECT,FR JONES AND SON LTD,304.85,DAY TO DAY MAINTENANCE,LAWN AND GARDEN SUPPLY STORES
17/09/2019,EXTENDED HOPE,TESCO STORE 2590,67.53,PURCHASE OF FOOD (RAW MATERIALS),"GROCERY STORES, SUPERMARKETS"
17/09/2019,ARUNDEL,TESCO STORES 5999,80.36,REFRESHMENT COSTS,"GROCERY STORES, SUPERMARKETS"
17/09/2019,TRANSPORT,AMZNMKTPLACE,35.97,DAY TO DAY MAINTENANCE,MISCELLANEOUS AND SPECIALTY RETAIL STORES
17/09/2019,TRANSPORT,PAYPAL  NISBETS,55.53,DAY TO DAY MAINTENANCE,"AUTOMOTIVE PARTS, ACCESSORIES STORES"
17/09/2019,TRANSPORT,JACKSON'S QUALITY SHOE,36.79,DAY TO DAY MAINTENANCE,"HAT CLEANING SHOPS, SHOE REPAIR SHOPS, SHOE SHINE"
17/09/2019,CORE ACTIVITY                           ,MAILCHIMP    MONTHLY,40.63,COMPUTER SOFTWARE,DIRECT MARKETING-CONTINUITY/SUBSCRIPTION MERCHANTS
17/09/2019,ACL CENTRAL EXPENDITURE,SPECIALIST CRAFTS LTD,160.88,CURRICULUM EQUIPMENT AND FURNITURE,"ARTIST SUPPLY STORES, CRAFT SHOPS"
17/09/2019,APPLEWOOD,AUTOGLASS,451.86,VEHICLE REPAIRS AND MAINTENANCE,"AUTOMOTIVE PARTS, ACCESSORIES STORES"
17/09/2019,MISC EDCAT SUPPORT,CHARTERED INSTITUTE OF,240.00,TRAINING EXPENSES EXTERNAL GENERAL,"ORGANIZATIONS, CHARITABLE AND SOCIAL SERVICES"
17/09/2019,MISC EDCAT SUPPORT,STAMPIT,311.10,PUBLICITY,"OFFICE, SCHOOL SUPPLY, AND STATIONERY STORES"
17/09/2019,BURBANK COMMUNITY HOME,AMZNMKTPLACE,3.75,EQUIPMENT,MISCELLANEOUS AND SPECIALTY RETAIL STORES
17/09/2019,FIRE SERVICES IT,WWW.PRISM-ONLINE.CO.UK,204.60,COMPUTER HARDWARE,"COMMERCIAL EQUIPMENT, NOT ELSEWHERE CLASSIFIED"
17/09/2019,WOODLANDS COMMUNITY HOME,SAINSBURYS 0686,11.60,EQUIPMENT,"GROCERY STORES, SUPERMARKETS"
17/09/2019,WOODLANDS COMMUNITY HOME,SAINSBURYS 0686,19.85,PURCHASE OF FOOD (RAW MATERIALS),"GROCERY STORES, SUPERMARKETS"
17/09/2019,WOODLANDS COMMUNITY HOME,SAINSBURYS 0686,112.06,PURCHASE OF FOOD (RAW MATERIALS),"GROCERY STORES, SUPERMARKETS"
17/09/2019,ACL CENTRAL EXPENDITURE,SOLARWINDS MSP,35.99,COMPUTER SOFTWARE,"COMPUTERS, COMPUTER PERIPHERAL EQUIPMENT, SOFTWARE"
17/09/2019,LOWER MOLE COUNTRYSIDE PROJECT,SCREWFIX DIRECT,51.42,PURCHASE OF BUILDING MATERIALS,HOME SUPPLY WAREHOUSE STORES
17/09/2019,IMCA / DEPRIVATION OF LIBERTY,AMAZON.CO.UK MA3NJ7804,220.00,STAFF TRAINING,DIRECT MARKETING-OTHER DIRECT MARKETERS/NOT ELSEW.
17/09/2019,FAIRCROFT COMMUNITY HOME,GAME RETAIL,10.00,EDUC VISITS/HOLS/CAMPS/TOYS,"GAME, TOY, AND HOBBY SHOPS"
17/09/2019,FAIRCROFT COMMUNITY HOME,KFC KINGSTON,11.88,REFRESHMENT COSTS,FAST FOOD RESTAURANTS
17/09/2019,CHALKMEAD,TOOLSTATION LTD,47.04,DAY TO DAY MAINTENANCE,HARDWARE STORES
17/09/2019,CHEYNE WALK COMMUNITY HOME,DIGITAL REPAIR  EXCHAN,40.00,EQUIPMENT,TELECOMMUNICATION EQUIPMENT INCL TELEPHONE SALES
17/09/2019,CHEYNE WALK COMMUNITY HOME,BOOTS/0837,28.32,EQUIPMENT,"DRUG STORES, PHARMACIES"
17/09/2019,CHEYNE WALK COMMUNITY HOME,LIDL GB HORLEY,17.03,PURCHASE OF FOOD (RAW MATERIALS),"GROCERY STORES, SUPERMARKETS"
17/09/2019,FAIRCROFT COMMUNITY HOME,SAINSBURYS 0687,38.90,PURCHASE OF FOOD (RAW MATERIALS),"GROCERY STORES, SUPERMARKETS"
17/09/2019,TARGETED INTERVENTION,STARBUCKS COBHAM,11.75,EDUC VISITS/HOLS/CAMPS/TOYS,"EATING PLACES, RESTAURANTS"
17/09/2019,TARGETED INTERVENTION,FRESH GOLF LIMITED,8.50,EDUC VISITS/HOLS/CAMPS/TOYS,"CLUBS-CNTRY,MBRSHIP(ATHLET,REC,SPRTS,PRIVATE GOLF"
17/09/2019,PSS COUNTYWIDE,AMZNMKTPLACE,19.43,EQUIPMENT,MISCELLANEOUS AND SPECIALTY RETAIL STORES
17/09/2019,RUTH HOUSE,SAINSBURYS TO YOU 0686,20.05,PURCHASE OF FOOD (RAW MATERIALS),"GROCERY STORES, SUPERMARKETS"
17/09/2019,RUTH HOUSE,SAINSBURYS TO YOU 0686,90.80,PURCHASE OF FOOD (RAW MATERIALS),"GROCERY STORES, SUPERMARKETS"
17/09/2019,RUTH HOUSE,NOWTV.COM/BILLINGHELP,33.99,EDUC VISITS/HOLS/CAMPS/TOYS,"CABLE, SATELLITE, OTHER PAY TELEVISION, RADIO SVCS"
17/09/2019,RUTH HOUSE,GIFFGAFF,6.00,TELECOMMUNICATION CHARGES,TELECOM INCL PREPAID/RECURRING PHONE SVCS
17/09/2019,BURBANK COMMUNITY HOME,ARGOS BROOKWOOD IN,14.99,EQUIPMENT,DISCOUNT STORES
17/09/2019,BURBANK COMMUNITY HOME,W M MORRISON STORE,9.75,PURCHASE OF FOOD (RAW MATERIALS),"GROCERY STORES, SUPERMARKETS"
17/09/2019,CHEYNE WALK COMMUNITY HOME,AMZNMKTPLACE,20.50,FURNITURE,MISCELLANEOUS AND SPECIALTY RETAIL STORES
17/09/2019,CHEYNE WALK COMMUNITY HOME,AMZNMKTPLACE AMAZON.CO,10.98,"CLOTHING, UNIFORM AND LAUNDRY",MISCELLANEOUS AND SPECIALTY RETAIL STORES
17/09/2019,TARGETED INTERVENTION,STARBUCKS COBHAM,5.00,EDUC VISITS/HOLS/CAMPS/TOYS,"EATING PLACES, RESTAURANTS"
17/09/2019,NE TARGETTED YOUTH SUPPORT,AMZNMKTPLACE AMAZON.CO,81.53,EQUIPMENT,MISCELLANEOUS AND SPECIALTY RETAIL STORES
17/09/2019,FAIRCROFT COMMUNITY HOME,STARBUCKS,6.40,REFRESHMENT COSTS,FAST FOOD RESTAURANTS
17/09/2019,FAIRCROFT COMMUNITY HOME,STARBUCKS,5.50,REFRESHMENT COSTS,FAST FOOD RESTAURANTS
17/09/2019,FAIRCROFT COMMUNITY HOME,KINGSTON EE CF,8.45,MISCELLANEOUS STAFF TRAVEL,AUTOMOBILE PARKING LOTS AND GARAGES
17/09/2019,FAIRCROFT COMMUNITY HOME,TESCO STORES 6156,3.25,REFRESHMENT COSTS,"GROCERY STORES, SUPERMARKETS"
17/09/2019,ENSEMBLES & TOURS,WWW.STUDIO-MUSIC.C,62.90,CURRIC BOOKS,MISCELLANEOUS PUBLISHING AND PRINTING
17/09/2019,ACL CENTRAL EXPENDITURE,GUILDFORD CALOR CENTRE,-55.97,EQUIPMENT,HOUSEHOLD APPLIANCE STORES
17/09/2019,TRANSPORT,AMAZON PRIME MA92D3SE4,7.99,STATIONERY,DIRECT MARKETING-CONTINUITY/SUBSCRIPTION MERCHANTS
17/09/2019,TRANSPORT,AMZNMKTPLACE AMAZON.CO,24.30,EQUIPMENT,MISCELLANEOUS AND SPECIALTY RETAIL STORES
17/09/2019,TRAINING AND DEVELOPMENT,INFOGRAPHICS UK LTD,192.00,SUBSISTENCE AND CONFERENCE EXPENSES,COMPUTER SOFTWARE STORES
17/09/2019,TRAINING AND DEVELOPMENT,EASYJET,102.69,SUBSISTENCE AND CONFERENCE EXPENSES,EASYJET
17/09/2019,ORBIS TRAINING PROPERTY,LAND SKILLS TRAINING &,540.00,TRAINING EXPENSES EXTERNAL GENERAL,SCHOOLS & EDUCATIONAL SVC-NOT ELSEWHERE CLASSIFIED
17/09/2019,WOKING CORONERS COURT,WWW.CORONAENERGY.C,97.65,ELECTRICITY,CHEMICALS/ALLIED PRODUCTS NOT ELSEWHERE CLASSIFIED
17/09/2019,NW EDUCATION PSYCHOLOGISTS,HOGREFE LTD.,168.00,CURRICULUM CONSUMABLES,MISCELLANEOUS PUBLISHING AND PRINTING
17/09/2019,NW NIL RECOURSE TO PUBLIC FUNDS CARE,HOTEL ON BOOKING.COM 3,358.42,INDEPENDENT LIVING PLACEMENTS,"LODGING-HOTELS,MOTELS,RESORTS-NOT CLASSIFIED"
17/09/2019,SW CARE - CP & COURT LAC,SURREY CC CARD PAY,35.00,OTHER COMMUNITY CARE VOL,COMPUTER NETWORK/INFORMATION SERVICES
17/09/2019,COUNTY HALL,AMZNMKTPLACE AMAZON.CO,52.97,DAY TO DAY MAINTENANCE,MISCELLANEOUS AND SPECIALTY RETAIL STORES
17/09/2019,COUNTY HALL,AMZNMKTPLACE AMAZON.CO,-52.97,DAY TO DAY MAINTENANCE,MISCELLANEOUS AND SPECIALTY RETAIL STORES
17/09/2019,SERVICE DELIVERY RESOURCES,NEW SOUTHERN RAILW,23.30,MISCELLANEOUS STAFF TRAVEL,PASSENGER RAILWAYS
17/09/2019,PROPERTY OPERATIONS TEAM,HOMEBASE,66.00,PURCHASE OF BUILDING MATERIALS,HOME SUPPLY WAREHOUSE STORES
17/09/2019,PROPERTY OPERATIONS TEAM,SCREWFIX HANWORTH,214.67,PURCHASE OF BUILDING MATERIALS,"BUILDING MATERIALS, LUMBER STORES"
17/09/2019,TRAINING AND DEVELOPMENT,WP-INSTITUTION OF,304.00,TRAINING EXPENSES EXTERNAL GENERAL,"ORGANIZATIONS, MEMBERSHIP-NOT ELSEWHERE CLASSIFIED"
17/09/2019,TRAINING AND DEVELOPMENT,PAYPAL  ROSPA,348.00,SUBSISTENCE AND CONFERENCE EXPENSES,"ORGANIZATIONS, CHARITABLE AND SOCIAL SERVICES"
17/09/2019,ORBIS HR HEALTH & SAFETY,SQ  SUGAR MEDIA AND MA,166.35,EQUIPMENT,PROFESSIONAL SERVICES-NOT ELSEWHERE CLASSIFIED
17/09/2019,P & O LEGAL BUDGET                      ,COUNTY COURT,335.00,LEGAL EXPENSES,FINES
17/09/2019,SHELL UK LICENSING,STROUD DISTRICT COUNCI,226.00,FEES,GOVERNMENT SERVICES-NOT ELSEWHERE CLASSIFIED
17/09/2019,SHELL UK LICENSING,EDEN DISTRICT COUN,113.00,FEES,FINES
17/09/2019,HILLSIDE,SAINSBURYS 0675,2.60,CLEANING AND DOMESTIC SUPPLIES,"GROCERY STORES, SUPERMARKETS"
17/09/2019,HILLSIDE,SAINSBURYS 0675,42.30,PURCHASE OF FOOD (RAW MATERIALS),"GROCERY STORES, SUPERMARKETS"
17/09/2019,NE NIL RECOURSE TO PUBLIC FUNDS CARE,TRAVELODGE,277.25,INDEPENDENT LIVING PLACEMENTS,TRAVELODGE
17/09/2019,NE CARE - NON-LAC CP & COURT,ASDA GEORGE COM LEEDS,59.70,OTHER COMMUNITY CARE VOL,"GROCERY STORES, SUPERMARKETS"
17/09/2019,NE CARE - NON-LAC CP & COURT,ASDA GEORGE COM LEEDS,56.50,OTHER COMMUNITY CARE VOL,"GROCERY STORES, SUPERMARKETS"
17/09/2019,SE CARE - CP & COURT LAC,SURREY CC CARD PAY,33.00,OTHER COMMUNITY CARE VOL,COMPUTER NETWORK/INFORMATION SERVICES
17/09/2019,TARGETED INTERVENTION,SOVEREIGN SNOOKER LTD,19.39,EDUC VISITS/HOLS/CAMPS/TOYS,"CLUBS-CNTRY,MBRSHIP(ATHLET,REC,SPRTS,PRIVATE GOLF"
17/09/2019,ACL CENTRAL EXPENDITURE,TESCO STORE 2160,126.74,REFRESHMENT COSTS,"GROCERY STORES, SUPERMARKETS"
17/09/2019,ACL CENTRAL EXPENDITURE,TESCO STORE 2160,-4.00,REFRESHMENT COSTS,"GROCERY STORES, SUPERMARKETS"
18/09/2019,NE CARE - LAC,BLACK MOUNTAIN CLO,-204.50,OTHER COMMUNITY CARE VOL,MEN'S AND WOMEN'S CLOTHING STORES
18/09/2019,SURREY PENSIONS,WWW.EASTSUSSEXCC.GOV.U,-11.00,PURCHASE CARD TRANSACTION LOG DEFAULT,GOVERNMENT SERVICES-NOT ELSEWHERE CLASSIFIED
18/09/2019,NW CARE - NON-LAC CP & COURT,BRITISH A,419.58,OTHER COMMUNITY CARE PRIV,BRITISH A
18/09/2019,KARIBU COMMUNITY HOME,IKEA LTD 144 CROYDON I,11.70,EQUIPMENT,"EQUIP, FURNITURE, HOME FURNSHNGS STRS (EXCPT APPL)"
18/09/2019,KARIBU COMMUNITY HOME,IKEA LTD 144 CROYDON M,401.00,EQUIPMENT,"EQUIP, FURNITURE, HOME FURNSHNGS STRS (EXCPT APPL)"
18/09/2019,NATIONAL TRADING STANDARDS SCAM TEAM,PREMIER INN,130.00,PURCHASE CARD TRANSACTION LOG DEFAULT,PREMIER INN
18/09/2019,QUADRANT COURT WOKING,AMZNMKTPLACE AMAZON.CO,41.99,EQUIPMENT,MISCELLANEOUS AND SPECIALTY RETAIL STORES
18/09/2019,FIRE SERVICES IT,PAYPAL  SUPERBAT,176.36,COMPUTER HARDWARE,ELECTRONIC SALES
18/09/2019,FIRE SERVICES IT,AMZNMKTPLACE AMAZON.CO,13.99,COMPUTER HARDWARE,MISCELLANEOUS AND SPECIALTY RETAIL STORES
18/09/2019,HILLSIDE,SAINSBURYS SACAT 0784,6.00,PURCHASE OF FOOD (RAW MATERIALS),"GROCERY STORES, SUPERMARKETS"
18/09/2019,ORBIS HR PROGRAMME AND PERFORMANCE,AMZNMKTPLACE,22.46,EQUIPMENT,MISCELLANEOUS AND SPECIALTY RETAIL STORES
18/09/2019,HAVEN GUILDFORD,WAITROSE 589,3.35,PURCHASE OF FOOD (RAW MATERIALS),"GROCERY STORES, SUPERMARKETS"
18/09/2019,HAVEN YTH CENTRE,CO-OP GROUP FOOD,6.50,REFRESHMENT COSTS,"GROCERY STORES, SUPERMARKETS"
18/09/2019,SHELL UK LICENSING,HARINGEY COUNCIL,192.00,FEES,GOVERNMENT SERVICES-NOT ELSEWHERE CLASSIFIED
18/09/2019,TS SERVICE MANAGEMENT,CHESTER RACE CO,77.35,SUBSISTENCE AND CONFERENCE EXPENSES,"LODGING-HOTELS,MOTELS,RESORTS-NOT CLASSIFIED"
18/09/2019,GUILDFORD CMHRS CARE,WORTHING COUNTRY C,75.00,FEES,FINES
18/09/2019,S28A MENTAL HEALTH,WORTHING COUNTRY C,150.00,FEES,FINES
18/09/2019,HILLSIDE,SAINSBURYS 0784,5.00,PURCHASE OF FOOD (RAW MATERIALS),"GROCERY STORES, SUPERMARKETS"
18/09/2019,DEVELOPMENT TEAM,WWW.TXTLOCAL.COM,"1,260.00",COMPUTER SERVICES,"CONSULTING, MANAGEMENT, AND PUBLIC RELATIONS SVCS"
18/09/2019,KARIBU COMMUNITY HOME,AMZNMKTPLACE,5.96,EQUIPMENT,MISCELLANEOUS AND SPECIALTY RETAIL STORES
18/09/2019,KARIBU COMMUNITY HOME,AMZNMKTPLACE,93.29,EQUIPMENT,MISCELLANEOUS AND SPECIALTY RETAIL STORES
18/09/2019,SOUTH WEST OUTREACH,SAINSBURYS TO YOU 0652,37.90,PURCHASE OF FOOD (RAW MATERIALS),"GROCERY STORES, SUPERMARKETS"
18/09/2019,SOUTH WEST OUTREACH,SAINSBURYS TO YOU 0652,89.90,PURCHASE OF FOOD (RAW MATERIALS),"GROCERY STORES, SUPERMARKETS"
18/09/2019,NATIONAL TRADING STANDARDS SCAM TEAM,AMZNMKTPLACE,45.99,EQUIPMENT,MISCELLANEOUS AND SPECIALTY RETAIL STORES
18/09/2019,NATIONAL TRADING STANDARDS SCAM TEAM,HOTEL ON BOOKING.COM B,122.85,PURCHASE CARD TRANSACTION LOG DEFAULT,"LODGING-HOTELS,MOTELS,RESORTS-NOT CLASSIFIED"
18/09/2019,OCCUPATIONAL THERAPY,AMAZON PRIME MA15H0K24,7.99,POSTAGE AND COURIER CHARGES,DIRECT MARKETING-CONTINUITY/SUBSCRIPTION MERCHANTS
18/09/2019,ASSET PLANNING - OPERATIONS,IZ  SHELLBROOKE AUTOS,60.00,EQUIPMENT,MISCELLANEOUS REPAIR SHOPS AND RELATED SERVICES
18/09/2019,TARGETED INTERVENTION,MERCEDES-BENZ WORLD,8.90,EDUC VISITS/HOLS/CAMPS/TOYS,"EATING PLACES, RESTAURANTS"
18/09/2019,TARGETED INTERVENTION,MERCEDES-BENZ WORLD,20.00,EDUC VISITS/HOLS/CAMPS/TOYS,AUTOMOTIVE SERVICE SHOPS
18/09/2019,ROW MAINTENANCE,SHELL OLD COUL 043,11.00,DAY TO DAY MAINTENANCE,SERVICE STATIONS WITH OR WITHOUT ANCILLARY SERVICE
18/09/2019,TARGETED INTERVENTION,NATIONAL TRUST CAR,3.20,EDUC VISITS/HOLS/CAMPS/TOYS,"LODGING-HOTELS,MOTELS,RESORTS-NOT CLASSIFIED"
18/09/2019,TRANSPORT,TADWORTH TYRE SPECIALI,72.00,VEHICLE REPAIRS AND MAINTENANCE,AUTOMOTIVE TIRE STORES
18/09/2019,CHEYNE WALK COMMUNITY HOME,TESCO-STORES 6647,198.94,PURCHASE OF FOOD (RAW MATERIALS),"GROCERY STORES, SUPERMARKETS"
18/09/2019,RUTH HOUSE,G J HONOUR,247.24,PURCHASE OF FOOD (RAW MATERIALS),"MISC FOOD STORE-CONVENIENCE,MRKT,SPLTY,VENDNG MACS"
18/09/2019,ACL CENTRAL EXPENDITURE,AMZNMKTPLACE AMAZON.CO,65.22,EQUIPMENT,MISCELLANEOUS AND SPECIALTY RETAIL STORES
18/09/2019,SURREY PENSIONS,WWW.BHCC-INTERNET,11.00,PURCHASE CARD TRANSACTION LOG DEFAULT,GOVERNMENT SERVICES-NOT ELSEWHERE CLASSIFIED
18/09/2019,SURREY PENSIONS,WWW.EASTSUSSEXCC.GOV.U,11.00,PURCHASE CARD TRANSACTION LOG DEFAULT,GOVERNMENT SERVICES-NOT ELSEWHERE CLASSIFIED
18/09/2019,SURREY PENSIONS,WWW.EASTSUSSEXCC.GOV.U,11.00,PURCHASE CARD TRANSACTION LOG DEFAULT,GOVERNMENT SERVICES-NOT ELSEWHERE CLASSIFIED
18/09/2019,SURREY PENSIONS,WWW.EASTSUSSEXCC.GOV.U,11.00,PURCHASE CARD TRANSACTION LOG DEFAULT,GOVERNMENT SERVICES-NOT ELSEWHERE CLASSIFIED
18/09/2019,SURREY PENSIONS,WESTMINSTER CITY COUNC,16.00,PURCHASE CARD TRANSACTION LOG DEFAULT,GOVERNMENT SERVICES-NOT ELSEWHERE CLASSIFIED
18/09/2019,SURREY PENSIONS,WWW.LGSS.CO.UK,11.00,PURCHASE CARD TRANSACTION LOG DEFAULT,"COLLEGES, UNIV, PRO SCHOOLS, JUNIOR COLLEGES"
18/09/2019,BURBANK COMMUNITY HOME,AMAZON.CO.UK MA22X22J4,29.99,EQUIPMENT,DIRECT MARKETING-OTHER DIRECT MARKETERS/NOT ELSEW.
18/09/2019,ACL CENTRAL EXPENDITURE,TESCO STORE 2160,47.41,REFRESHMENT COSTS,"GROCERY STORES, SUPERMARKETS"
18/09/2019,ACL CENTRAL EXPENDITURE,TESCO STORE 2160,-0.73,REFRESHMENT COSTS,"GROCERY STORES, SUPERMARKETS"
18/09/2019,HERITAGE PUBLIC SERVICE,W M MORRISON STORE,1.32,REFRESHMENT COSTS,"GROCERY STORES, SUPERMARKETS"
18/09/2019,BARNFIELD,CO-OP GROUP PETROL,21.43,UPKEEP OF GROUNDS,SERVICE STATIONS WITH OR WITHOUT ANCILLARY SERVICE
18/09/2019,NE CARE - LAC,BLACK MOUNTAIN CLO,204.50,OTHER COMMUNITY CARE VOL,MEN'S AND WOMEN'S CLOTHING STORES
18/09/2019,NE SECTION 17 CARE,TRAVELODGE,468.94,INDEPENDENT LIVING PLACEMENTS,TRAVELODGE
18/09/2019,NE SECTION 17 CARE,TRAVELODGE,488.00,INDEPENDENT LIVING PLACEMENTS,TRAVELODGE
18/09/2019,SW TARGETTED YOUTH SUPPORT,LEL ADMISSIONS,125.00,EDUC VISITS/HOLS/CAMPS/TOYS,RECREATION SERVICES (NOT ELSEWHERE CLASSIFIED)
18/09/2019,SW TARGETTED YOUTH SUPPORT,LEL ADMISSIONS,-125.00,EDUC VISITS/HOLS/CAMPS/TOYS,RECREATION SERVICES (NOT ELSEWHERE CLASSIFIED)
18/09/2019,SW TARGETTED YOUTH SUPPORT,LEL ADMISSIONS,-125.00,EDUC VISITS/HOLS/CAMPS/TOYS,RECREATION SERVICES (NOT ELSEWHERE CLASSIFIED)
18/09/2019,TARGETED INTERVENTION,MERCEDES-BENZ WORLD,6.20,EDUC VISITS/HOLS/CAMPS/TOYS,"EATING PLACES, RESTAURANTS"
18/09/2019,TARGETED INTERVENTION,TESCO PFS 3783,3.85,EDUC VISITS/HOLS/CAMPS/TOYS,SERVICE STATIONS WITH OR WITHOUT ANCILLARY SERVICE
18/09/2019,PSS COUNTYWIDE,AMAZON.CO.UK MA4JH62L4,7.61,EQUIPMENT,DIRECT MARKETING-OTHER DIRECT MARKETERS/NOT ELSEW.
18/09/2019,RUTH HOUSE,PETS AT HOME,4.50,EQUIPMENT,VETERINARY SERVICES
18/09/2019,BURBANK COMMUNITY HOME,WWW.EUREKADIRECT.CO.UK,122.82,MEDICAL EXPENSES,DENTAL/LAB/MED/OPHTHALMIC HOSP EQUIP & SUPPLIES
18/09/2019,CHEYNE WALK COMMUNITY HOME,DVLA VEHICLE TAX,71.25,VEHICLE RUNNING COSTS,GOVERNMENT SERVICES-NOT ELSEWHERE CLASSIFIED
18/09/2019,FIRE & RESCUE COMMUNITY SAFETY,TESCO STORE 2590,13.72,PURCHASE OF FOOD (RAW MATERIALS),"GROCERY STORES, SUPERMARKETS"
18/09/2019,HOPE SERVICE - WEST,SAINSBURYS TO YOU 0686,85.35,PURCHASE OF FOOD (RAW MATERIALS),"GROCERY STORES, SUPERMARKETS"
18/09/2019,QUADRANT COURT WOKING,AMZNMKTPLACE,6.99,EQUIPMENT,MISCELLANEOUS AND SPECIALTY RETAIL STORES
18/09/2019,ACL CENTRAL EXPENDITURE,COOKSON PRECIOUS M,155.63,EQUIPMENT,"PRECIOUS STONES AND METALS, WATCHES AND JEWELRY"
18/09/2019,NW CARE - NON-LAC CP & COURT,EASYJET,247.12,OTHER COMMUNITY CARE PRIV,EASYJET
18/09/2019,DEMOCRATIC SERVICES TEAM,AMZNMKTPLACE,18.97,COMPUTER CONSUMABLES,MISCELLANEOUS AND SPECIALTY RETAIL STORES
18/09/2019,DOWNLANDS COUNTRYSIDE PROJECT,ROVERTOW,200.00,VEHICLE REPAIRS AND MAINTENANCE,"CAMPER DEALERS, RECREATIONAL AND UTILITY TRAILERS"
18/09/2019,DOWNLANDS COUNTRYSIDE PROJECT,ROVERTOW,164.00,VEHICLE REPAIRS AND MAINTENANCE,"CAMPER DEALERS, RECREATIONAL AND UTILITY TRAILERS"
18/09/2019,DOWNLANDS COUNTRYSIDE PROJECT,ROVERTOW,200.00,VEHICLE REPAIRS AND MAINTENANCE,"CAMPER DEALERS, RECREATIONAL AND UTILITY TRAILERS"
18/09/2019,DOWNLANDS COUNTRYSIDE PROJECT,SCREWFIX DIRECT LT,2.97,DAY TO DAY MAINTENANCE,"BUILDING MATERIALS, LUMBER STORES"
18/09/2019,ACL CENTRAL EXPENDITURE,AMZNMKTPLACE,78.37,CURRICULUM EQUIPMENT AND FURNITURE,MISCELLANEOUS AND SPECIALTY RETAIL STORES
18/09/2019,WOODLANDS COMMUNITY HOME,PAYPAL  OPUS PHARM,27.00,BOOKS,"SCHOOLS, TRADE AND VOCATIONAL"
18/09/2019,DEVELOPMENT TEAM,UKBA10163958517,"5,199.00",FEES,GOVERNMENT SERVICES-NOT ELSEWHERE CLASSIFIED
18/09/2019,BURBANK COMMUNITY HOME,SAINSBURYS TO YOU 0686,331.15,PURCHASE OF FOOD (RAW MATERIALS),"GROCERY STORES, SUPERMARKETS"
18/09/2019,MISC EDCAT SUPPORT,WWW.360ONLINEPRINT.CO.,148.64,PUBLICITY,"QUICK COPY,REPRODUCTION AND BLUEPRINTING SERVICES"
18/09/2019,HERITAGE STEWARDSHIP AND PRESERVATION,AMZNMKTPLACE,45.90,BOOKS,MISCELLANEOUS AND SPECIALTY RETAIL STORES
18/09/2019,HERITAGE PUBLIC SERVICE,BOOKER LIMITED ALDERSH,18.47,REFRESHMENT COSTS,CATERERS
18/09/2019,HERITAGE PUBLIC SERVICE,W M MORRISON STORE,8.50,REFRESHMENT COSTS,"GROCERY STORES, SUPERMARKETS"
18/09/2019,MALLOW CRESCENT,LS185 MOTO,28.00,EDUC VISITS/HOLS/CAMPS/TOYS,RECREATION SERVICES (NOT ELSEWHERE CLASSIFIED)
18/09/2019,CHILDREN'S RIGHTS TEAM,DOMINOS PIZZA UK & IRE,59.46,REFRESHMENT COSTS,"EATING PLACES, RESTAURANTS"
18/09/2019,ACL CENTRAL EXPENDITURE,GETECH LIMITED,265.20,COMPUTER SOFTWARE,"COMPUTERS, COMPUTER PERIPHERAL EQUIPMENT, SOFTWARE"
18/09/2019,TRANSPORT,AMZNMKTPLACE,18.23,STATIONERY,MISCELLANEOUS AND SPECIALTY RETAIL STORES
18/09/2019,FIRE SERVICES IT,AMZNMKTPLACE AMAZON.CO,18.99,COMPUTER HARDWARE,MISCELLANEOUS AND SPECIALTY RETAIL STORES
18/09/2019,ACL CENTRAL EXPENDITURE,AMZNMKTPLACE,47.00,EQUIPMENT,MISCELLANEOUS AND SPECIALTY RETAIL STORES
19/09/2019,SURREY PENSIONS,GEN REGISTER OFFICE,-7.50,PURCHASE CARD TRANSACTION LOG DEFAULT,GOVERNMENT SERVICES-NOT ELSEWHERE CLASSIFIED
19/09/2019,SURREY PENSIONS,GEN REGISTER OFFICE,-7.50,PURCHASE CARD TRANSACTION LOG DEFAULT,GOVERNMENT SERVICES-NOT ELSEWHERE CLASSIFIED
19/09/2019,HOPE SERVICE - WEST,NBX CRAGGY ISLAND,30.00,EDUC VISITS/HOLS/CAMPS/TOYS,RECREATION SERVICES (NOT ELSEWHERE CLASSIFIED)
19/09/2019,CHILDREN'S RIGHTS TEAM,CANVA  02453-1124757,10.72,COMPUTER SOFTWARE,PHOTOGRAPHIC STUDIOS
19/09/2019,ACL CENTRAL EXPENDITURE,AMZNMKTPLACE AMAZON.CO,190.41,EQUIPMENT,MISCELLANEOUS AND SPECIALTY RETAIL STORES
19/09/2019,NE TARGETTED YOUTH SUPPORT,AMZNMKTPLACE AMAZON.CO,10.44,EQUIPMENT,MISCELLANEOUS AND SPECIALTY RETAIL STORES
19/09/2019,ABBEYWOOD,TFL ROAD CHG - STD WEB,24.00,EDUC VISITS/HOLS/CAMPS/TOYS,"BRIDGE AND ROAD FEES, TOLLS"
19/09/2019,ACL CENTRAL EXPENDITURE,AMAZON PRIME MA0KS5K24,7.99,EQUIPMENT,DIRECT MARKETING-CONTINUITY/SUBSCRIPTION MERCHANTS
19/09/2019,TRAINING AND DEVELOPMENT,THE ROYAL MARITIME CLU,198.00,TRAINING EXPENSES EXTERNAL GENERAL,"LODGING-HOTELS,MOTELS,RESORTS-NOT CLASSIFIED"
19/09/2019,GUILDFORD CMHRS CARE,WORTHING COUNTRY C,75.00,FEES,FINES
19/09/2019,IMT MANAGEMENT TEAM,AMAZON PRIME MA0NR6KQ4,7.99,SUBSCRIPTIONS,DIRECT MARKETING-CONTINUITY/SUBSCRIPTION MERCHANTS
19/09/2019,SURREY ARTS GENERAL,AMAZON.CO.UK MA82P7214,21.49,COMPUTER HARDWARE,DIRECT MARKETING-OTHER DIRECT MARKETERS/NOT ELSEW.
19/09/2019,ENSEMBLES & TOURS,SHEETMUSICPLUS.COM,66.85,EQUIPMENT,"MUSIC STORES-INSTRUMENTS, PIANOS, SHEET MUSIC"
19/09/2019,TARGETED INTERVENTION,BOCKETTS FARM PARK,36.75,EDUC VISITS/HOLS/CAMPS/TOYS,TOURIST ATTRACTIONS AND EXHIBITS
19/09/2019,TARGETED INTERVENTION,TESCO STORE 2812,15.39,EDUC VISITS/HOLS/CAMPS/TOYS,"GROCERY STORES, SUPERMARKETS"
19/09/2019,ROW MAINTENANCE,AFFILIATED AUTO RENTAL,39.99,DAY TO DAY MAINTENANCE,AFFILIATED AUTO RENTAL
19/09/2019,FAIRCROFT COMMUNITY HOME,GAME RETAIL,10.00,EDUC VISITS/HOLS/CAMPS/TOYS,"GAME, TOY, AND HOBBY SHOPS"
19/09/2019,ARUNDEL,TESCO STORES 5999,71.88,REFRESHMENT COSTS,"GROCERY STORES, SUPERMARKETS"
19/09/2019,TRANSPORT,PAYPAL  SHIDAILIYUA,6.69,DAY TO DAY MAINTENANCE,ELECTRONIC SALES
19/09/2019,TRANSPORT,PAYPAL  JPRI8851,2.99,DAY TO DAY MAINTENANCE,MISCELLANEOUS AND SPECIALTY RETAIL STORES
19/09/2019,HOPE SERVICE - WEST,SAINSBURYS TO YOU 0683,46.95,PURCHASE OF FOOD (RAW MATERIALS),"GROCERY STORES, SUPERMARKETS"
19/09/2019,HOPE SERVICE - WEST,FINDEL EDUCATION,7.19,EQUIPMENT,DIRECT MARKETING-OTHER DIRECT MARKETERS/NOT ELSEW.
19/09/2019,MISC EDCAT SUPPORT,AMZNMKTPLACE AMAZON.CO,100.94,PUBLICITY,MISCELLANEOUS AND SPECIALTY RETAIL STORES
19/09/2019,FAIRCROFT COMMUNITY HOME,TESCO STORES 6156,4.54,REFRESHMENT COSTS,"GROCERY STORES, SUPERMARKETS"
19/09/2019,FAIRCROFT COMMUNITY HOME,TESCO STORES 6156,4.00,REFRESHMENT COSTS,"GROCERY STORES, SUPERMARKETS"
19/09/2019,FAIRCROFT COMMUNITY HOME,STARBUCKS,7.00,REFRESHMENT COSTS,FAST FOOD RESTAURANTS
19/09/2019,FAIRCROFT COMMUNITY HOME,KINGSTON EE CF,5.90,NON-STAFF RELATED TRANSPORT COSTS,AUTOMOBILE PARKING LOTS AND GARAGES
19/09/2019,FAIRCROFT COMMUNITY HOME,TESCO STORES 6156,3.95,REFRESHMENT COSTS,"GROCERY STORES, SUPERMARKETS"
19/09/2019,FAIRCROFT COMMUNITY HOME,SUBWAY,15.28,REFRESHMENT COSTS,FAST FOOD RESTAURANTS
19/09/2019,CHEYNE WALK COMMUNITY HOME,ARGOS LTD,97.98,EQUIPMENT,DISCOUNT STORES
19/09/2019,TARGETED INTERVENTION,SAINSBURYS PFS0473,16.00,VEHICLE RUNNING COSTS,SERVICE STATIONS WITH OR WITHOUT ANCILLARY SERVICE
19/09/2019,TARGETED INTERVENTION,NYA AIR-SERV,0.50,VEHICLE RUNNING COSTS,"MISC FOOD STORE-CONVENIENCE,MRKT,SPLTY,VENDNG MACS"
19/09/2019,SURREY PENSIONS,GEN REGISTER OFFICE,56.00,PURCHASE CARD TRANSACTION LOG DEFAULT,GOVERNMENT SERVICES-NOT ELSEWHERE CLASSIFIED
19/09/2019,ABBEYWOOD,AMZNMKTPLACE,16.36,EDUC VISITS/HOLS/CAMPS/TOYS,MISCELLANEOUS AND SPECIALTY RETAIL STORES
19/09/2019,NE NIL RECOURSE TO PUBLIC FUNDS CARE,TRAVELODGE,371.00,INDEPENDENT LIVING PLACEMENTS,TRAVELODGE
19/09/2019,SE TARGETTED YOUTH SUPPORT,WAITROSE 178,1.85,REFRESHMENT COSTS,"GROCERY STORES, SUPERMARKETS"
19/09/2019,TARGETED INTERVENTION,BOCKETTS FARM PARK,12.35,EDUC VISITS/HOLS/CAMPS/TOYS,TOURIST ATTRACTIONS AND EXHIBITS
19/09/2019,TARGETED INTERVENTION,STARBUCKS COBHAM,11.50,EDUC VISITS/HOLS/CAMPS/TOYS,"EATING PLACES, RESTAURANTS"
19/09/2019,PSS COUNTYWIDE,AMAZON.CO.UK MA0RE1KU4,5.99,EQUIPMENT,DIRECT MARKETING-OTHER DIRECT MARKETERS/NOT ELSEW.
19/09/2019,PSS COUNTYWIDE,AMAZON.CO.UK MA8PG2KS4,15.04,EQUIPMENT,DIRECT MARKETING-OTHER DIRECT MARKETERS/NOT ELSEW.
19/09/2019,RUTH HOUSE,AMZNMKTPLACE,24.20,EQUIPMENT,MISCELLANEOUS AND SPECIALTY RETAIL STORES
19/09/2019,RUTH HOUSE,SAINSBURYS TO YOU 0686,21.90,PURCHASE OF FOOD (RAW MATERIALS),"GROCERY STORES, SUPERMARKETS"
19/09/2019,RUTH HOUSE,SAINSBURYS TO YOU 0686,176.80,PURCHASE OF FOOD (RAW MATERIALS),"GROCERY STORES, SUPERMARKETS"
19/09/2019,RUTH HOUSE,AMZNMKTPLACE,17.98,EQUIPMENT,MISCELLANEOUS AND SPECIALTY RETAIL STORES
19/09/2019,HILLSIDE,SAINSBURYS SACAT 0784,26.65,PURCHASE OF FOOD (RAW MATERIALS),"GROCERY STORES, SUPERMARKETS"
19/09/2019,TARGETED INTERVENTION,CERAMICS CAFE HERSHAM,48.60,EDUC VISITS/HOLS/CAMPS/TOYS,MISCELLANEOUS HOUSE FURNISHING SPECIALTY SHOPS
19/09/2019,ORCHARD COURT,CARESHOP,220.03,DAY TO DAY MAINTENANCE,MISCELLANEOUS AND SPECIALTY RETAIL STORES
19/09/2019,QUADRANT COURT WOKING,AMAZON.CO.UK MA00K7KE4,7.24,EQUIPMENT,DIRECT MARKETING-OTHER DIRECT MARKETERS/NOT ELSEW.
19/09/2019,BURBANK COMMUNITY HOME,AMAZON.CO.UK MA0XT0K34,16.99,EQUIPMENT,DIRECT MARKETING-OTHER DIRECT MARKETERS/NOT ELSEW.
19/09/2019,LOWER MOLE COUNTRYSIDE PROJECT,SCREWFIX DIRECT,66.02,PURCHASE OF BUILDING MATERIALS,HOME SUPPLY WAREHOUSE STORES
19/09/2019,HOPE SERVICE - WEST,SAINSBURYS SACAT(4409),1.20,PURCHASE OF FOOD (RAW MATERIALS),"GROCERY STORES, SUPERMARKETS"
19/09/2019,ENSEMBLES & TOURS,JUST MUSIC,54.00,CURRIC BOOKS,"MUSIC STORES-INSTRUMENTS, PIANOS, SHEET MUSIC"
19/09/2019,TRANSPORT,TOYE KENNING AND SPENC,104.10,"CLOTHING, UNIFORM AND LAUNDRY",MEN'S/WOMEN'S/CHILDREN'S UNIFORMS/COMMERCIAL CLOTH
19/09/2019,BIKEABILITY - CYCLE TRAINING,THE BIKEABILITY TRUST,"3,003.96",EQUIPMENT,STATIONERY/OFFICE SUPPLIES/PRINTING & WRITING PAP.
19/09/2019,TRANSPORT,HOLIDAY INN - BOLTON,141.71,MISCELLANEOUS STAFF TRAVEL,"LODGING-HOTELS,MOTELS,RESORTS-NOT CLASSIFIED"
19/09/2019,ARUNDEL,ASDA GROCERIES ONLINE,150.25,CLEANING AND DOMESTIC SUPPLIES,"GROCERY STORES, SUPERMARKETS"
19/09/2019,ARUNDEL,ASDA GROCERIES ONLINE,-8.00,REFRESHMENT COSTS,"GROCERY STORES, SUPERMARKETS"
19/09/2019,SW CARE - CP & COURT LAC,SURREY CC CARD PAY,35.00,INDEPENDENT LIVING PLACEMENTS,COMPUTER NETWORK/INFORMATION SERVICES
19/09/2019,NE NIL RECOURSE TO PUBLIC FUNDS CARE,TRAVELODGE,175.25,INDEPENDENT LIVING PLACEMENTS,TRAVELODGE
19/09/2019,ROW VOLUNTEERS EAST                     ,FIXINGS & POWERTOOL CE,14.12,EQUIPMENT,"BUILDING MATERIALS, LUMBER STORES"
19/09/2019,KARIBU COMMUNITY HOME,AMZNMKTPLACE,87.83,EQUIPMENT,MISCELLANEOUS AND SPECIALTY RETAIL STORES
19/09/2019,FIRE SERVICES IT,AMZNMKTPLACE,26.97,COMPUTER HARDWARE,MISCELLANEOUS AND SPECIALTY RETAIL STORES
20/09/2019,LIBERTAS COMMUNITY HOME,TESCO STORES 2025,120.83,PURCHASE OF FOOD (RAW MATERIALS),"GROCERY STORES, SUPERMARKETS"
20/09/2019,ORCHARD COURT,AMZNMKTPLACE,78.10,DAY TO DAY MAINTENANCE,MISCELLANEOUS AND SPECIALTY RETAIL STORES
20/09/2019,KARIBU COMMUNITY HOME,NCP PCN PAYMENT,100.00,FEES,AUTOMOBILE PARKING LOTS AND GARAGES
20/09/2019,OCCUPATIONAL THERAPY,SAINSBURYS SACAT 4821,2.40,PURCHASE OF FOOD (RAW MATERIALS),"GROCERY STORES, SUPERMARKETS"
20/09/2019,HOPE SERVICE - WEST,SAINSBURYS LOC 4409,6.80,NEWSPAPER AND PERIODICALS,"GROCERY STORES, SUPERMARKETS"
20/09/2019,ROW VOLUNTEERS WEST                     ,RONTEC KINGSCROFT,11.30,PETROL/DIESEL ALL OFF BUSINESS,SERVICE STATIONS WITH OR WITHOUT ANCILLARY SERVICE
20/09/2019,EXTENDED HOPE,FREEDOM LEISURE,8.95,REFRESHMENT COSTS,GOVERNMENT SERVICES-NOT ELSEWHERE CLASSIFIED
20/09/2019,BARNFIELD,AMZNMKTPLACE,81.47,EQUIPMENT - INDEPENDENT SECTOR,MISCELLANEOUS AND SPECIALTY RETAIL STORES
20/09/2019,RECRUITMENT,FACEBK  7NB9SNWPS2,10.46,STAFF ADVERTISING ,ADVERTISING SERVICES
20/09/2019,FAIRCROFT COMMUNITY HOME,ARGOS COBHAM (INSIDE S,12.99,EQUIPMENT,DISCOUNT STORES
20/09/2019,NW CARE - LAC,SURREY CC CARD PAY,11.00,OTHER COMMUNITY CARE VOL,COMPUTER NETWORK/INFORMATION SERVICES
20/09/2019,ARUNDEL,TESCO STORES 5999,174.16,REFRESHMENT COSTS,"GROCERY STORES, SUPERMARKETS"
20/09/2019,NW NIL RECOURSE TO PUBLIC FUNDS CARE,PREMIER INN,619.50,OTHER COMMUNITY CARE PRIV,PREMIER INN
20/09/2019,SOLD BUSINESS SUPPORT,TESCO STORES,16.30,POSTAGE AND COURIER CHARGES,"GROCERY STORES, SUPERMARKETS"
20/09/2019,WOODLANDS COMMUNITY HOME,SAINSBURYS 0686,9.35,PURCHASE OF FOOD (RAW MATERIALS),"GROCERY STORES, SUPERMARKETS"
20/09/2019,WOODLANDS COMMUNITY HOME,SAINSBURYS 0686,22.53,PURCHASE OF FOOD (RAW MATERIALS),"GROCERY STORES, SUPERMARKETS"
20/09/2019,CHILDREN'S RIGHTS TEAM,DOMINOS PIZZA UK & IRE,40.47,REFRESHMENT COSTS,"EATING PLACES, RESTAURANTS"
20/09/2019,FAIRCROFT COMMUNITY HOME,PAYPAL  TRUEVIS LTD,22.94,EQUIPMENT,ART DEALERS AND GALLERIES
20/09/2019,FAIRCROFT COMMUNITY HOME,SMITH & WESTERN,123.75,REFRESHMENT COSTS,"EATING PLACES, RESTAURANTS"
20/09/2019,FAIRCROFT COMMUNITY HOME,PAYPAL  PANDORA,80.00,3RD PARTY PAYMENTS PRIVATE INDIV,ACCESSORY AND APPAREL STORES-MISCELLANEOUS
20/09/2019,FAIRCROFT COMMUNITY HOME,PAYPAL  DUNELMSOFTF,98.99,EQUIPMENT,MISCELLANEOUS HOUSE FURNISHING SPECIALTY SHOPS
20/09/2019,FAIRCROFT COMMUNITY HOME,D AND E ROBERTS,388.80,TRADE REFUSE,"UTLTS-ELCTRC, GAS, HEATING OIL, SANITARY, WATER"
20/09/2019,FAIRCROFT COMMUNITY HOME,WWW.STUDIO.CO.UK,17.98,EQUIPMENT,DIRECT MARKETING-CATALOG MERCHANTS
20/09/2019,TRANSPORT,CANNON MOTOR TOOLS,820.80,CLEANING MATERIALS,AUTOMOTIVE SERVICE SHOPS
20/09/2019,SOLD ESTATES MANAGEMENT,HONEY BROTHERS LTD,257.77,EQUIPMENT,LAWN AND GARDEN SUPPLY STORES
20/09/2019,BIKEABILITY - CYCLE TRAINING,THE BIKEABILITY TRUST,"4,803.96",EQUIPMENT,STATIONERY/OFFICE SUPPLIES/PRINTING & WRITING PAP.
20/09/2019,CHEYNE WALK COMMUNITY HOME,BT BILL PAYMENT 2,67.07,TELECOMMUNICATION CHARGES,TELECOMMUNICATION EQUIPMENT INCL TELEPHONE SALES
20/09/2019,CHEYNE WALK COMMUNITY HOME,BT BILL PAYMENT 2,87.49,TELECOMMUNICATION CHARGES,TELECOMMUNICATION EQUIPMENT INCL TELEPHONE SALES
20/09/2019,MALLOW CRESCENT,AMZNMKTPLACE,65.97,PURCHASE OF FOOD (RAW MATERIALS),MISCELLANEOUS AND SPECIALTY RETAIL STORES
20/09/2019,ORBIS HR PROGRAMME AND PERFORMANCE,AMZNMKTPLACE AMAZON.CO,11.08,EQUIPMENT,MISCELLANEOUS AND SPECIALTY RETAIL STORES
20/09/2019,SHELL UK LICENSING,BHAMCOUNCILPHONE,113.00,FEES,GOVERNMENT SERVICES-NOT ELSEWHERE CLASSIFIED
20/09/2019,SHELL UK LICENSING,BHAMCOUNCILPHONE,113.00,FEES,GOVERNMENT SERVICES-NOT ELSEWHERE CLASSIFIED
20/09/2019,SHELL UK LICENSING,BHAMCOUNCILPHONE,113.00,FEES,GOVERNMENT SERVICES-NOT ELSEWHERE CLASSIFIED
20/09/2019,SHELL UK LICENSING,BHAMCOUNCILPHONE,113.00,FEES,GOVERNMENT SERVICES-NOT ELSEWHERE CLASSIFIED
20/09/2019,SHELL UK LICENSING,BHAMCOUNCILPHONE,113.00,FEES,GOVERNMENT SERVICES-NOT ELSEWHERE CLASSIFIED
20/09/2019,SHELL UK LICENSING,BHAMCOUNCILPHONE,113.00,FEES,GOVERNMENT SERVICES-NOT ELSEWHERE CLASSIFIED
20/09/2019,SHELL UK LICENSING,BHAMCOUNCILPHONE,113.00,FEES,GOVERNMENT SERVICES-NOT ELSEWHERE CLASSIFIED
20/09/2019,SHELL UK LICENSING,BHAMCOUNCILPHONE,113.00,FEES,GOVERNMENT SERVICES-NOT ELSEWHERE CLASSIFIED
20/09/2019,SHELL UK LICENSING,BHAMCOUNCILPHONE,113.00,FEES,GOVERNMENT SERVICES-NOT ELSEWHERE CLASSIFIED
20/09/2019,SHELL UK LICENSING,BHAMCOUNCILPHONE,113.00,FEES,GOVERNMENT SERVICES-NOT ELSEWHERE CLASSIFIED
20/09/2019,HILLSIDE,SAINSBURYS 0784,16.80,PURCHASE OF FOOD (RAW MATERIALS),"GROCERY STORES, SUPERMARKETS"
20/09/2019,WOODLANDS COMMUNITY HOME,SAINSBURYS 0686,4.40,PURCHASE OF FOOD (RAW MATERIALS),"GROCERY STORES, SUPERMARKETS"
20/09/2019,RUTH HOUSE,DIRECT ONLINE SERVICES,137.00,EQUIPMENT,"EQUIP, FURNITURE, HOME FURNSHNGS STRS (EXCPT APPL)"
20/09/2019,RUTH HOUSE,WICKES BUILDING,303.00,EQUIPMENT,"BUILDING MATERIALS, LUMBER STORES"
20/09/2019,TARGETED INTERVENTION,HOEBRIDGE GC,24.75,EDUC VISITS/HOLS/CAMPS/TOYS,GOLF COURSES-PUBLIC
20/09/2019,TARGETED INTERVENTION,HOEBRIDGE GC,9.30,EDUC VISITS/HOLS/CAMPS/TOYS,GOLF COURSES-PUBLIC
20/09/2019,APPLEWOOD,ASDA GROCERIES ONLINE,185.12,PURCHASE OF FOOD (RAW MATERIALS),"GROCERY STORES, SUPERMARKETS"
20/09/2019,APPLEWOOD,ASDA GROCERIES ONLINE,-7.48,PURCHASE OF FOOD (RAW MATERIALS),"GROCERY STORES, SUPERMARKETS"
20/09/2019,ABBEYWOOD,AMZNMKTPLACE,32.91,CLEANING AND DOMESTIC SUPPLIES,MISCELLANEOUS AND SPECIALTY RETAIL STORES
20/09/2019,PROJECTS AND CONTRACTS GROUP,AMAZON.CO.UK MA5XZ2DZ4,143.82,EQUIPMENT,DIRECT MARKETING-OTHER DIRECT MARKETERS/NOT ELSEW.
20/09/2019,MISC EDCAT SUPPORT,AMAZON.CO.UK MA3167KK4,13.48,PUBLICITY,DIRECT MARKETING-OTHER DIRECT MARKETERS/NOT ELSEW.
21/09/2019,OCCUPATIONAL THERAPY,GREGGS,2.00,PURCHASE OF FOOD (RAW MATERIALS),"EATING PLACES, RESTAURANTS"
21/09/2019,OCCUPATIONAL THERAPY,TESCO STORES 2017,2.50,PURCHASE OF FOOD (RAW MATERIALS),"GROCERY STORES, SUPERMARKETS"
21/09/2019,ABBEYWOOD,AMAZON.CO.UK MA6PZ7724,53.73,FIXTURES AND FITTINGS,DIRECT MARKETING-OTHER DIRECT MARKETERS/NOT ELSEW.
21/09/2019,EXTENDED HOPE,SAINSBURYS 0652,100.00,PURCHASE OF FOOD (RAW MATERIALS),"GROCERY STORES, SUPERMARKETS"
21/09/2019,EXTENDED HOPE,STARBUCKS,3.75,REFRESHMENT COSTS,FAST FOOD RESTAURANTS
21/09/2019,EXTENDED HOPE,SHERE DELIGHTS,10.25,REFRESHMENT COSTS,"CANDY, NUT, CONFECTIONERY STORES"
21/09/2019,LIBERTAS COMMUNITY HOME,STARBUCKS,7.50,EDUC VISITS/HOLS/CAMPS/TOYS,FAST FOOD RESTAURANTS
21/09/2019,PSS COUNTYWIDE,AMAZON PRIME MA2AE89G4,7.99,EQUIPMENT,DIRECT MARKETING-CONTINUITY/SUBSCRIPTION MERCHANTS
21/09/2019,CHEYNE WALK COMMUNITY HOME,CO-OP GROUP PETROL,14.22,PURCHASE OF FOOD (RAW MATERIALS),SERVICE STATIONS WITH OR WITHOUT ANCILLARY SERVICE
21/09/2019,MISC EDCAT SUPPORT,ENVATOMARKET49288650,21.80,PUBLICITY,DIGITAL GOODS AUDIOVISUAL MEDIA
21/09/2019,HILLSIDE,SAINSBURYS TO YOU 0675,19.90,PURCHASE OF FOOD (RAW MATERIALS),"GROCERY STORES, SUPERMARKETS"
21/09/2019,HILLSIDE,SAINSBURYS TO YOU 0675,150.52,PURCHASE OF FOOD (RAW MATERIALS),"GROCERY STORES, SUPERMARKETS"
21/09/2019,ARUNDEL,ASDA SUPERSTORE,80.44,REFRESHMENT COSTS,"GROCERY STORES, SUPERMARKETS"
21/09/2019,KARIBU COMMUNITY HOME,SAINSBURYS 0687,34.95,PURCHASE OF FOOD (RAW MATERIALS),"GROCERY STORES, SUPERMARKETS"
21/09/2019,KARIBU COMMUNITY HOME,TESCO STORE 2812,66.04,PURCHASE OF FOOD (RAW MATERIALS),"GROCERY STORES, SUPERMARKETS"
21/09/2019,WAVERLEY CMHRS CARE,TRAVELODGE,906.36,OTHER COMMUNITY CARE PRIV,TRAVELODGE
21/09/2019,COBHAM CHILDRENS CENTRE,AMAZON.CO.UK MA3010KO4,43.46,COMPUTER HARDWARE,DIRECT MARKETING-OTHER DIRECT MARKETERS/NOT ELSEW.
21/09/2019,FAIRCROFT COMMUNITY HOME,HOBBYCRAFT,10.05,EDUC VISITS/HOLS/CAMPS/TOYS,"ARTIST SUPPLY STORES, CRAFT SHOPS"
21/09/2019,FAIRCROFT COMMUNITY HOME,MARKS&SPENCER PLC,-20.00,"CLOTHING, UNIFORM AND LAUNDRY","GROCERY STORES, SUPERMARKETS"
22/09/2019,IMT MODERN WORKER,BLS WEBHOSE,49.76,COMPUTER SERVICES,COMPUTER SOFTWARE STORES
22/09/2019,CHEYNE WALK COMMUNITY HOME,TESCO STORE 2560,21.32,PURCHASE OF FOOD (RAW MATERIALS),"GROCERY STORES, SUPERMARKETS"
22/09/2019,CHEYNE WALK COMMUNITY HOME,TESCO STORE 2560,20.00,EQUIPMENT,"GROCERY STORES, SUPERMARKETS"
22/09/2019,KARIBU COMMUNITY HOME,WAYFAIR #2751140168,709.98,EQUIPMENT,"EQUIP, FURNITURE, HOME FURNSHNGS STRS (EXCPT APPL)"
22/09/2019,FAIRCROFT COMMUNITY HOME,GAME RETAIL,21.50,EDUC VISITS/HOLS/CAMPS/TOYS,"GAME, TOY, AND HOBBY SHOPS"
22/09/2019,FAIRCROFT COMMUNITY HOME,KFC KINGSTON,9.87,REFRESHMENT COSTS,FAST FOOD RESTAURANTS
22/09/2019,FAIRCROFT COMMUNITY HOME,DEEP BLUE RESTAURANTS,26.10,REFRESHMENT COSTS,"EATING PLACES, RESTAURANTS"
22/09/2019,FAIRCROFT COMMUNITY HOME,NCP LIMITED,16.00,NON-STAFF RELATED TRANSPORT COSTS,AUTOMOBILE PARKING LOTS AND GARAGES
22/09/2019,CPCS ENGAGEMENT TEAM,AMZNMKTPLACE,24.41,EQUIPMENT,MISCELLANEOUS AND SPECIALTY RETAIL STORES
22/09/2019,MALLOW CRESCENT,SAINSBURYS TO YOU 0652,184.55,PURCHASE OF FOOD (RAW MATERIALS),"GROCERY STORES, SUPERMARKETS"
22/09/2019,ARUNDEL,AMZNMKTPLACE,31.46,EQUIPMENT,MISCELLANEOUS AND SPECIALTY RETAIL STORES
22/09/2019,EXTENDED HOPE,HOBBYCRAFT,62.42,CURRICULUM CONSUMABLES,"ARTIST SUPPLY STORES, CRAFT SHOPS"
22/09/2019,ARUNDEL,CANCER RESEARCH LTD,3.55,EQUIPMENT,"ORGANIZATIONS, CHARITABLE AND SOCIAL SERVICES"
22/09/2019,ARUNDEL,CHILDRENS TRUST,9.98,EQUIPMENT,"ORGANIZATIONS, CHARITABLE AND SOCIAL SERVICES"
22/09/2019,SPEECH & LANGUAGE THERAPY,AMZNMKTPLACE,8.00,EQUIPMENT,MISCELLANEOUS AND SPECIALTY RETAIL STORES
22/09/2019,RUTH HOUSE,AMZNMKTPLACE,10.99,EDUC VISITS/HOLS/CAMPS/TOYS,MISCELLANEOUS AND SPECIALTY RETAIL STORES
22/09/2019,PASSENGER TRANSPORT CO-ORDINATION CENTRE,AMZNMKTPLACE,39.95,EQUIPMENT,MISCELLANEOUS AND SPECIALTY RETAIL STORES
22/09/2019,DEMOCRATIC SERVICES TEAM,AMZNMKTPLACE,48.84,COMPUTER CONSUMABLES,MISCELLANEOUS AND SPECIALTY RETAIL STORES
22/09/2019,FIRE SERVICES IT,AMZNMKTPLACE AMAZON.CO,5.99,COMPUTER HARDWARE,MISCELLANEOUS AND SPECIALTY RETAIL STORES
22/09/2019,WOODLANDS COMMUNITY HOME,SURREY CARS GUILDFORD,19.40,HIRE OF VEHICLES,LIMOUSINES AND TAXICABS
23/09/2019,NE CARE - NON-LAC CP & COURT,PREMIER INN,196.00,INDEPENDENT LIVING PLACEMENTS,PREMIER INN
23/09/2019,ACL CENTRAL EXPENDITURE,AMZNMKTPLACE AMAZON.CO,24.98,COMPUTER HARDWARE,MISCELLANEOUS AND SPECIALTY RETAIL STORES
23/09/2019,BURBANK COMMUNITY HOME,COSTA COFFEE 43037185,7.00,REFRESHMENT COSTS,FAST FOOD RESTAURANTS
23/09/2019,NATIONAL TRADING STANDARDS SCAM TEAM,HOTEL ON BOOKING.COM I,54.00,PURCHASE CARD TRANSACTION LOG DEFAULT,"LODGING-HOTELS,MOTELS,RESORTS-NOT CLASSIFIED"
23/09/2019,SE TARGETTED YOUTH SUPPORT,WAITROSE 178,1.85,REFRESHMENT COSTS,"GROCERY STORES, SUPERMARKETS"
23/09/2019,TARGETED INTERVENTION,STARBUCKS,9.80,EDUC VISITS/HOLS/CAMPS/TOYS,FAST FOOD RESTAURANTS
23/09/2019,RUTH HOUSE,FERPLAST.COM,257.00,EQUIPMENT,PET SHOPS - PET FOODS AND SUPPLIES
23/09/2019,RUTH HOUSE,FERPLAST.COM,231.30,EQUIPMENT,PET SHOPS - PET FOODS AND SUPPLIES
23/09/2019,RUTH HOUSE,ARGOS LTD,16.00,EQUIPMENT,DISCOUNT STORES
23/09/2019,RUTH HOUSE,ARGOS LTD,50.24,EQUIPMENT,DISCOUNT STORES
23/09/2019,RUTH HOUSE,FERPLAST.COM,-257.00,EQUIPMENT,PET SHOPS - PET FOODS AND SUPPLIES
23/09/2019,MEADOWSIDE,AMAZON PRIME,-7.99,BOOKS,DIRECT MARKETING-CONTINUITY/SUBSCRIPTION MERCHANTS
23/09/2019,TARGETED INTERVENTION,SQUIRES GARDEN CENTRE,4.25,EDUC VISITS/HOLS/CAMPS/TOYS,LAWN AND GARDEN SUPPLY STORES
23/09/2019,LIBERTAS COMMUNITY HOME,SAINSBURYS 0652,133.86,PURCHASE OF FOOD (RAW MATERIALS),"GROCERY STORES, SUPERMARKETS"
23/09/2019,MALLOW CRESCENT,SAINSBURYS TO YOU 0652,135.24,PURCHASE OF FOOD (RAW MATERIALS),"GROCERY STORES, SUPERMARKETS"
23/09/2019,HOPE SERVICE - WEST,SAINSBURYS TO YOU 0686,128.43,PURCHASE OF FOOD (RAW MATERIALS),"GROCERY STORES, SUPERMARKETS"
23/09/2019,TRANSPORT,AMZNMKTPLACE,24.40,DAY TO DAY MAINTENANCE,MISCELLANEOUS AND SPECIALTY RETAIL STORES
23/09/2019,TRANSPORT,PAYPAL  PLATINUMENT,219.96,FURNITURE,"EQUIP, FURNITURE, HOME FURNSHNGS STRS (EXCPT APPL)"
23/09/2019,TRANSPORT,PAYPAL  DSGRETAILLI,349.00,EQUIPMENT,CAMERA AND PHOTOGRAPHIC SUPPLY STORES
23/09/2019,HOPE SERVICE - WEST,SAINSBURYS TO YOU 0683,73.89,PURCHASE OF FOOD (RAW MATERIALS),"GROCERY STORES, SUPERMARKETS"
23/09/2019,LOWER MOLE COUNTRYSIDE PROJECT,CPC BATTERY SERVICES L,101.57,VEHICLE REPAIRS AND MAINTENANCE,"AUTOMOTIVE PARTS, ACCESSORIES STORES"
23/09/2019,MISC EDCAT SUPPORT,ENVATOMARKET49313932,4.97,PUBLICITY,DIGITAL GOODS AUDIOVISUAL MEDIA
23/09/2019,MISC EDCAT SUPPORT,ENVATOMARKET49317955,17.91,PUBLICITY,DIGITAL GOODS AUDIOVISUAL MEDIA
23/09/2019,FIRE SERVICES IT,LNER WEB SALES,245.00,MISCELLANEOUS STAFF TRAVEL,PASSENGER RAILWAYS
23/09/2019,SOLD PROFESSIONAL TRAINING AND DEVLPMNT,MOUNTAIN TRAINING,12.00,STAFF TRAINING,COMPUTER SOFTWARE STORES
23/09/2019,SOLD MANAGEMENT AND OVERHEADS,AMAZON.CO.UK MA8HX2U54,23.75,BOOKS,DIRECT MARKETING-OTHER DIRECT MARKETERS/NOT ELSEW.
23/09/2019,HOPE SERVICE - WEST,AMZNMKTPLACE,6.95,CURRICULUM CONSUMABLES,MISCELLANEOUS AND SPECIALTY RETAIL STORES
23/09/2019,FAIRCROFT COMMUNITY HOME,AMZNMKTPLACE,36.46,EQUIPMENT,MISCELLANEOUS AND SPECIALTY RETAIL STORES
23/09/2019,FIRE SERVICES IT,AMZNMKTPLACE,9.99,COMPUTER HARDWARE,MISCELLANEOUS AND SPECIALTY RETAIL STORES
23/09/2019,TRANSPORT,HUNTER APPAREL SOLUTIO,"3,880.80","CLOTHING, UNIFORM AND LAUNDRY","CLOTHING RENTAL-COSTUMES,UNIFORMS,FORMAL WEAR"
23/09/2019,HOPE SERVICE - WEST,AMAZON.CO.UK MA0JB7UP4,18.95,BOOKS,DIRECT MARKETING-OTHER DIRECT MARKETERS/NOT ELSEW.
23/09/2019,ARUNDEL,TESCO STORES 5999,77.82,REFRESHMENT COSTS,"GROCERY STORES, SUPERMARKETS"
23/09/2019,NW CARE - LAC,NCS VUE CITB HS&E REV,21.38,OTHER COMMUNITY CARE VOL,SCHOOLS & EDUCATIONAL SVC-NOT ELSEWHERE CLASSIFIED
23/09/2019,NE NIL RECOURSE TO PUBLIC FUNDS CARE,TRAVELODGE,72.00,OTHER COMMUNITY CARE VOL,TRAVELODGE
23/09/2019,PROPERTY OPERATIONS TEAM,WICKES HANWORTH,46.70,PURCHASE OF BUILDING MATERIALS,HOME SUPPLY WAREHOUSE STORES
23/09/2019,MALLOW CRESCENT,TESCO STORE 2590,110.91,PURCHASE OF FOOD (RAW MATERIALS),"GROCERY STORES, SUPERMARKETS"
23/09/2019,MALLOW CRESCENT,TESCO STORE 2590,72.42,PURCHASE OF FOOD (RAW MATERIALS),"GROCERY STORES, SUPERMARKETS"
23/09/2019,SURREY HEATH CMHRS CARE,WORTHING COUNTRY C,75.00,FEES,FINES
23/09/2019,ENSEMBLES & TOURS,SHEETMUSICPLUS.COM,47.63,EQUIPMENT,"MUSIC STORES-INSTRUMENTS, PIANOS, SHEET MUSIC"
23/09/2019,ENSEMBLES & TOURS,SHEETMUSICPLUS.COM,45.40,EQUIPMENT,"MUSIC STORES-INSTRUMENTS, PIANOS, SHEET MUSIC"
23/09/2019,MALLOW CRESCENT,TESCO STORE 2590,115.75,PURCHASE OF FOOD (RAW MATERIALS),"GROCERY STORES, SUPERMARKETS"
23/09/2019,KARIBU COMMUNITY HOME,SABA PARK SERVICES UK-,75.00,MISCELLANEOUS STAFF TRAVEL,AUTOMOBILE PARKING LOTS AND GARAGES
23/09/2019,NATIONAL TRADING STANDARDS SCAM TEAM,TRAVELODGE,208.49,PURCHASE CARD TRANSACTION LOG DEFAULT,TRAVELODGE
23/09/2019,HILLSIDE,SAINSBURYS SACAT 0784,5.40,PURCHASE OF FOOD (RAW MATERIALS),"GROCERY STORES, SUPERMARKETS"
23/09/2019,HILLSIDE,RYMAN,6.98,EQUIPMENT,"OFFICE, SCHOOL SUPPLY, AND STATIONERY STORES"
23/09/2019,TARGETED INTERVENTION,FREEDOM LEISURE,5.75,EDUC VISITS/HOLS/CAMPS/TOYS,GOVERNMENT SERVICES-NOT ELSEWHERE CLASSIFIED
23/09/2019,FAIRCROFT COMMUNITY HOME,SAINSBURYS 0687,55.58,PURCHASE OF FOOD (RAW MATERIALS),"GROCERY STORES, SUPERMARKETS"
23/09/2019,FAIRCROFT COMMUNITY HOME,SAINSBURYS SACAT(4180),22.08,REFRESHMENT COSTS,"GROCERY STORES, SUPERMARKETS"
23/09/2019,TARGETED INTERVENTION,CATERHAM BARRACKS COMM,3.40,EDUC VISITS/HOLS/CAMPS/TOYS,"EATING PLACES, RESTAURANTS"
23/09/2019,FAIRCROFT COMMUNITY HOME,WWW.THEHOWARDPARTNERSH,50.00,REFRESHMENT COSTS,"SCHOOLS, ELEMENTARY AND SECONDARY"
23/09/2019,FAIRCROFT COMMUNITY HOME,BT PAY BY PHONE,110.30,TELECOMMUNICATION CHARGES,TELECOM INCL PREPAID/RECURRING PHONE SVCS
23/09/2019,RUTH HOUSE,WWW.MUSBURYFABRICS.CO.,91.62,EQUIPMENT,MISCELLANEOUS HOUSE FURNISHING SPECIALTY SHOPS
23/09/2019,ACL CENTRAL EXPENDITURE,TESCO STORE 3149,125.44,EQUIPMENT,"GROCERY STORES, SUPERMARKETS"
23/09/2019,SURREY PENSIONS,WWW.ARGOS.CO.UK,48.95,EQUIPMENT,DISCOUNT STORES
23/09/2019,ACL CENTRAL EXPENDITURE,TESCO STORE 2160,89.37,REFRESHMENT COSTS,"GROCERY STORES, SUPERMARKETS"
23/09/2019,ROW VOLUNTEERS WEST                     ,SCREWFIX DIRECT,75.94,EQUIPMENT,HOME SUPPLY WAREHOUSE STORES
23/09/2019,EXTENDED HOPE,WWW.IKEA.COM,953.00,CURRICULUM EQUIPMENT AND FURNITURE,"EQUIP, FURNITURE, HOME FURNSHNGS STRS (EXCPT APPL)"
23/09/2019,BARNFIELD,RYNESS ELECTRICAL SUPP,46.80,DAY TO DAY MAINTENANCE,ELECTRICAL PARTS AND EQUIPMENT
23/09/2019,LIBERTAS COMMUNITY HOME,SAINSBURYS SACAT 0652,21.70,3RD PARTY PAYMENTS PRIVATE INDIV,"GROCERY STORES, SUPERMARKETS"
23/09/2019,LIBERTAS COMMUNITY HOME,SAINSBURYS SACAT 0652,2.85,EQUIPMENT,"GROCERY STORES, SUPERMARKETS"
23/09/2019,LIBERTAS COMMUNITY HOME,SWRAILWAYSELFSERVE,8.50,EDUC VISITS/HOLS/CAMPS/TOYS,PASSENGER RAILWAYS
23/09/2019,RBDM - GENERAL,AMAZON.CO.UK MA77Q7774,33.71,CLEANING MATERIALS,DIRECT MARKETING-OTHER DIRECT MARKETERS/NOT ELSEW.
23/09/2019,CHEYNE WALK COMMUNITY HOME,AMZNMKTPLACE,75.46,FURNITURE,MISCELLANEOUS AND SPECIALTY RETAIL STORES
24/09/2019,FAIRCROFT COMMUNITY HOME,PAYPAL  SPORTSDIREC,34.99,"CLOTHING, UNIFORM AND LAUNDRY",MEN'S AND BOY'S CLOTHING AND ACCESSORIES STORES
24/09/2019,NE CARE - NON-LAC CP & COURT,PREMIER INN,916.00,INDEPENDENT LIVING PLACEMENTS,PREMIER INN
24/09/2019,NE CARE - NON-LAC CP & COURT,PREMIER INN,826.00,INDEPENDENT LIVING PLACEMENTS,PREMIER INN
24/09/2019,OCCUPATIONAL THERAPY,WH SMITH TRAVEL,10.66,PURCHASE OF FOOD (RAW MATERIALS),NEWS DEALERS AND NEWSSTANDS
24/09/2019,NE NIL RECOURSE TO PUBLIC FUNDS CARE,TRAVELODGE,94.75,INDEPENDENT LIVING PLACEMENTS,TRAVELODGE
24/09/2019,SE CARE - CP & COURT LAC,GEN REGISTER OFFICE,80.25,INDEPENDENT LIVING PLACEMENTS,GOVERNMENT SERVICES-NOT ELSEWHERE CLASSIFIED
24/09/2019,TARGETED INTERVENTION,HOEBRIDGE GC,15.50,EDUC VISITS/HOLS/CAMPS/TOYS,GOLF COURSES-PUBLIC
24/09/2019,TARGETED INTERVENTION,HOEBRIDGE GC,5.55,EDUC VISITS/HOLS/CAMPS/TOYS,GOLF COURSES-PUBLIC
24/09/2019,ACL CENTRAL EXPENDITURE,TESCO STORE 2160,106.43,REFRESHMENT COSTS,"GROCERY STORES, SUPERMARKETS"
24/09/2019,TARGETED INTERVENTION,JAMES CAFE BAKERY,5.80,EDUC VISITS/HOLS/CAMPS/TOYS,"EATING PLACES, RESTAURANTS"
24/09/2019,FAIRCROFT COMMUNITY HOME,AMZNMKTPLACE,174.99,EDUC VISITS/HOLS/CAMPS/TOYS,MISCELLANEOUS AND SPECIALTY RETAIL STORES
24/09/2019,COMMUNICATIONS,THE FINANCIAL TIMES,278.20,SUBSCRIPTIONS,DIRECT MARKETING-CONTINUITY/SUBSCRIPTION MERCHANTS
24/09/2019,COMMUNICATIONS TEAM,AMAZON.CO.UK MA8573R34,14.96,STATIONERY,DIRECT MARKETING-OTHER DIRECT MARKETERS/NOT ELSEW.
24/09/2019,SE CARE - LAC,THE ULTIMATE COMPANY L,579.60,OTHER COMMUNITY CARE VOL,RECREATIONAL AND SPORTING CAMPS
24/09/2019,UASC 18+,VERY,303.98,EQUIPMENT,DIRECT MARKETING-CATALOG MERCHANTS
24/09/2019,SE CARE - CP & COURT LAC,WWW.ARGOS.CO.UK,215.95,OTHER COMMUNITY CARE VOL,DISCOUNT STORES
24/09/2019,ROW VOLUNTEERS WEST                     ,AMZNMKTPLACE,31.98,EQUIPMENT,MISCELLANEOUS AND SPECIALTY RETAIL STORES
24/09/2019,EXTENDED HOPE,TESCO STORE 2590,92.89,PURCHASE OF FOOD (RAW MATERIALS),"GROCERY STORES, SUPERMARKETS"
24/09/2019,BARNFIELD,MITCHELLS OF HORLEYLT,35.70,DAY TO DAY MAINTENANCE,"BUILDING MATERIALS, LUMBER STORES"
24/09/2019,BARNFIELD,HOME SHOP CATALOGUE LT,41.60,EQUIPMENT,"GIFT, CARD, NOVELTY AND SOUVENIR SHOPS"
24/09/2019,ORBIS REPAIRS AND MAINT,SCREWFIX CHESSINGTON,199.17,PURCHASE OF BUILDING MATERIALS,"BUILDING MATERIALS, LUMBER STORES"
24/09/2019,TARGETED INTERVENTION,SQUIRES GARDEN CENTRE,6.45,EDUC VISITS/HOLS/CAMPS/TOYS,LAWN AND GARDEN SUPPLY STORES
24/09/2019,RUTH HOUSE,AMZNMKTPLACE,84.54,EQUIPMENT,MISCELLANEOUS AND SPECIALTY RETAIL STORES
24/09/2019,RUTH HOUSE,AMZNMKTPLACE,65.99,EQUIPMENT,MISCELLANEOUS AND SPECIALTY RETAIL STORES
24/09/2019,RUTH HOUSE,SAINSBURYS TO YOU 0686,42.55,PURCHASE OF FOOD (RAW MATERIALS),"GROCERY STORES, SUPERMARKETS"
24/09/2019,RUTH HOUSE,SAINSBURYS TO YOU 0686,171.30,PURCHASE OF FOOD (RAW MATERIALS),"GROCERY STORES, SUPERMARKETS"
24/09/2019,RUTH HOUSE,AMAZON.CO.UK MA3QO5I04,30.54,EQUIPMENT,DIRECT MARKETING-OTHER DIRECT MARKETERS/NOT ELSEW.
24/09/2019,RUTH HOUSE,AMAZON.CO.UK MA7B51RR4,30.71,EQUIPMENT,DIRECT MARKETING-OTHER DIRECT MARKETERS/NOT ELSEW.
24/09/2019,TRANSPORT,PAYPAL  DJRIKKIB,9.79,DAY TO DAY MAINTENANCE,MISCELLANEOUS AND SPECIALTY RETAIL STORES
24/09/2019,LOWER MOLE COUNTRYSIDE PROJECT,WWW.WOODSMITHSTORE.CO,326.00,EQUIPMENT,HARDWARE STORES
24/09/2019,MISC EDCAT SUPPORT,WWW.PARAGON.NET.UK RT,8.63,COMPUTER SERVICES,DIRECT MARKETING-CONTINUITY/SUBSCRIPTION MERCHANTS
24/09/2019,MISC EDCAT SUPPORT,FIVERR.COM,62.08,PUBLICITY,DIRECT MARKETING-CATALOG MERCHANTS
24/09/2019,SOLD DAY TO DAY OPERATIONS,TESCO STORE 2590,4.99,PURCHASE OF FOOD (RAW MATERIALS),"GROCERY STORES, SUPERMARKETS"
24/09/2019,ASSET PLANNING - OPERATIONS,BRITISH STANDARDS,187.20,BOOKS,BUSINESS SERVICES-NOT ELSEWHERE CLASSIFIED
24/09/2019,HILLSIDE,SAINSBURYS 0675,35.45,PURCHASE OF FOOD (RAW MATERIALS),"GROCERY STORES, SUPERMARKETS"
24/09/2019,NE TEACHERS,WWW.TES.COM,7.50,BOOKS,PROFESSIONAL SERVICES-NOT ELSEWHERE CLASSIFIED
24/09/2019,CHILDREN'S RIGHTS TEAM,HIGHSTREETVOUCHERS,304.25,EDUC VISITS/HOLS/CAMPS/TOYS,"ASSOCIATIONS-CIVIC, SOCIAL, AND FRATERNAL"
24/09/2019,SOLD MANAGEMENT AND OVERHEADS,AMAZON.CO.UK MA4SS2UC4,57.33,BOOKS,DIRECT MARKETING-OTHER DIRECT MARKETERS/NOT ELSEW.
24/09/2019,EQUIPMENT SCC BUDGET,METCALFE CATERING,74.50,EQUIPMENT,"EQUIP, FURNITURE, HOME FURNSHNGS STRS (EXCPT APPL)"
24/09/2019,TRANSPORT,ADLER & ALLAN LTD,795.00,VEHICLE RUNNING COSTS,"UTLTS-ELCTRC, GAS, HEATING OIL, SANITARY, WATER"
24/09/2019,TRANSPORT,ADLER & ALLAN LTD,159.00,VEHICLE RUNNING COSTS,"UTLTS-ELCTRC, GAS, HEATING OIL, SANITARY, WATER"
24/09/2019,CLOSED LANDFILL,VITAL PARTS LTD,11.35,EQUIPMENT,INDUSTRIAL SUPPLIES NOT ELSEWHERE CLASSIFIED
24/09/2019,SOLD DAY TO DAY OPERATIONS,AMAZON.CO.UK MA3624RM4,44.22,EQUIPMENT,DIRECT MARKETING-OTHER DIRECT MARKETERS/NOT ELSEW.
24/09/2019,SOLD DAY TO DAY OPERATIONS,CAPITA RECRUITMENT VET,52.10,SUBSCRIPTIONS,PROFESSIONAL SERVICES-NOT ELSEWHERE CLASSIFIED
24/09/2019,"WOODCOT, 4 TANNERY LANE, BRAMLEY",OVO ENERGY LTD,78.85,ELECTRICITY,"UTLTS-ELCTRC, GAS, HEATING OIL, SANITARY, WATER"
24/09/2019,"WOODCOT, 4 TANNERY LANE, BRAMLEY",OVO ENERGY LTD,24.11,GAS,"UTLTS-ELCTRC, GAS, HEATING OIL, SANITARY, WATER"
24/09/2019,ARUNDEL,TESCO STORES 5999,201.90,REFRESHMENT COSTS,"GROCERY STORES, SUPERMARKETS"
24/09/2019,SERVICE DELIVERY SENIOR MANAGEMENT,POST OFFICE COUNTER,6.60,STATIONERY,POSTAL SERVICES-GOVERNMENT ONLY
24/09/2019,HILLSIDE,CO-OP GROUP 350033,3.30,PURCHASE OF FOOD (RAW MATERIALS),"GROCERY STORES, SUPERMARKETS"
24/09/2019,TRAINING AND DEVELOPMENT,SUSSEX YACHT CLUB BAR,110.00,REFRESHMENT COSTS,"BAR,LOUNGE,DISCO,NIGHTCLUB,TAVERN-ALCOHOLIC DRINKS"
24/09/2019,RUTH HOUSE,GIFFGAFF,6.00,TELECOMMUNICATION CHARGES,TELECOM INCL PREPAID/RECURRING PHONE SVCS
24/09/2019,RUTH HOUSE,GIFFGAFF,6.00,TELECOMMUNICATION CHARGES,TELECOM INCL PREPAID/RECURRING PHONE SVCS
24/09/2019,CHEYNE WALK COMMUNITY HOME,AMZ AMAZON.CO.UK,-31.99,EQUIPMENT,MISCELLANEOUS AND SPECIALTY RETAIL STORES
24/09/2019,HAVEN,CO-OP GROUP 310385,10.22,REFRESHMENT COSTS,"GROCERY STORES, SUPERMARKETS"
24/09/2019,TARGETED INTERVENTION,ELMBRIDGE BC CAR PARK,1.20,EDUC VISITS/HOLS/CAMPS/TOYS,AUTOMOBILE PARKING LOTS AND GARAGES
24/09/2019,NE TARGETTED YOUTH SUPPORT,AMAZON.CO.UK,-12.96,EQUIPMENT,DIRECT MARKETING-OTHER DIRECT MARKETERS/NOT ELSEW.
24/09/2019,ACL CENTRAL EXPENDITURE,AMAZON.CO.UK MA3CV0RJ4,9.24,EQUIPMENT,DIRECT MARKETING-OTHER DIRECT MARKETERS/NOT ELSEW.
24/09/2019,DOWNLANDS COUNTRYSIDE PROJECT,TESCO STORES,21.94,REFRESHMENT COSTS,"GROCERY STORES, SUPERMARKETS"
24/09/2019,S28A MENTAL HEALTH,WORTHING COUNTRY C,75.00,FEES,FINES
24/09/2019,LIBERTAS COMMUNITY HOME,NEXT RETAIL LTD,100.00,3RD PARTY PAYMENTS PRIVATE INDIV,FAMILY CLOTHING STORES
24/09/2019,LIBERTAS COMMUNITY HOME,SPORTSDIRECT 234,100.00,"CLOTHING, UNIFORM AND LAUNDRY",SPORTING GOODS STORES
24/09/2019,CORONER,AMZNMKTPLACE AMAZON.CO,8.98,EQUIPMENT,MISCELLANEOUS AND SPECIALTY RETAIL STORES
24/09/2019,PRIMARY FESTIVALS,ACP  MUSIC-ROOM_GBP,319.20,EQUIPMENT,MISCELLANEOUS PUBLISHING AND PRINTING
24/09/2019,INSTRUMENT HIRE SHOP,WINDPLUS,327.98,EQUIPMENT,"MUSIC STORES-INSTRUMENTS, PIANOS, SHEET MUSIC"
24/09/2019,NATIONAL TRADING STANDARDS SCAM TEAM,AIRBNB   HMAJSRYH9A,-213.64,PURCHASE CARD TRANSACTION LOG DEFAULT,"LODGING-HOTELS,MOTELS,RESORTS-NOT CLASSIFIED"
25/09/2019,LIBERTAS COMMUNITY HOME,WWW.THERANGE.CO.UK,54.03,FURNITURE,"EQUIP, FURNITURE, HOME FURNSHNGS STRS (EXCPT APPL)"
25/09/2019,YSS YOUTH CENTRE IMPROVEMENTS,TVLICENSING.CO.UK,154.50,LICENCE FEES,"CONSULTING, MANAGEMENT, AND PUBLIC RELATIONS SVCS"
25/09/2019,YSS YOUTH CENTRE IMPROVEMENTS,DECATHLON UK,32.98,EQUIPMENT,SPORTING GOODS STORES
25/09/2019,HAVEN YTH CENTRE,CO-OP GROUP FOOD,4.00,REFRESHMENT COSTS,"GROCERY STORES, SUPERMARKETS"
25/09/2019,HILLSIDE,ALDI 34 775,10.67,PURCHASE OF FOOD (RAW MATERIALS),"GROCERY STORES, SUPERMARKETS"
25/09/2019,TRANSPORT,SCREWFIX DIRECT,154.99,VEHICLE REPAIRS AND MAINTENANCE,HOME SUPPLY WAREHOUSE STORES
25/09/2019,SURREY PENSIONS,WWW.LGSS.CO.UK,-11.00,PURCHASE CARD TRANSACTION LOG DEFAULT,"COLLEGES, UNIV, PRO SCHOOLS, JUNIOR COLLEGES"
25/09/2019,MALLOW CRESCENT,WARNER BROS STUDIO,54.95,EDUC VISITS/HOLS/CAMPS/TOYS,TOURIST ATTRACTIONS AND EXHIBITS
25/09/2019,DOWNLANDS COUNTRYSIDE PROJECT,WILKO RETAIL LIMIT,5.00,DAY TO DAY MAINTENANCE,HOUSEHOLD APPLIANCE STORES
25/09/2019,TARGETED INTERVENTION,TOP GOLF LTD,20.00,EDUC VISITS/HOLS/CAMPS/TOYS,"CLUBS-CNTRY,MBRSHIP(ATHLET,REC,SPRTS,PRIVATE GOLF"
25/09/2019,QUADRANT COURT WOKING,SCREWFIX DIRECT,33.99,EQUIPMENT,HOME SUPPLY WAREHOUSE STORES
25/09/2019,QUADRANT COURT WOKING,SCREWFIX DIRECT,8.98,EQUIPMENT,HOME SUPPLY WAREHOUSE STORES
25/09/2019,NE TARGETTED YOUTH SUPPORT,POUNDLAND,6.00,REFRESHMENT COSTS,DISCOUNT STORES
25/09/2019,DOWNLANDS COUNTRYSIDE PROJECT,BUBBLES CAR WASH,20.00,VEHICLE RUNNING COSTS,CAR WASHES
25/09/2019,WOODLANDS COMMUNITY HOME,SAINSBURYS TO YOU 0686,35.45,PURCHASE OF FOOD (RAW MATERIALS),"GROCERY STORES, SUPERMARKETS"
25/09/2019,WOODLANDS COMMUNITY HOME,SAINSBURYS TO YOU 0686,147.40,PURCHASE OF FOOD (RAW MATERIALS),"GROCERY STORES, SUPERMARKETS"
25/09/2019,CHALKMEAD,AMAZON.CO.UK MA37A4WH4,47.30,REFRESHMENT COSTS,DIRECT MARKETING-OTHER DIRECT MARKETERS/NOT ELSEW.
25/09/2019,CHEYNE WALK COMMUNITY HOME,TESCO STORE 2560,5.00,EQUIPMENT,"GROCERY STORES, SUPERMARKETS"
25/09/2019,SPEECH & LANGUAGE THERAPY,WWW.COURSEBEETLE.CO.UK,215.00,STAFF TRAINING,COMPUTER SOFTWARE STORES
25/09/2019,BURBANK COMMUNITY HOME,BOOTS 5228,15.98,MEDICAL EXPENSES,"DRUG STORES, PHARMACIES"
25/09/2019,RIGHTS & PARTICIPATION TEAM,TESCO STORE 2812,125.00,REFRESHMENT COSTS,"GROCERY STORES, SUPERMARKETS"
25/09/2019,RIGHTS & PARTICIPATION TEAM,SAINSBURYS 0517,100.00,REFRESHMENT COSTS,"GROCERY STORES, SUPERMARKETS"
25/09/2019,RIGHTS & PARTICIPATION TEAM,SAINSBURYS 0517,25.00,REFRESHMENT COSTS,"GROCERY STORES, SUPERMARKETS"
25/09/2019,HOPE SERVICE - WEST,SAINSBURYS TO YOU 0686,42.35,PURCHASE OF FOOD (RAW MATERIALS),"GROCERY STORES, SUPERMARKETS"
25/09/2019,NE TARGETTED YOUTH SUPPORT,LIDL GB CHESSINGTON,6.56,REFRESHMENT COSTS,"GROCERY STORES, SUPERMARKETS"
25/09/2019,ACL CENTRAL EXPENDITURE,AMAZON.CO.UK MA5303WN4,11.96,EQUIPMENT,DIRECT MARKETING-OTHER DIRECT MARKETERS/NOT ELSEW.
25/09/2019,ACL CENTRAL EXPENDITURE,WWW.TOOLSTATION.COM,15.56,EQUIPMENT,HARDWARE STORES
25/09/2019,ACL CENTRAL EXPENDITURE,VITRUM SIGNUM,153.06,EQUIPMENT,"ARTIST SUPPLY STORES, CRAFT SHOPS"
25/09/2019,ACL CENTRAL EXPENDITURE,AMAZON.CO.UK MA8N02WR4,2.92,EQUIPMENT,DIRECT MARKETING-OTHER DIRECT MARKETERS/NOT ELSEW.
25/09/2019,DEMOCRATIC SERVICES TEAM,AMAZON.CO.UK MA7457UP4,56.63,REFRESHMENT COSTS,DIRECT MARKETING-OTHER DIRECT MARKETERS/NOT ELSEW.
25/09/2019,SURREY SAFEGUARDING CHILDREN'S BOARD,WWW.GREENTANGERINE.ORG,445.50,REFRESHMENT COSTS,"MISC FOOD STORE-CONVENIENCE,MRKT,SPLTY,VENDNG MACS"
25/09/2019,APPLEWOOD,TIMPSON LTD,24.50,EQUIPMENT,"HAT CLEANING SHOPS, SHOE REPAIR SHOPS, SHOE SHINE"
25/09/2019,BURBANK COMMUNITY HOME,SAINSBURYS TO YOU 0686,335.48,PURCHASE OF FOOD (RAW MATERIALS),"GROCERY STORES, SUPERMARKETS"
25/09/2019,BURBANK COMMUNITY HOME,SAINSBURYS TO YOU 0686,-1.10,PURCHASE OF FOOD (RAW MATERIALS),"GROCERY STORES, SUPERMARKETS"
25/09/2019,TRANSPORT STUDIES TEAM,KEW CREDIT CONTROL,395.56,EQUIPMENT,ELECTRICAL PARTS AND EQUIPMENT
25/09/2019,SOLD CATERING,WWW.SAFETYLIFTINGEAR.C,13.66,EQUIPMENT,"EQUIPMENT RENTAL&LEASING SVS, FURNTURE/TOOL RENTAL"
25/09/2019,HOPE SERVICE - WEST,SAINSBURYS LOC 4409,11.10,PURCHASE OF FOOD (RAW MATERIALS),"GROCERY STORES, SUPERMARKETS"
25/09/2019,HOPE SERVICE - WEST,SAINSBURYS LOC 4409,3.70,PURCHASE OF FOOD (RAW MATERIALS),"GROCERY STORES, SUPERMARKETS"
25/09/2019,HOPE SERVICE - WEST,SAINSBURYS LOC 4409,1.45,PURCHASE OF FOOD (RAW MATERIALS),"GROCERY STORES, SUPERMARKETS"
25/09/2019,ACL CENTRAL EXPENDITURE,WWW.HSWALSH.COM,15.89,EQUIPMENT,"CLOCK, JEWELRY, WATCH, AND SILVERWARE STORE"
25/09/2019,SOLD ESTATES MANAGEMENT,CROWBOROUGH COACHW,386.84,VEHICLE REPAIRS AND MAINTENANCE,AUTOMOTIVE SERVICE SHOPS
25/09/2019,SOLD ESTATES MANAGEMENT,HALFORDS 0479,88.00,VEHICLE REPAIRS AND MAINTENANCE,BICYCLE SHOPS-SALES AND SERVICE
25/09/2019,SOLD DAY TO DAY OPERATIONS,WWW.DEFIBSTORE.CO.UK,282.00,EQUIPMENT,DENTAL/LAB/MED/OPHTHALMIC HOSP EQUIP & SUPPLIES
25/09/2019,HOPE SERVICE - WEST,AMAZON.CO.UK MA8HP8IX4,31.92,BOOKS,DIRECT MARKETING-OTHER DIRECT MARKETERS/NOT ELSEW.
25/09/2019,NW CARE - CP & COURT LAC,SURREY CC CARD PAY,22.00,OTHER COMMUNITY CARE VOL,COMPUTER NETWORK/INFORMATION SERVICES
25/09/2019,PE/CDT MAINTENANCE OVERHEADS,BEARINGS AND BELTS,137.77,ITEMS PURCHASED FOR RE-SALE,"ARCHITECTURAL, ENGINEERING, AND SURVEYING SERVICES"
25/09/2019,PE/CDT MAINTENANCE OVERHEADS,WWW.ARCO.CO.UK,75.14,EQUIPMENT,INDUSTRIAL SUPPLIES NOT ELSEWHERE CLASSIFIED
25/09/2019,TS SERVICE MANAGEMENT,AMZNMKTPLACE,9.00,PUBLICITY,MISCELLANEOUS AND SPECIALTY RETAIL STORES
25/09/2019,SERVICE DELIVERY SENIOR MANAGEMENT,POST OFFICE COUNTER,3.17,POSTAGE AND COURIER CHARGES,POSTAL SERVICES-GOVERNMENT ONLY
25/09/2019,SHELL UK LICENSING,ROCHFORD DISTRICT COUN,113.00,FEES,GOVERNMENT SERVICES-NOT ELSEWHERE CLASSIFIED
25/09/2019,B & C PRIMARY AUTHORITY PARTNERSHIP     ,WWW.INVERCLYDECOUNCIL,260.00,FEES,GOVERNMENT SERVICES-NOT ELSEWHERE CLASSIFIED
25/09/2019,B & C PRIMARY AUTHORITY PARTNERSHIP     ,WWW.SABRAIN.COM,14.88,SUBSISTENCE AND CONFERENCE EXPENSES,"BAR,LOUNGE,DISCO,NIGHTCLUB,TAVERN-ALCOHOLIC DRINKS"
25/09/2019,B & C PRIMARY AUTHORITY PARTNERSHIP     ,WWW.SABRAIN.COM,65.00,SUBSISTENCE AND CONFERENCE EXPENSES,"BAR,LOUNGE,DISCO,NIGHTCLUB,TAVERN-ALCOHOLIC DRINKS"
25/09/2019,SHELL UK LICENSING,WWW.SANDWELL.GOV.UK,79.00,FEES,GOVERNMENT SERVICES-NOT ELSEWHERE CLASSIFIED
25/09/2019,CURRICULUM SUPPORT,AMAZON.CO.UK MA08T8IY4,17.92,EQUIPMENT,DIRECT MARKETING-OTHER DIRECT MARKETERS/NOT ELSEW.
25/09/2019,LIBERTAS COMMUNITY HOME,STARBUCKS,14.75,REFRESHMENT COSTS,FAST FOOD RESTAURANTS
25/09/2019,SOUTH WEST OUTREACH,SAINSBURYS TO YOU 0652,18.80,PURCHASE OF FOOD (RAW MATERIALS),"GROCERY STORES, SUPERMARKETS"
25/09/2019,SOUTH WEST OUTREACH,SAINSBURYS TO YOU 0652,109.35,PURCHASE OF FOOD (RAW MATERIALS),"GROCERY STORES, SUPERMARKETS"
25/09/2019,OCCUPATIONAL THERAPY,TESCO STORE 2812,4.94,PURCHASE OF FOOD (RAW MATERIALS),"GROCERY STORES, SUPERMARKETS"
25/09/2019,FAIRCROFT COMMUNITY HOME,SAINSBURYS SACAT 0687,57.95,REFRESHMENT COSTS,"GROCERY STORES, SUPERMARKETS"
25/09/2019,CHEYNE WALK COMMUNITY HOME,TESCO STORE 2560,56.77,PURCHASE OF FOOD (RAW MATERIALS),"GROCERY STORES, SUPERMARKETS"
25/09/2019,RUTH HOUSE,G J HONOUR,127.49,PURCHASE OF FOOD (RAW MATERIALS),"MISC FOOD STORE-CONVENIENCE,MRKT,SPLTY,VENDNG MACS"
25/09/2019,NE NIL RECOURSE TO PUBLIC FUNDS CARE,TRAVELODGE,77.75,OTHER COMMUNITY CARE VOL,TRAVELODGE
25/09/2019,DOWNLANDS COUNTRYSIDE PROJECT,FAIRALLS (BUILDERS ME,40.97,DAY TO DAY MAINTENANCE,"BUILDING MATERIALS, LUMBER STORES"
26/09/2019,SOLD DAY TO DAY OPERATIONS,EBUYER (UK) LTD,31.47,EQUIPMENT,HOUSEHOLD APPLIANCE STORES
26/09/2019,NW NIL RECOURSE TO PUBLIC FUNDS CARE,PREMIER INN,566.00,INDEPENDENT LIVING PLACEMENTS,PREMIER INN
26/09/2019,SW CARE - CP & COURT LAC,PREMIER INN,168.00,INDEPENDENT LIVING PLACEMENTS,PREMIER INN
26/09/2019,COMMUNICATIONS TEAM,TIMES NEWSPAPERS LTD,26.00,NEWSPAPER AND PERIODICALS,"BOOKS,PERIODICALS AND NEWSPAPERS"
26/09/2019,HOPE SERVICE - WEST,SAINSBURYS SACAT(4409),7.40,PURCHASE OF FOOD (RAW MATERIALS),"GROCERY STORES, SUPERMARKETS"
26/09/2019,ACL CENTRAL EXPENDITURE,AMZ ARTDISCOUNT,75.60,EQUIPMENT,ADVERTISING SERVICES
26/09/2019,TRANSPORT,THOMASKNEALE.CO.UK,668.23,"CLOTHING, UNIFORM AND LAUNDRY","DRAPERY, UPOLSTERY, AND WINDOW COVERINGS STORES"
26/09/2019,EXTENDED HOPE,TAYLOR'S,312.00,EQUIPMENT,BUSINESS SERVICES-NOT ELSEWHERE CLASSIFIED
26/09/2019,ARUNDEL,TESCO STORES 5999,76.42,REFRESHMENT COSTS,"GROCERY STORES, SUPERMARKETS"
26/09/2019,PE/CDT MAINTENANCE OVERHEADS,SCREWFIX EPSOM,71.95,EQUIPMENT,"BUILDING MATERIALS, LUMBER STORES"
26/09/2019,TRAINING AND DEVELOPMENT,BRANDON HALL HOTEL AND,375.00,TRAINING EXPENSES EXTERNAL GENERAL,"LODGING-HOTELS,MOTELS,RESORTS-NOT CLASSIFIED"
26/09/2019,SCHOOL SPORT 2015-16                    ,WWW.PLASTICONLINE.CO.U,86.10,EQUIPMENT,BUSINESS SERVICES-NOT ELSEWHERE CLASSIFIED
26/09/2019,SHELL UK LICENSING,DARTFORD BC INTERNET,339.00,FEES,GOVERNMENT SERVICES-NOT ELSEWHERE CLASSIFIED
26/09/2019,LOCAL ASSISTANCE SCHEME,WEBSTER FLOORS,300.00,FURNITURE,FLOOR COVERING STORES
26/09/2019,BUSINESS OPERATIONS TRAINING,WISE OWL BUSINESS SOLU,500.00,TRAINING EXPENSES EXTERNAL GENERAL,"COLLEGES, UNIV, PRO SCHOOLS, JUNIOR COLLEGES"
26/09/2019,BUSINESS OPERATIONS TRAINING,WISE OWL BUSINESS SOLU,520.00,TRAINING EXPENSES EXTERNAL GENERAL,"COLLEGES, UNIV, PRO SCHOOLS, JUNIOR COLLEGES"
26/09/2019,TARGETED INTERVENTION,SWRAILWAY TCK OFF,42.15,EDUC VISITS/HOLS/CAMPS/TOYS,PASSENGER RAILWAYS
26/09/2019,TARGETED INTERVENTION,LONDON AQUARIUM,72.00,EDUC VISITS/HOLS/CAMPS/TOYS,"AQUARIUMS, DOLPHINARIUMS, AND SEAQUARIUMS"
26/09/2019,TARGETED INTERVENTION,ALLSAINTS,6.20,EDUC VISITS/HOLS/CAMPS/TOYS,"EATING PLACES, RESTAURANTS"
26/09/2019,TARGETED INTERVENTION,THE APPLE TREE STU,31.50,EDUC VISITS/HOLS/CAMPS/TOYS,"ARTIST SUPPLY STORES, CRAFT SHOPS"
26/09/2019,TRANSPORT,TADWORTH TYRE SPECIALI,96.00,VEHICLE REPAIRS AND MAINTENANCE,AUTOMOTIVE TIRE STORES
26/09/2019,TRANSPORT,PAYPAL  ALUMINIUMEU,128.44,VEHICLE REPAIRS AND MAINTENANCE,ADVERTISING SERVICES
26/09/2019,TRANSPORT,PAYPAL  OEMAUTOMATI,"1,384.74",VEHICLE REPAIRS AND MAINTENANCE,PROFESSIONAL SERVICES-NOT ELSEWHERE CLASSIFIED
26/09/2019,HEATHSIDE,AMZNMKTPLACE,30.45,EQUIPMENT,MISCELLANEOUS AND SPECIALTY RETAIL STORES
26/09/2019,FAIRCROFT COMMUNITY HOME,ARGOS RETAIL GROUP,122.00,EDUC VISITS/HOLS/CAMPS/TOYS,DISCOUNT STORES
26/09/2019,CHEYNE WALK COMMUNITY HOME,TESCO-STORES 6647,194.42,PURCHASE OF FOOD (RAW MATERIALS),"GROCERY STORES, SUPERMARKETS"
26/09/2019,TARGETED INTERVENTION,SOVEREIGN SNOOKER LTD,5.03,EDUC VISITS/HOLS/CAMPS/TOYS,"CLUBS-CNTRY,MBRSHIP(ATHLET,REC,SPRTS,PRIVATE GOLF"
26/09/2019,ACT,AMZNMKTPLACE,61.25,EQUIPMENT,MISCELLANEOUS AND SPECIALTY RETAIL STORES
26/09/2019,APPLEWOOD,ASDA GROCERIES ONLINE,112.61,PURCHASE OF FOOD (RAW MATERIALS),"GROCERY STORES, SUPERMARKETS"
26/09/2019,APPLEWOOD,ASDA GROCERIES ONLINE,-0.81,PURCHASE OF FOOD (RAW MATERIALS),"GROCERY STORES, SUPERMARKETS"
26/09/2019,NE SECTION 17 CARE,TRAVELODGE,477.00,INDEPENDENT LIVING PLACEMENTS,TRAVELODGE
26/09/2019,NE NIL RECOURSE TO PUBLIC FUNDS CARE,TRAVELODGE,55.75,INDEPENDENT LIVING PLACEMENTS,TRAVELODGE
26/09/2019,NE NIL RECOURSE TO PUBLIC FUNDS CARE,TRAVELODGE,477.25,INDEPENDENT LIVING PLACEMENTS,TRAVELODGE
26/09/2019,SE CARE - LAC,SURREY CC CARD PAY,35.00,OTHER COMMUNITY CARE VOL,COMPUTER NETWORK/INFORMATION SERVICES
26/09/2019,ACL CENTRAL EXPENDITURE,TESCO STORE 2160,45.62,REFRESHMENT COSTS,"GROCERY STORES, SUPERMARKETS"
26/09/2019,ROW VOLUNTEERS EAST                     ,CARRICK SIGNS LTD,43.20,EQUIPMENT,MISCELLANEOUS PUBLISHING AND PRINTING
26/09/2019,HOPE SERVICE - WEST,IZ  STRIKES BOWLING LI,25.00,EDUC VISITS/HOLS/CAMPS/TOYS,RECREATION SERVICES (NOT ELSEWHERE CLASSIFIED)
26/09/2019,EXTENDED HOPE,OXFAM F4358,1.00,CURRICULUM CONSUMABLES,"ORGANIZATIONS, CHARITABLE AND SOCIAL SERVICES"
26/09/2019,EXTENDED HOPE,HOBBYCRAFT,17.07,CURRICULUM CONSUMABLES,"ARTIST SUPPLY STORES, CRAFT SHOPS"
26/09/2019,EXTENDED HOPE,IZ  BUBBLE CITY LTD,7.90,REFRESHMENT COSTS,"EATING PLACES, RESTAURANTS"
26/09/2019,WOODLANDS COMMUNITY HOME,SAINSBURYS 0167,28.99,PURCHASE OF FOOD (RAW MATERIALS),"GROCERY STORES, SUPERMARKETS"
26/09/2019,CHALKMEAD,AMZNMKTPLACE,8.99,E25 CATERING EQUIPMENT,MISCELLANEOUS AND SPECIALTY RETAIL STORES
26/09/2019,CHALKMEAD,AMAZON.CO.UK MA3VD0Y14,47.30,REFRESHMENT COSTS,DIRECT MARKETING-OTHER DIRECT MARKETERS/NOT ELSEW.
26/09/2019,CHALKMEAD,C BREWER & SONS,244.20,DAY TO DAY MAINTENANCE,"BUILDING MATERIALS, LUMBER STORES"
26/09/2019,BARNFIELD,POST OFFICE COUNTER,2.50,FEES,POSTAL SERVICES-GOVERNMENT ONLY
26/09/2019,BARNFIELD,POST OFFICE COUNTER,290.00,MISCELLANEOUS STAFF TRAVEL,POSTAL SERVICES-GOVERNMENT ONLY
26/09/2019,SE TEACHERS,WWW.ELKLAN.CO.UK,66.00,EQUIPMENT,SCHOOLS & EDUCATIONAL SVC-NOT ELSEWHERE CLASSIFIED
26/09/2019,ORBIS REPAIRS AND MAINT,SCREWFIX DIRECT,80.90,PURCHASE OF BUILDING MATERIALS,HOME SUPPLY WAREHOUSE STORES
26/09/2019,SE TARGETTED YOUTH SUPPORT,WAITROSE 178,4.24,REFRESHMENT COSTS,"GROCERY STORES, SUPERMARKETS"
26/09/2019,SE TARGETTED YOUTH SUPPORT,WAITROSE 178,3.25,REFRESHMENT COSTS,"GROCERY STORES, SUPERMARKETS"
26/09/2019,SE TARGETTED YOUTH SUPPORT,WM MORRISONS STORE,15.55,REFRESHMENT COSTS,"GROCERY STORES, SUPERMARKETS"
26/09/2019,FAIRCROFT COMMUNITY HOME,BROOKLANDS EXTRA,8.89,EDUC VISITS/HOLS/CAMPS/TOYS,"OFFICE, SCHOOL SUPPLY, AND STATIONERY STORES"
26/09/2019,FAIRCROFT COMMUNITY HOME,THE OLD PLOUGH,97.60,REFRESHMENT COSTS,"BAR,LOUNGE,DISCO,NIGHTCLUB,TAVERN-ALCOHOLIC DRINKS"
26/09/2019,PE/CDT MAINTENANCE OVERHEADS,TIMPSON LTD,16.00,EQUIPMENT,"HAT CLEANING SHOPS, SHOE REPAIR SHOPS, SHOE SHINE"
26/09/2019,PE/CDT MAINTENANCE OVERHEADS,SCREWFIX EPSOM,48.27,EQUIPMENT,"BUILDING MATERIALS, LUMBER STORES"
26/09/2019,PE/CDT MAINTENANCE OVERHEADS,EPSOM AND EWELL BOROUG,416.75,TRADE REFUSE,GOVERNMENT SERVICES-NOT ELSEWHERE CLASSIFIED
26/09/2019,BURBANK COMMUNITY HOME,LISA MILLS ONLINE,27.00,SPECIALIST EDUCATIONAL STATIONERY,SCHOOLS & EDUCATIONAL SVC-NOT ELSEWHERE CLASSIFIED
26/09/2019,ACL CENTRAL EXPENDITURE,PAYPAL  JOSTESTINGS,15.00,EQUIPMENT,CHEMICALS/ALLIED PRODUCTS NOT ELSEWHERE CLASSIFIED
26/09/2019,ACL CENTRAL EXPENDITURE,GEORGE WEIL & SONS,194.40,EQUIPMENT,"ARTIST SUPPLY STORES, CRAFT SHOPS"
26/09/2019,ACL CENTRAL EXPENDITURE,COOKSON PRECIOUS M,222.53,EQUIPMENT,"PRECIOUS STONES AND METALS, WATCHES AND JEWELRY"
26/09/2019,DOWNLANDS COUNTRYSIDE PROJECT,SCREWFIX DIRECT LT,76.96,EQUIPMENT,"BUILDING MATERIALS, LUMBER STORES"
26/09/2019,TRANSPORT,AMZNMKTPLACE AMAZON.CO,43.07,DAY TO DAY MAINTENANCE,MISCELLANEOUS AND SPECIALTY RETAIL STORES
26/09/2019,HOPE SERVICE - WEST,SAINSBURYS TO YOU 0683,47.89,PURCHASE OF FOOD (RAW MATERIALS),"GROCERY STORES, SUPERMARKETS"
26/09/2019,PROJECTS AND CONTRACTS GROUP,AMAZON.CO.UK MA3VK2W64,26.06,EQUIPMENT,DIRECT MARKETING-OTHER DIRECT MARKETERS/NOT ELSEW.
26/09/2019,CUSTOMER INTERACTION,SP   INSTITUTE OF CS,42.00,STATIONERY,COMPUTER SOFTWARE STORES
26/09/2019,COUNTRYSIDE PROJECT DEVELOPMENT,CORSO HOTEL,914.40,SUBSISTENCE AND CONFERENCE EXPENSES,"LODGING-HOTELS,MOTELS,RESORTS-NOT CLASSIFIED"
26/09/2019,APPLEWOOD,AMZNMKTPLACE,13.98,EQUIPMENT,MISCELLANEOUS AND SPECIALTY RETAIL STORES
26/09/2019,MISC EDCAT SUPPORT,ENVATOMARKET49366466,29.11,PUBLICITY,DIGITAL GOODS AUDIOVISUAL MEDIA
26/09/2019,COUNTY HALL,AMZNMKTPLACE,153.11,"CLOTHING, UNIFORM AND LAUNDRY",MISCELLANEOUS AND SPECIALTY RETAIL STORES
26/09/2019,COUNTY HALL,AMZNMKTPLACE,5.95,EQUIPMENT,MISCELLANEOUS AND SPECIALTY RETAIL STORES
26/09/2019,SPLASH PROJECT,AMZNMKTPLACE,525.85,EDUC VISITS/HOLS/CAMPS/TOYS,MISCELLANEOUS AND SPECIALTY RETAIL STORES
27/09/2019,SW SECTION 17 CARE,THE WOKING HOTEL,130.00,INDEPENDENT LIVING PLACEMENTS,"LODGING-HOTELS,MOTELS,RESORTS-NOT CLASSIFIED"
27/09/2019,SW CARE - CP & COURT LAC,PREMIER INN,-81.50,INDEPENDENT LIVING PLACEMENTS,PREMIER INN
27/09/2019,SW CARE - CP & COURT LAC,PREMIER INN,166.00,INDEPENDENT LIVING PLACEMENTS,PREMIER INN
27/09/2019,SPEECH & LANGUAGE THERAPY,WWW.ABNFINEST.CO.UK,16.99,BOOKS,"OFFICE, SCHOOL SUPPLY, AND STATIONERY STORES"
27/09/2019,MEADOWSIDE,WWW.ARGOS.CO.UK,23.94,DAY TO DAY MAINTENANCE,DISCOUNT STORES
27/09/2019,MEADOWSIDE,WWW.ARGOS.CO.UK,95.93,DAY TO DAY MAINTENANCE,DISCOUNT STORES
27/09/2019,CHEYNE WALK COMMUNITY HOME,AIRBNB   HMADBPTAQ9,415.73,EDUC VISITS/HOLS/CAMPS/TOYS,"LODGING-HOTELS,MOTELS,RESORTS-NOT CLASSIFIED"
27/09/2019,CHEYNE WALK COMMUNITY HOME,CEX,23.00,EDUC VISITS/HOLS/CAMPS/TOYS,ELECTRICAL PARTS AND EQUIPMENT
27/09/2019,PE/CDT MAINTENANCE OVERHEADS,HARROD UK SPORT,471.26,ITEMS PURCHASED FOR RE-SALE,"SPORTS APPAREL, RIDING APPAREL STORES"
27/09/2019,PE/CDT MAINTENANCE OVERHEADS,HARROD UK SPORT,129.47,ITEMS PURCHASED FOR RE-SALE,"SPORTS APPAREL, RIDING APPAREL STORES"
27/09/2019,PE/CDT MAINTENANCE OVERHEADS,HARROD UK SPORT,321.18,ITEMS PURCHASED FOR RE-SALE,"SPORTS APPAREL, RIDING APPAREL STORES"
27/09/2019,PE/CDT MAINTENANCE OVERHEADS,HARROD UK SPORT,359.36,ITEMS PURCHASED FOR RE-SALE,"SPORTS APPAREL, RIDING APPAREL STORES"
27/09/2019,LIBERTAS COMMUNITY HOME,SAINSBURYS SACAT 0680,162.80,PURCHASE OF FOOD (RAW MATERIALS),"GROCERY STORES, SUPERMARKETS"
27/09/2019,ACL CENTRAL EXPENDITURE,W P NOTCUTT LTD,975.91,EQUIPMENT,"BUILDING MATERIALS, LUMBER STORES"
27/09/2019,ACL CENTRAL EXPENDITURE,AMAZON.CO.UK MA5XN5YU4,9.44,EQUIPMENT,DIRECT MARKETING-OTHER DIRECT MARKETERS/NOT ELSEW.
27/09/2019,ACL CENTRAL EXPENDITURE,MOSAICS,55.20,EQUIPMENT,"ARTIST SUPPLY STORES, CRAFT SHOPS"
27/09/2019,ACL CENTRAL EXPENDITURE,PAYPAL  WOODSHAPES,22.25,EQUIPMENT,"ARTIST SUPPLY STORES, CRAFT SHOPS"
27/09/2019,ACL CENTRAL EXPENDITURE,SJASUPLIES,82.96,EQUIPMENT,"ORGANIZATIONS, CHARITABLE AND SOCIAL SERVICES"
27/09/2019,PORTAGE SERVICE (SW),AMZNMKTPLACE,306.10,EQUIPMENT,MISCELLANEOUS AND SPECIALTY RETAIL STORES
27/09/2019,COUNTRYSIDE PROJECT DEVELOPMENT,POST OFFICE COUNTER,26.60,POSTAGE AND COURIER CHARGES,POSTAL SERVICES-GOVERNMENT ONLY
27/09/2019,COUNTRYSIDE PROJECT DEVELOPMENT,WH SMITH,5.99,POSTAGE AND COURIER CHARGES,NEWS DEALERS AND NEWSSTANDS
27/09/2019,APPLEWOOD,ASDA GROCERIES ONLINE,109.32,PURCHASE OF FOOD (RAW MATERIALS),"GROCERY STORES, SUPERMARKETS"
27/09/2019,MISC EDCAT SUPPORT,ENVATOMARKET49389512,6.04,PUBLICITY,DIGITAL GOODS AUDIOVISUAL MEDIA
27/09/2019,EQUIPMENT SCC BUDGET,METCALFE CATERING,81.78,EQUIPMENT,"EQUIP, FURNITURE, HOME FURNSHNGS STRS (EXCPT APPL)"
27/09/2019,SOLD ESTATES MANAGEMENT,AMZNMKTPLACE,7.98,EQUIPMENT,MISCELLANEOUS AND SPECIALTY RETAIL STORES
27/09/2019,BIKEABILITY - CYCLE TRAINING,SP   LILPACKAGING,42.91,EQUIPMENT,COMPUTER SOFTWARE STORES
27/09/2019,SAFER TRAVEL TEAM,ARGOS LTD,21.00,EQUIPMENT,DISCOUNT STORES
27/09/2019,ARUNDEL,NEXT DIRECTORY,"1,007.00",FURNITURE,DIRECT MARKETING-COMBINATION CATALOG/RETAIL MERCH.
27/09/2019,ARUNDEL,TESCO STORES 5999,1.50,REFRESHMENT COSTS,"GROCERY STORES, SUPERMARKETS"
27/09/2019,ARUNDEL,TESCO STORES 5999,174.05,REFRESHMENT COSTS,"GROCERY STORES, SUPERMARKETS"
27/09/2019,ARUNDEL,ASDA SUPERSTORE,18.16,REFRESHMENT COSTS,"GROCERY STORES, SUPERMARKETS"
27/09/2019,DEVELOPMENT TEAM,CDATA SOFTWARE ARCESB,"1,005.68",COMPUTER SOFTWARE,"COMPUTERS, COMPUTER PERIPHERAL EQUIPMENT, SOFTWARE"
27/09/2019,LIBERTAS COMMUNITY HOME,B & Q 1029,20.62,DAY TO DAY MAINTENANCE,HOME SUPPLY WAREHOUSE STORES
27/09/2019,LIBERTAS COMMUNITY HOME,STARBUCKS,11.00,REFRESHMENT COSTS,FAST FOOD RESTAURANTS
27/09/2019,TARGETED INTERVENTION,DESIGN CAFE BY ABSOLUT,7.60,EDUC VISITS/HOLS/CAMPS/TOYS,"EATING PLACES, RESTAURANTS"
27/09/2019,FAIRCROFT COMMUNITY HOME,SAINSBURYS SACAT 0687,43.60,PURCHASE OF FOOD (RAW MATERIALS),"GROCERY STORES, SUPERMARKETS"
27/09/2019,WOODLANDS COMMUNITY HOME,3C_ CP PLUS - ROYAL SU,9.50,NON-STAFF RELATED TRANSPORT COSTS,AUTOMOBILE PARKING LOTS AND GARAGES
27/09/2019,TARGETED INTERVENTION,ODEON,5.05,EDUC VISITS/HOLS/CAMPS/TOYS,MOTION PICTURE THEATERS
27/09/2019,CHEYNE WALK COMMUNITY HOME,SMYTHS TOYS CRAWLEY,29.99,EDUC VISITS/HOLS/CAMPS/TOYS,"GAME, TOY, AND HOBBY SHOPS"
27/09/2019,CHEYNE WALK COMMUNITY HOME,WILKO RETAIL LIMIT,20.20,FIXTURES AND FITTINGS,HOUSEHOLD APPLIANCE STORES
27/09/2019,TARGETED INTERVENTION,FREEDOM LEISURE,5.65,EDUC VISITS/HOLS/CAMPS/TOYS,GOVERNMENT SERVICES-NOT ELSEWHERE CLASSIFIED
27/09/2019,TARGETED INTERVENTION,FREEDOM LEISURE,1.60,EDUC VISITS/HOLS/CAMPS/TOYS,GOVERNMENT SERVICES-NOT ELSEWHERE CLASSIFIED
27/09/2019,FOSTERING SERVICE CENTRAL COSTS,SAINSBURYS,11.00,REFRESHMENT COSTS,"GROCERY STORES, SUPERMARKETS"
27/09/2019,FOSTERING SERVICE CENTRAL COSTS,SAINSBURYS,11.00,REFRESHMENT COSTS,"GROCERY STORES, SUPERMARKETS"
27/09/2019,SE SECTION 17 CARE,EASYJET,228.85,NON-STAFF RELATED TRANSPORT COSTS,EASYJET
27/09/2019,NE LAC AND LEAVING CARE,REALISTIC MUSIC ACADEM,396.00,OTHER COMMUNITY CARE VOL,"MUSIC STORES-INSTRUMENTS, PIANOS, SHEET MUSIC"
27/09/2019,ROW VOLUNTEERS WEST                     ,ERNEST DOE / SONS,139.26,EQUIPMENT,MISC/AUTO/AIRCRAFT/FARM EQUIP  NOT ELSEWHERE CLASS
27/09/2019,ROW VOLUNTEERS EAST                     ,ERNEST DOE / SONS,"1,000.00",EQUIPMENT,MISC/AUTO/AIRCRAFT/FARM EQUIP  NOT ELSEWHERE CLASS
27/09/2019,ROW VOLUNTEERS WEST                     ,AVS FENCING SUPPLIES,40.49,EQUIPMENT,"BUILDING MATERIALS, LUMBER STORES"
27/09/2019,EXTENDED HOPE,TESCO STORE 2590,75.47,PURCHASE OF FOOD (RAW MATERIALS),"GROCERY STORES, SUPERMARKETS"
27/09/2019,WOODLANDS COMMUNITY HOME,SAINSBURYS TO YOU 0686,4.30,PURCHASE OF FOOD (RAW MATERIALS),"GROCERY STORES, SUPERMARKETS"
27/09/2019,WOODLANDS COMMUNITY HOME,SAINSBURYS TO YOU 0686,95.75,PURCHASE OF FOOD (RAW MATERIALS),"GROCERY STORES, SUPERMARKETS"
27/09/2019,BURBANK COMMUNITY HOME,CO-OP GROUP FOOD,6.45,PURCHASE OF FOOD (RAW MATERIALS),"GROCERY STORES, SUPERMARKETS"
27/09/2019,CHEYNE WALK COMMUNITY HOME,FRESH BAZAR FOOD,19.56,PURCHASE OF FOOD (RAW MATERIALS),"GROCERY STORES, SUPERMARKETS"
27/09/2019,ORBIS REPAIRS AND MAINT,SCREWFIX CHESSINGTON,184.48,PURCHASE OF BUILDING MATERIALS,"BUILDING MATERIALS, LUMBER STORES"
27/09/2019,ORBIS HEAD OF PROCUREMENT,WWW.CIPS.ORG,105.90,EXAMINATION FEES,"ORGANIZATIONS, MEMBERSHIP-NOT ELSEWHERE CLASSIFIED"
27/09/2019,ORBIS HEAD OF PROCUREMENT,WWW.CIPS.ORG,137.00,SUBSCRIPTIONS,"ORGANIZATIONS, MEMBERSHIP-NOT ELSEWHERE CLASSIFIED"
27/09/2019,TARGETED INTERVENTION,ODEON,40.95,EDUC VISITS/HOLS/CAMPS/TOYS,MOTION PICTURE THEATERS
27/09/2019,RUTH HOUSE,MY.MORRISONS.COM,20.00,PURCHASE OF FOOD (RAW MATERIALS),"GROCERY STORES, SUPERMARKETS"
27/09/2019,RUTH HOUSE,SAINSBURYS TO YOU 0686,17.85,PURCHASE OF FOOD (RAW MATERIALS),"GROCERY STORES, SUPERMARKETS"
27/09/2019,RUTH HOUSE,SAINSBURYS TO YOU 0686,73.15,PURCHASE OF FOOD (RAW MATERIALS),"GROCERY STORES, SUPERMARKETS"
28/09/2019,RUTH HOUSE,NOWTV.COM/BILLINGHELP,7.99,EDUC VISITS/HOLS/CAMPS/TOYS,"CABLE, SATELLITE, OTHER PAY TELEVISION, RADIO SVCS"
28/09/2019,BURBANK COMMUNITY HOME,CENTRAL SURREY HEALTH,2.80,MISCELLANEOUS STAFF TRAVEL,AUTOMOBILE PARKING LOTS AND GARAGES
28/09/2019,HOPE SERVICE - WEST,CARD FACTORY,2.00,CURRICULUM CONSUMABLES,"GIFT, CARD, NOVELTY AND SOUVENIR SHOPS"
28/09/2019,COUNTRYSIDE PROJECT DEVELOPMENT,MATUSZEK TRANSPORT SP.,25.16,MISCELLANEOUS STAFF TRAVEL,BUS LINES
28/09/2019,HILLSIDE,SAINSBURYS TO YOU 0675,10.80,PURCHASE OF FOOD (RAW MATERIALS),"GROCERY STORES, SUPERMARKETS"
28/09/2019,HILLSIDE,SAINSBURYS TO YOU 0675,170.03,PURCHASE OF FOOD (RAW MATERIALS),"GROCERY STORES, SUPERMARKETS"
28/09/2019,HOPE SERVICE - WEST,AMZNMKTPLACE,21.98,COMPUTER CONSUMABLES,MISCELLANEOUS AND SPECIALTY RETAIL STORES
28/09/2019,KARIBU COMMUNITY HOME,TESCO STORE 2812,195.67,PURCHASE OF FOOD (RAW MATERIALS),"GROCERY STORES, SUPERMARKETS"
28/09/2019,HILLSIDE,SAINSBURYS 0784,6.00,PURCHASE OF FOOD (RAW MATERIALS),"GROCERY STORES, SUPERMARKETS"
28/09/2019,CHEYNE WALK COMMUNITY HOME,TESCO STORE 2560,117.55,EQUIPMENT,"GROCERY STORES, SUPERMARKETS"
28/09/2019,WOODLANDS COMMUNITY HOME,SAINSBURYS SACAT 0675,16.65,EQUIPMENT,"GROCERY STORES, SUPERMARKETS"
28/09/2019,WOODLANDS COMMUNITY HOME,MCDONALDS,7.78,REFRESHMENT COSTS,"EATING PLACES, RESTAURANTS"
28/09/2019,WOODLANDS COMMUNITY HOME,MARKS&SPENCER PLC,4.45,REFRESHMENT COSTS,FAST FOOD RESTAURANTS
28/09/2019,WOODLANDS COMMUNITY HOME,MARKS&SPENCER PLC,1.09,REFRESHMENT COSTS,FAST FOOD RESTAURANTS
28/09/2019,WOODLANDS COMMUNITY HOME,MARKS&SPENCER PLC,1.90,REFRESHMENT COSTS,FAST FOOD RESTAURANTS
28/09/2019,WOODLANDS COMMUNITY HOME,MARKS&SPENCER PLC,1.09,REFRESHMENT COSTS,FAST FOOD RESTAURANTS
28/09/2019,WOODLANDS COMMUNITY HOME,3C_ CP PLUS - ROYAL SU,9.50,NON-STAFF RELATED TRANSPORT COSTS,AUTOMOBILE PARKING LOTS AND GARAGES
28/09/2019,APPLEWOOD,ASDA GROCERIES ONLINE,55.00,PURCHASE OF FOOD (RAW MATERIALS),"GROCERY STORES, SUPERMARKETS"
28/09/2019,ACL CENTRAL EXPENDITURE,W M MORRISON STORE,3.00,REFRESHMENT COSTS,"GROCERY STORES, SUPERMARKETS"
28/09/2019,WOODLANDS COMMUNITY HOME,SAINSBURYS TO YOU 0686,-13.00,PURCHASE OF FOOD (RAW MATERIALS),"GROCERY STORES, SUPERMARKETS"
28/09/2019,HAVEN GUILDFORD,KINRA TRADERS LIMI,8.07,REFRESHMENT COSTS,"GROCERY STORES, SUPERMARKETS"
28/09/2019,CHEYNE WALK COMMUNITY HOME,M6 TOLL,5.60,NON-STAFF RELATED TRANSPORT COSTS,"BRIDGE AND ROAD FEES, TOLLS"
28/09/2019,CHEYNE WALK COMMUNITY HOME,ALTON TOWERS,288.00,EDUC VISITS/HOLS/CAMPS/TOYS,TOURIST ATTRACTIONS AND EXHIBITS
28/09/2019,CHEYNE WALK COMMUNITY HOME,CHOZEN NOODLE,14.20,REFRESHMENT COSTS,FAST FOOD RESTAURANTS
28/09/2019,CHEYNE WALK COMMUNITY HOME,CARVERY EXPRESS,14.75,REFRESHMENT COSTS,FAST FOOD RESTAURANTS
28/09/2019,FAIRCROFT COMMUNITY HOME,SAINSBURYS PFS0473,4.80,PURCHASE OF FOOD (RAW MATERIALS),SERVICE STATIONS WITH OR WITHOUT ANCILLARY SERVICE
28/09/2019,RUTH HOUSE,NOWTV.COM/BILLINGHELP,11.99,EDUC VISITS/HOLS/CAMPS/TOYS,"CABLE, SATELLITE, OTHER PAY TELEVISION, RADIO SVCS"
29/09/2019,BURBANK COMMUNITY HOME,TOP GOLF LTD,15.60,EDUC VISITS/HOLS/CAMPS/TOYS,"CLUBS-CNTRY,MBRSHIP(ATHLET,REC,SPRTS,PRIVATE GOLF"
29/09/2019,HEAD OF SERVICE,AMZNMKTPLACE AMAZON.CO,24.99,EQUIPMENT,MISCELLANEOUS AND SPECIALTY RETAIL STORES
29/09/2019,EXTENDED HOPE,ODEON,30.38,EDUC VISITS/HOLS/CAMPS/TOYS,MOTION PICTURE THEATERS
29/09/2019,RUTH HOUSE,GIFFGAFF,6.00,TELECOMMUNICATION CHARGES,TELECOM INCL PREPAID/RECURRING PHONE SVCS
29/09/2019,BURBANK COMMUNITY HOME,TOP GOLF LTD,24.00,EDUC VISITS/HOLS/CAMPS/TOYS,"CLUBS-CNTRY,MBRSHIP(ATHLET,REC,SPRTS,PRIVATE GOLF"
29/09/2019,ACL CENTRAL EXPENDITURE,AMZNMKTPLACE,31.99,EQUIPMENT,MISCELLANEOUS AND SPECIALTY RETAIL STORES
29/09/2019,PORTAGE SERVICE (SW),AMZNMKTPLACE,615.34,EQUIPMENT,MISCELLANEOUS AND SPECIALTY RETAIL STORES
29/09/2019,PORTAGE SERVICE (SW),AMZNMKTPLACE AMAZON.CO,208.77,EQUIPMENT,MISCELLANEOUS AND SPECIALTY RETAIL STORES
29/09/2019,TRANSPORT,AMZNMKTPLACE,259.98,FURNITURE,MISCELLANEOUS AND SPECIALTY RETAIL STORES
29/09/2019,COUNTRYSIDE PROJECT DEVELOPMENT,NEW SOUTHERN RAILW,25.50,MISCELLANEOUS STAFF TRAVEL,PASSENGER RAILWAYS
29/09/2019,COUNTRYSIDE PROJECT DEVELOPMENT,RESTAURANT & COCKTAI,22.65,SUBSISTENCE AND CONFERENCE EXPENSES,"EATING PLACES, RESTAURANTS"
29/09/2019,HILLSIDE,SAINSBURYS SACAT 0784,14.95,PURCHASE OF FOOD (RAW MATERIALS),"GROCERY STORES, SUPERMARKETS"
29/09/2019,SOLD DAY TO DAY OPERATIONS,AMZNMKTPLACE,14.86,EQUIPMENT,MISCELLANEOUS AND SPECIALTY RETAIL STORES
29/09/2019,COMLIANCE TEAM,AMZNMKTPLACE,20.52,STATIONERY,MISCELLANEOUS AND SPECIALTY RETAIL STORES
29/09/2019,ALDWYN PLACE,AMAZON.CO.UK MA10V5YQ4,54.48,EQUIPMENT,DIRECT MARKETING-OTHER DIRECT MARKETERS/NOT ELSEW.
29/09/2019,HEATHSIDE,AMZNMKTPLACE,30.52,EQUIPMENT,MISCELLANEOUS AND SPECIALTY RETAIL STORES
29/09/2019,ACL CENTRAL EXPENDITURE,WAITROSE 190,2.90,REFRESHMENT COSTS,"GROCERY STORES, SUPERMARKETS"
29/09/2019,MALLOW CRESCENT,SAINSBURYS TO YOU 0652,137.46,PURCHASE OF FOOD (RAW MATERIALS),"GROCERY STORES, SUPERMARKETS"
29/09/2019,EXTENDED HOPE,ATIF SUPERSTORE LIMITE,14.13,PURCHASE OF FOOD (RAW MATERIALS),"GROCERY STORES, SUPERMARKETS"
29/09/2019,EXTENDED HOPE,TESCO STORE 2590,69.67,PURCHASE OF FOOD (RAW MATERIALS),"GROCERY STORES, SUPERMARKETS"
29/09/2019,CHEYNE WALK COMMUNITY HOME,PICSOLVE INTERNATIONAL,15.00,EDUC VISITS/HOLS/CAMPS/TOYS,PHOTOGRAPHIC STUDIOS
29/09/2019,CHEYNE WALK COMMUNITY HOME,ALTON TOWERS,6.00,EDUC VISITS/HOLS/CAMPS/TOYS,TOURIST ATTRACTIONS AND EXHIBITS
29/09/2019,CHEYNE WALK COMMUNITY HOME,ALTON TOWERS,6.90,REFRESHMENT COSTS,"AMUSEMENT PARKS,CARNIVALS,CIRCUS,FORTUNE TELLERS"
29/09/2019,CHEYNE WALK COMMUNITY HOME,ALTON TOWERS,33.00,"CLOTHING, UNIFORM AND LAUNDRY","AMUSEMENT PARKS,CARNIVALS,CIRCUS,FORTUNE TELLERS"
29/09/2019,CHEYNE WALK COMMUNITY HOME,ALTON TOWERS,21.20,EDUC VISITS/HOLS/CAMPS/TOYS,"AMUSEMENT PARKS,CARNIVALS,CIRCUS,FORTUNE TELLERS"
29/09/2019,CHEYNE WALK COMMUNITY HOME,TESCO STORES,19.55,PURCHASE OF FOOD (RAW MATERIALS),"GROCERY STORES, SUPERMARKETS"
29/09/2019,ACL CENTRAL EXPENDITURE,FACEBK JR4ZBQWYM2,17.00,PUBLICITY,ADVERTISING SERVICES
30/09/2019,SURREY PENSIONS,SURREY CC CARD PAY,-11.00,PURCHASE CARD TRANSACTION LOG DEFAULT,COMPUTER NETWORK/INFORMATION SERVICES
30/09/2019,SURREY PENSIONS,PREMIER INN,97.00,SUBSISTENCE AND CONFERENCE EXPENSES,PREMIER INN
30/09/2019,TARGETED INTERVENTION,HARRIS AND HOOLE HORLE,9.15,EDUC VISITS/HOLS/CAMPS/TOYS,"EATING PLACES, RESTAURANTS"
30/09/2019,ASSET PLANNING - OPERATIONS,WWW.BLACKWELL.CO.UK,71.99,BOOKS,"OFFICE, SCHOOL SUPPLY, AND STATIONERY STORES"
30/09/2019,CHALKMEAD,YESSS ELECTRICAL,102.00,DAY TO DAY MAINTENANCE,ELECTRICAL PARTS AND EQUIPMENT
30/09/2019,CHEYNE WALK COMMUNITY HOME,ATP ADMISSIONS,22.00,EDUC VISITS/HOLS/CAMPS/TOYS,"AMUSEMENT PARKS,CARNIVALS,CIRCUS,FORTUNE TELLERS"
30/09/2019,CHEYNE WALK COMMUNITY HOME,SMOKE AND RYE,91.19,REFRESHMENT COSTS,"EATING PLACES, RESTAURANTS"
30/09/2019,RECRUITMENT,HOO HOOTSUITE INC,180.00,SUBSCRIPTIONS,BUSINESS SERVICES-NOT ELSEWHERE CLASSIFIED
30/09/2019,RECRUITMENT,FIREBRAND PROMOTIONS L,"2,340.00",STATIONERY,MISCELLANEOUS PUBLISHING AND PRINTING
30/09/2019,SE TARGETTED YOUTH SUPPORT,WAITROSE 178,5.44,REFRESHMENT COSTS,"GROCERY STORES, SUPERMARKETS"
30/09/2019,CORPORATE GROUP - LEGAL SERVICES,CUSTOMER THERMOMETER,49.27,SUBSCRIPTIONS,COMPUTER SOFTWARE STORES
30/09/2019,SW TARGETTED YOUTH SUPPORT,AMZNMKTPLACE AMAZON.CO,89.99,EQUIPMENT,MISCELLANEOUS AND SPECIALTY RETAIL STORES
30/09/2019,RUTH HOUSE,NOWTV.COM/BILLINGHELP,3.99,EDUC VISITS/HOLS/CAMPS/TOYS,"CABLE, SATELLITE, OTHER PAY TELEVISION, RADIO SVCS"
30/09/2019,RUTH HOUSE,WWW.PARENTMAIL.CO.,25.00,EDUC VISITS/HOLS/CAMPS/TOYS,SCHOOLS & EDUCATIONAL SVC-NOT ELSEWHERE CLASSIFIED
30/09/2019,PE/CDT MAINTENANCE OVERHEADS,K&P TYRES,280.00,ITEMS PURCHASED FOR RE-SALE,MOTOR VEHICLE SUPPLIES AND NEW PARTS
30/09/2019,LIBERTAS COMMUNITY HOME,SAINSBURYS SACAT 0652,120.18,PURCHASE OF FOOD (RAW MATERIALS),"GROCERY STORES, SUPERMARKETS"
30/09/2019,NW LAC AND LEAVING CARE,YORK STATION TAXIS LTD,90.00,CHILDREN ACT SEC 17 PAYMENTS,LIMOUSINES AND TAXICABS
30/09/2019,MALLOW CRESCENT,SAINSBURYS TO YOU 0652,134.24,PURCHASE OF FOOD (RAW MATERIALS),"GROCERY STORES, SUPERMARKETS"
30/09/2019,HOPE SERVICE - WEST,SAINSBURYS TO YOU 0686,60.54,PURCHASE OF FOOD (RAW MATERIALS),"GROCERY STORES, SUPERMARKETS"
30/09/2019,TRANSPORT,PAYPAL  SERPRO LTD,33.99,PROPERTY,CHEMICALS/ALLIED PRODUCTS NOT ELSEWHERE CLASSIFIED
30/09/2019,TRANSPORT,PAYPAL  SANDALTHORN,68.38,EQUIPMENT,LAWN AND GARDEN SUPPLY STORES
30/09/2019,HOPE SERVICE - WEST,SAINSBURYS TO YOU 0683,90.45,PURCHASE OF FOOD (RAW MATERIALS),"GROCERY STORES, SUPERMARKETS"
30/09/2019,LOWER MOLE COUNTRYSIDE PROJECT,SAINSBURYS 0683,67.95,REFRESHMENT COSTS,"GROCERY STORES, SUPERMARKETS"
30/09/2019,SPEECH & LANGUAGE THERAPY,I PRINT,337.50,EQUIPMENT,MISCELLANEOUS PUBLISHING AND PRINTING
30/09/2019,MISC EDCAT SUPPORT,AMAZON.CO.UK MO29Y34V4,15.99,PUBLICITY,DIRECT MARKETING-OTHER DIRECT MARKETERS/NOT ELSEW.
30/09/2019,BURBANK COMMUNITY HOME,AMZNMKTPLACE,17.99,CLEANING MATERIALS,MISCELLANEOUS AND SPECIALTY RETAIL STORES
30/09/2019,BURBANK COMMUNITY HOME,REPLACEMENT KEYS LTD,12.45,FIXTURES AND FITTINGS,MISCELLANEOUS GENERAL MERCHANDISE
30/09/2019,SOLD DAY TO DAY OPERATIONS,THE POST OFFICE,4.55,POSTAGE AND COURIER CHARGES,POSTAL SERVICES-GOVERNMENT ONLY
30/09/2019,HILLSIDE,SAINSBURYS SACAT 0675,26.30,PURCHASE OF FOOD (RAW MATERIALS),"GROCERY STORES, SUPERMARKETS"
30/09/2019,HOPE SERVICE - WEST,WAYFAIR #2287569464,207.98,FURNITURE,"EQUIP, FURNITURE, HOME FURNSHNGS STRS (EXCPT APPL)"
30/09/2019,SOLD ESTATES MANAGEMENT,MOLE VALLEY MOWERS,307.54,VEHICLE REPAIRS AND MAINTENANCE,LAWN AND GARDEN SUPPLY STORES
30/09/2019,HEAD OF SCHOOLS AND LEARNING,AMZNMKTPLACE,17.99,EQUIPMENT,MISCELLANEOUS AND SPECIALTY RETAIL STORES
30/09/2019,SOLD DAY TO DAY OPERATIONS,AMZNMKTPLACE,4.80,EQUIPMENT,MISCELLANEOUS AND SPECIALTY RETAIL STORES
30/09/2019,HOPE SERVICE - WEST,SAINSBURYS LOC 4409,43.92,POSTAGE AND COURIER CHARGES,"GROCERY STORES, SUPERMARKETS"
30/09/2019,SW LAC AND LEAVING CARE,THE WOKING HOTEL,69.00,OTHER COMMUNITY CARE VOL,"LODGING-HOTELS,MOTELS,RESORTS-NOT CLASSIFIED"
30/09/2019,SW LAC AND LEAVING CARE,THE WOKING HOTEL,138.00,OTHER COMMUNITY CARE VOL,"LODGING-HOTELS,MOTELS,RESORTS-NOT CLASSIFIED"
30/09/2019,SW CARE - CP & COURT LAC,SURREY CC CARD PAY,22.00,OTHER COMMUNITY CARE VOL,COMPUTER NETWORK/INFORMATION SERVICES
30/09/2019,MALLOW CRESCENT,TESCO STORE 2590,91.51,PURCHASE OF FOOD (RAW MATERIALS),"GROCERY STORES, SUPERMARKETS"
30/09/2019,MALLOW CRESCENT,TESCO STORE 2590,58.13,PURCHASE OF FOOD (RAW MATERIALS),"GROCERY STORES, SUPERMARKETS"
30/09/2019,MALLOW CRESCENT,TESCO STORE 2590,-3.00,PURCHASE OF FOOD (RAW MATERIALS),"GROCERY STORES, SUPERMARKETS"
30/09/2019,TRAINING AND DEVELOPMENT,SAFE SITE FACILITIES L,288.00,TRAINING EXPENSES EXTERNAL GENERAL,"CONTRACTORS,SPECIAL TRADE-NOT ELSEWHERE CLASSIFIED"
30/09/2019,HAVEN GUILDFORD,SAINSBURYS SACAT 0828,12.25,PURCHASE OF FOOD (RAW MATERIALS),"GROCERY STORES, SUPERMARKETS"
30/09/2019,LIBERTAS COMMUNITY HOME,B & Q 1029,96.44,FIXTURES AND FITTINGS,HOME SUPPLY WAREHOUSE STORES
30/09/2019,PROJECT DELIVERY,PAYPAL  BAMANAGERFO,96.00,SUBSISTENCE AND CONFERENCE EXPENSES,SCHOOLS & EDUCATIONAL SVC-NOT ELSEWHERE CLASSIFIED
30/09/2019,ACL CENTRAL EXPENDITURE,AMZNMKTPLACE,224.75,STATIONERY,MISCELLANEOUS AND SPECIALTY RETAIL STORES
30/09/2019,MALLOW CRESCENT,TESCO STORE 2590,108.49,PURCHASE OF FOOD (RAW MATERIALS),"GROCERY STORES, SUPERMARKETS"
30/09/2019,NE CARE - CP & COURT LAC,TRAVELODGE,188.48,INDEPENDENT LIVING PLACEMENTS,TRAVELODGE
30/09/2019,ASYLUM SEEKERS 18+,UOL WPM KX,500.00,INDEPENDENT LIVING PLACEMENTS,"COLLEGES, UNIV, PRO SCHOOLS, JUNIOR COLLEGES"
30/09/2019,FAIRCROFT COMMUNITY HOME,SAINSBURYS SACAT 0687,29.65,PURCHASE OF FOOD (RAW MATERIALS),"GROCERY STORES, SUPERMARKETS"
30/09/2019,FAIRCROFT COMMUNITY HOME,SAINSBURYS SACAT 0687,46.91,PURCHASE OF FOOD (RAW MATERIALS),"GROCERY STORES, SUPERMARKETS"
30/09/2019,ACL CENTRAL EXPENDITURE,AMZNMKTPLACE,93.95,REFRESHMENT COSTS,MISCELLANEOUS AND SPECIALTY RETAIL STORES
30/09/2019,TARGETED INTERVENTION,SQUIRES GARDEN CENTRE,6.50,EDUC VISITS/HOLS/CAMPS/TOYS,LAWN AND GARDEN SUPPLY STORES
30/09/2019,WOODLANDS COMMUNITY HOME,SAINSBURYS SACAT 0686,7.50,PURCHASE OF FOOD (RAW MATERIALS),"GROCERY STORES, SUPERMARKETS"
30/09/2019,WOODLANDS COMMUNITY HOME,BRACKNELL FOREST CNCL,2.50,NON-STAFF RELATED TRANSPORT COSTS,AUTOMOBILE PARKING LOTS AND GARAGES
30/09/2019,WOODLANDS COMMUNITY HOME,FENWICK LTD,21.50,EDUC VISITS/HOLS/CAMPS/TOYS,MEN'S AND BOY'S CLOTHING AND ACCESSORIES STORES
30/09/2019,WOODLANDS COMMUNITY HOME,SUPERDRUG STORES PLC,3.99,EQUIPMENT,"DRUG STORES, PHARMACIES"
30/09/2019,WOODLANDS COMMUNITY HOME,NANDOS BRACKNELL,31.75,REFRESHMENT COSTS,"EATING PLACES, RESTAURANTS"
30/09/2019,ACL CENTRAL EXPENDITURE,TESCO STORE 3149,64.16,REFRESHMENT COSTS,"GROCERY STORES, SUPERMARKETS"
30/09/2019,SURREY PENSIONS,GEN REGISTER OFFICE,28.00,PURCHASE CARD TRANSACTION LOG DEFAULT,GOVERNMENT SERVICES-NOT ELSEWHERE CLASSIFIED
30/09/2019,SURREY PENSIONS,SURREY CC CARD PAY,11.00,PURCHASE CARD TRANSACTION LOG DEFAULT,COMPUTER NETWORK/INFORMATION SERVICES
30/09/2019,SURREY PENSIONS,SURREY CC CARD PAY,11.00,PURCHASE CARD TRANSACTION LOG DEFAULT,COMPUTER NETWORK/INFORMATION SERVICES
30/09/2019,ACL CENTRAL EXPENDITURE,TESCO STORE 2160,58.13,REFRESHMENT COSTS,"GROCERY STORES, SUPERMARKETS"
30/09/2019,WEB OPERATIONS TEAM,REPORTURI 100K REPORTS,15.07,SUBSCRIPTIONS,COMPUTER SOFTWARE STORES
30/09/2019,HERITAGE PUBLIC SERVICE,AMZNMKTPLACE,51.45,REFRESHMENT COSTS,MISCELLANEOUS AND SPECIALTY RETAIL STORES
30/09/2019,CHEYNE WALK COMMUNITY HOME,AMZNMKTPLACE,12.99,EQUIPMENT,MISCELLANEOUS AND SPECIALTY RETAIL STORES
30/09/2019,CHEYNE WALK COMMUNITY HOME,AMZNMKTPLACE,41.70,EQUIPMENT,MISCELLANEOUS AND SPECIALTY RETAIL STORES
